Ref No,Fund Type,Dept,Cost Centre Description    ,Description    ,Creditor Name    ,GL Code Net Amount,Payment date        
2,Revenue,CCHD,Bed Purchasing - South,Permanent Nursing,Grace Fields Nursing Home,1705.28, 28-Oct-2014
3,Revenue,CCHD,South Glos Users in South Glos Homes,Permanent Nursing,Grace Fields Nursing Home,1948.5, 28-Oct-2014
4,Revenue,CCHD,Bed purchasing - Elderly S117 - South,Permanent Nursing,Grace Fields Nursing Home,2395.8, 28-Oct-2014
5,Revenue,CCHD,Bed Purchasing - Southmead Hospital,Permanent Nursing,Grace Fields Nursing Home,2356.44, 28-Oct-2014
6,Revenue,CCHD,Bed purchasing - Elderly S117 - South,Permanent Nursing,Grace Fields Nursing Home,2356.44, 28-Oct-2014
7,Revenue,CCHD,Bed purchasing - Elderly S117 - South,Permanent Nursing,Grace Fields Nursing Home,1514.85, 28-Oct-2014
8,Revenue,CCHD,South Glos Users in South Glos Homes,Permanent Nursing,Grace Fields Nursing Home,2867.3, 28-Oct-2014
9,Revenue,CCHD,Bed Purchasing - South,Permanent Nursing,Grace Fields Nursing Home,2227.8, 28-Oct-2014
10,Revenue,CCHD,South Glos Users in South Glos Homes,Permanent Nursing,Grace Fields Nursing Home,1821.76, 28-Oct-2014
11,Revenue,CCHD,South Glos Users in South Glos Homes,Permanent Nursing,Grace Fields Nursing Home,3089.08, 28-Oct-2014
12,Revenue,CCHD,South Glos Users in South Glos Homes,Permanent Nursing,Grace Fields Nursing Home,3089.08, 28-Oct-2014
13,Revenue,CCHD,South Glos Users in South Glos Homes,Permanent Nursing,Grace Fields Nursing Home,2994.03, 28-Oct-2014
14,Revenue,CCHD,Bed Purchasing - North,Permanent Residential,1 St Georges House,95811.81, 28-Oct-2014
15,Revenue,CCHD,Breakthrough and Inclusion Work,Other Supplies & Services,121Turnaround Limited,3624.92, 15-Oct-2014
16,Revenue,CCHD,Supporting People Programme,Grants to Voluntary Bodies,1625 Independent People,16692.5, 01-Oct-2014
17,Revenue,CCHD,Supporting People Programme,Grants to Voluntary Bodies,1625 Independent People,16692.5, 31-Oct-2014
18,Revenue,CCHD,Home Care - Elderly - South,Other Small Contracts,3 Trees Community Support Ltd,196.68, 29-Oct-2014
19,Revenue,CCHD,Home Care - Elderly - North,Day Care / Social Activities,3 Trees Community Support Ltd,1425.93, 29-Oct-2014
20,Revenue,CCHD,Home Care - Elderly - North,Other Small Contracts,3 Trees Community Support Ltd,2011.5, 29-Oct-2014
21,Revenue,CCHD,Home Care - Elderly - North,Supported Living,3 Trees Community Support Ltd,3072.83, 29-Oct-2014
22,Revenue,CCHD,Home Care - Elderly - South,Other Small Contracts,3 Trees Community Support Ltd,196.68, 15-Oct-2014
23,Revenue,CCHD,Home Care - Elderly - North,Day Care / Social Activities,3 Trees Community Support Ltd,1555.56, 15-Oct-2014
24,Revenue,CCHD,Home Care - Elderly - North,Other Small Contracts,3 Trees Community Support Ltd,1850.58, 15-Oct-2014
25,Revenue,CCHD,Home Care - Elderly - North,Supported Living,3 Trees Community Support Ltd,3002.4, 15-Oct-2014
26,Revenue,CCHD,Home Care - Elderly - South,Other Small Contracts,3 Trees Community Support Ltd,89.4, 29-Oct-2014
27,Revenue,CCHD,Home Care - Elderly - North,Day Care / Social Activities,3 Trees Community Support Ltd,1515.33, 29-Oct-2014
28,Revenue,CCHD,Home Care - Elderly - North,Other Small Contracts,3 Trees Community Support Ltd,2118.78, 29-Oct-2014
29,Revenue,CCHD,Home Care - Elderly - North,Supported Living,3 Trees Community Support Ltd,3077.3, 29-Oct-2014
30,Revenue,CCHD,Home Care - Elderly - South,Other Small Contracts,3 Trees Community Support Ltd,89.4, 29-Oct-2014
31,Revenue,CCHD,Home Care - Elderly - North,Day Care / Social Activities,3 Trees Community Support Ltd,1528.74, 29-Oct-2014
32,Revenue,CCHD,Home Care - Elderly - North,Other Small Contracts,3 Trees Community Support Ltd,1944.45, 29-Oct-2014
33,Revenue,CCHD,Home Care - Elderly - North,Supported Living,3 Trees Community Support Ltd,8737.86, 29-Oct-2014
34,Revenue,CCHD,Home Care - Elderly - South,Other Small Contracts,3 Trees Community Support Ltd,196.68, 29-Oct-2014
35,Revenue,CCHD,Home Care - Elderly - North,Day Care / Social Activities,3 Trees Community Support Ltd,1546.62, 29-Oct-2014
36,Revenue,CCHD,Home Care - Elderly - North,Other Small Contracts,3 Trees Community Support Ltd,2011.5, 29-Oct-2014
37,Revenue,CCHD,Home Care - Elderly - North,Supported Living,3 Trees Community Support Ltd,8730.1, 29-Oct-2014
38,Revenue,CCHD,Supported Living - North,Private & Voluntary Home Care,3 Trees Community Support Ltd,9639.65, 06-Oct-2014
39,Revenue,CCHD,Bed Purchasing - Under 65s PWLD - South,Permanent Residential,5Th Floor Harlech Court,16062.2, 28-Oct-2014
40,Revenue,CCHD,Bed Purchasing - North,Permanent Residential,5Th Floor Harlech Court,13689.08, 28-Oct-2014
41,Revenue,CCHD,Bed Purchasing - North,Permanent Residential,5Th Floor Harlech Court,95082.39, 28-Oct-2014
42,Revenue,CCHD,Bed Purchasing - North,Permanent Residential,5Th Floor Harlech Court,13962.28, 28-Oct-2014
43,Revenue,CCHD,Bed Purchasing - North,Permanent Residential,5Th Floor Harlech Court,95994.99, 28-Oct-2014
44,Revenue,CCHD,Bed Purchasing - North,Permanent Residential,5Th Floor Harlech Court,39228.41, 28-Oct-2014
45,Revenue,CCHD,Bed Purchasing - North,Permanent Residential,5Th Floor Harlech Court,12849.84, 28-Oct-2014
46,Revenue,CCHD,Bed Purchasing - North,Permanent Residential,5Th Floor Harlech Court,20343.67, 28-Oct-2014
47,Revenue,CCHD,Bed purchasing - Under 65s PWLD - North,Permanent Residential,5Th Floor Harlech Court,16589.72, 28-Oct-2014
48,Revenue,CCHD,Bed Purchasing - North,Permanent Residential,5Th Floor Harlech Court,15754.12, 28-Oct-2014
49,Revenue,CCHD,Bed Purchasing - North,Permanent Residential,5Th Floor Harlech Court,108638.55, 28-Oct-2014
50,Revenue,CCHD,Bed Purchasing - South,Permanent Residential,5Th Floor Harlech Court,23733.7, 28-Oct-2014
51,Revenue,CCHD,Bed purchasing - S28A Under 65 - South,Permanent Residential,5Th Floor Harlech Court,10570.16, 28-Oct-2014
52,Revenue,CCHD,Bed purchasing - S28A Under 65 - South,Permanent Residential,5Th Floor Harlech Court,12355.24, 28-Oct-2014
53,Revenue,CCHD,Bed Purchasing - Under 65s PWLD - South,Permanent Nursing,5Th Floor Harlech Court,10240.88, 28-Oct-2014
54,Revenue,CCHD,Direct Payments - Phys Dis - North,Grants to Voluntary Bodies,A4E Management Limited,23434.92, 22-Oct-2014
55,Revenue,CCHD,Direct Payments - Phys Dis - North,Grants to Voluntary Bodies,A4E Management Limited,563.16, 22-Oct-2014
56,Revenue,CCHD,Direct Payments - Phys Dis - North,Grants to Voluntary Bodies,A4E Management Limited,584.82, 24-Oct-2014
57,Revenue,CCHD,Direct Payments - Phys Dis - North,Grants to Voluntary Bodies,A4E Management Limited,23434.92, 24-Oct-2014
58,Revenue,CCHD,Bed Purchasing - North,Permanent Nursing,ABI Development Limited,56345.41, 28-Oct-2014
59,Revenue,CCHD,Bed and Breakfast,Storage & Removal,Ablemove-Wottons,420, 31-Oct-2014
60,Revenue,CCHD,Bed and Breakfast,Storage & Removal,Ablemove-Wottons,660, 31-Oct-2014
61,Revenue,CCHD,Bed and Breakfast,Storage & Removal,Ablemove-Wottons,480, 31-Oct-2014
62,Revenue,CCHD,Bed and Breakfast,Storage & Removal,Ablemove-Wottons,660, 31-Oct-2014
63,Revenue,CCHD,Bed and Breakfast,Storage & Removal,Ablemove-Wottons,460, 31-Oct-2014
64,Revenue,CCHD,Bed and Breakfast,Storage & Removal,Ablemove-Wottons,460, 31-Oct-2014
65,Revenue,CCHD,Bed and Breakfast,Storage & Removal,Ablemove-Wottons,600, 31-Oct-2014
66,Revenue,CCHD,Bed and Breakfast,Storage & Removal,Ablemove-Wottons,460, 31-Oct-2014
67,Revenue,CCHD,Bed and Breakfast,Storage & Removal,Ablemove-Wottons,460, 31-Oct-2014
68,Revenue,CCHD,Day Care - South,Day Care / Social Activities,About Me Care and Support Limited,1186.78, 24-Oct-2014
69,Revenue,CCHD,Day Care - North,Day Care / Social Activities,About Me Care and Support Limited,781.28, 09-Oct-2014
70,Revenue,CCHD,Day Care - South,Day Care / Social Activities,About Me Care and Support Limited,780.16, 24-Oct-2014
71,Revenue,CCHD,Bed Purchasing - North,Permanent Residential,Acorn Care Providers,22833, 28-Oct-2014
72,Revenue,CCHD,Older People's Commissioned Se,Grants to Voluntary Bodies,Action for Blind People,24242.25, 01-Oct-2014
73,Revenue,CCHD,SLA Grants - Support Serv,Grants to Voluntary Bodies,Age UK South Gloucestershire,5437.75, 01-Oct-2014
74,Revenue,CCHD,Home Care - Elderly - South,Other Small Contracts,Agincare Chippenham,1360.4, 07-Oct-2014
75,Revenue,CCHD,Home Care - Elderly - South,Other Small Contracts,Agincare Chippenham,1375.6, 24-Oct-2014
76,Revenue,CCHD,Home Care - Elderly - South,Other Small Contracts,Agincare Chippenham,1349, 22-Oct-2014
77,Revenue,CCHD,Home Care - Elderly - South,Other Small Contracts,Agincare Chippenham,1337.6, 31-Oct-2014
78,Revenue,CCHD,Home Care - Elderly - South,Other Small Contracts,Agincare UK Limited,543.4, 07-Oct-2014
79,Revenue,CCHD,Home Care - Elderly - North,Other Small Contracts,Agincare UK Limited,110.2, 07-Oct-2014
80,Revenue,CCHD,Elderly MH Day Care North,Day Care / Social Activities,Agincare UK Limited,22.8, 07-Oct-2014
81,Revenue,CCHD,Home Care - Elderly - South,Other Small Contracts,Agincare UK Limited,516.8, 21-Oct-2014
82,Revenue,CCHD,Home Care - Elderly - North,Other Small Contracts,Agincare UK Limited,110.2, 21-Oct-2014
83,Revenue,CCHD,Elderly MH Day Care North,Day Care / Social Activities,Agincare UK Limited,26.6, 21-Oct-2014
84,Revenue,CCHD,Home Care - Elderly - South,Other Small Contracts,Agincare UK Limited,570, 22-Oct-2014
85,Revenue,CCHD,Home Care - Elderly - North,Other Small Contracts,Agincare UK Limited,148.2, 22-Oct-2014
86,Revenue,CCHD,Elderly MH Day Care North,Day Care / Social Activities,Agincare UK Limited,45.6, 22-Oct-2014
87,Revenue,CCHD,Home Care - Elderly - South,Other Small Contracts,Agincare UK Limited,501.6, 31-Oct-2014
88,Revenue,CCHD,Home Care - Elderly - North,Other Small Contracts,Agincare UK Limited,136.8, 31-Oct-2014
89,Revenue,CCHD,Elderly MH Day Care North,Day Care / Social Activities,Agincare UK Limited,53.2, 31-Oct-2014
90,Revenue,CCHD,Home Care - Elderly - North,Other Small Contracts,Agincare UK Nutfield,1588.4, 07-Oct-2014
91,Revenue,CCHD,Home Care - Elderly - North,Other Small Contracts,Agincare UK Nutfield,1451.6, 24-Oct-2014
92,Revenue,CCHD,Home Care - Elderly - North,Other Small Contracts,Agincare UK Nutfield,1466.8, 22-Oct-2014
93,Revenue,CCHD,Home Care - Elderly - North,Other Small Contracts,Agincare UK Nutfield,1421.2, 31-Oct-2014
94,Revenue,CCHD,S117 Placements PCT,Permanent Residential,Alexandra House,6977.4, 28-Oct-2014
95,Revenue,CCHD,Bed Purchasing - South,Permanent Residential,Alexandra House,50408.7, 28-Oct-2014
96,Revenue,CCHD,Section 117 Placements MH Younger,Permanent Residential,Alexandra House,6495.6, 28-Oct-2014
97,Revenue,CCHD,Home Care - Elderly - South,Other Small Contracts,AliMo Care Ltd,714.5, 01-Oct-2014
98,Revenue,CCHD,Home Care - Elderly - North,Other Small Contracts,AliMo Care Ltd,1738.65, 01-Oct-2014
99,Revenue,CCHD,Home Care - Elderly - South,Other Small Contracts,AliMo Care Ltd,739.27, 08-Oct-2014
100,Revenue,CCHD,Home Care - Elderly - North,Other Small Contracts,AliMo Care Ltd,1268.45, 08-Oct-2014
101,Revenue,CCHD,Home Care - Elderly - South,Other Small Contracts,AliMo Care Ltd,755.79, 15-Oct-2014
102,Revenue,CCHD,Home Care - Elderly - North,Other Small Contracts,AliMo Care Ltd,757.82, 15-Oct-2014
103,Revenue,CCHD,Home Care - Elderly - South,Other Small Contracts,AliMo Care Ltd,751.66, 22-Oct-2014
104,Revenue,CCHD,Home Care - Elderly - North,Other Small Contracts,AliMo Care Ltd,497.63, 22-Oct-2014
105,Revenue,CCHD,Home Care - Elderly - South,Other Small Contracts,AliMo Care Ltd,1127.76, 29-Oct-2014
106,Revenue,CCHD,Home Care - Elderly - North,Other Small Contracts,AliMo Care Ltd,497.63, 29-Oct-2014
107,Revenue,CCHD,Home Care - Elderly - North,Other Small Contracts,AliMo Care Ltd,1492.89, 29-Oct-2014
108,Revenue,CCHD,SLA Grants - Support Serv,Grants to Voluntary Bodies,Alive Activities Limited,7905, 03-Oct-2014
109,Revenue,CCHD,Bed Purchasing - Southmead Hospital,Permanent Nursing,Ambleside Nusing Ho!,1443.84, 28-Oct-2014
110,Revenue,CCHD,Bed purchasing - Under 65s PWLD - North,Permanent Residential,Ark Care Homes Ltd,10314.64, 28-Oct-2014
111,Revenue,CCHD,Bed Purchasing - South,Permanent Residential,Ashbourne House Care Home Limited,1122.44, 28-Oct-2014
112,Revenue,CCHD,Home Care - Elderly - South,Other Small Contracts,Ashley Commercial Finance Ltd,524.04, 02-Oct-2014
113,Revenue,CCHD,Home Care - Elderly - North,Other Small Contracts,Ashley Commercial Finance Ltd,3557.12, 02-Oct-2014
114,Revenue,CCHD,Home Care - Elderly - South,Other Small Contracts,Ashley Commercial Finance Ltd,516.1, 27-Oct-2014
115,Revenue,CCHD,Home Care - Elderly - North,Other Small Contracts,Ashley Commercial Finance Ltd,3434.05, 27-Oct-2014
116,Revenue,CCHD,Home Care - Elderly - South,Other Small Contracts,Ashley Commercial Finance Ltd,531.98, 27-Oct-2014
117,Revenue,CCHD,Home Care - Elderly - North,Other Small Contracts,Ashley Commercial Finance Ltd,3418.17, 27-Oct-2014
118,Revenue,CCHD,DAT Treatment,Rent,Ashville Asset Management Limited,2050.87, 03-Oct-2014
119,Revenue,CCHD,Bed purchasing - Under 65s PWLD - North,Permanent Residential,Aspects 2 Limited,6358.44, 28-Oct-2014
120,Revenue,CCHD,Supporting People Programme,Grants to Voluntary Bodies,Aspects and Milestones Trust,3219.58, 01-Oct-2014
121,Revenue,CCHD,Supporting People Programme,Grants to Voluntary Bodies,Aspects and Milestones Trust,1614.17, 01-Oct-2014
122,Revenue,CCHD,Supporting People Programme,Grants to Voluntary Bodies,Aspects and Milestones Trust,2450.08, 01-Oct-2014
123,Revenue,CCHD,Supporting People Programme,Grants to Voluntary Bodies,Aspects and Milestones Trust,3219.58, 31-Oct-2014
124,Revenue,CCHD,Supporting People Programme,Grants to Voluntary Bodies,Aspects and Milestones Trust,1614.17, 31-Oct-2014
125,Revenue,CCHD,Supporting People Programme,Grants to Voluntary Bodies,Aspects and Milestones Trust,2450.08, 31-Oct-2014
126,Revenue,CCHD,Bed Purchasing - Under 65s PWLD - South,Permanent Residential,Autism Specialised Care Homes,5611.16, 28-Oct-2014
127,Revenue,CCHD,Younger Adult Mental Health,Health Services (Third Party Payments),Avon & Wiltshire Mental Health,5000, 10-Oct-2014
128,Revenue,CCHD,Purchase of Non-Res Care - North,Day Care / Social Activities,Avon Autistic Foundation Limited,2301.6, 15-Oct-2014
129,Revenue,CCHD,Purchase of Non-Res Care - North,Day Care / Social Activities,Avon Autistic Foundation Limited,3378.04, 15-Oct-2014
130,Revenue,CCHD,"Strategy, Advice and Public Protection",Other Supplies & Services,Avon Local Pharmaceutical Committee,1470, 16-Oct-2014
131,Revenue,CCHD,"Strategy, Advice and Public Protection",Other Supplies & Services,Avon Local Pharmaceutical Committee,1980, 16-Oct-2014
132,Revenue,CCHD,S75 CCG Interim Beds,Permanent Nursing,Avon Lodge Care Centre,10200, 28-Oct-2014
133,Revenue,CCHD,Day Care - North,Day Care / Social Activities,Avonedge Limited,1200, 09-Oct-2014
134,Revenue,CCHD,Purchase of RAC places,Other L.A.'s - General,Bath & North East Somerset Dist Council,6055.76, 03-Oct-2014
135,Revenue,CCHD,Bed Purchasing - Southmead Hospital,Permanent Nursing,Bayview Nursing & Residential Home,14835.25, 28-Oct-2014
136,Revenue,CCHD,Bed Purchasing - Elderly S117- North,Permanent Nursing,Beaufort Grange Care Home,2968.89, 28-Oct-2014
137,Revenue,CCHD,Bed Purchasing - North,Permanent Nursing,Beaufort Grange Care Home,1054.33, 28-Oct-2014
138,Revenue,CCHD,Bed Purchasing - North,Permanent Residential,Beaufort House,1900.32, 28-Oct-2014
139,Revenue,CCHD,Bed Purchasing - North,Permanent Residential,Beaufort House,1674.72, 28-Oct-2014
140,Revenue,CCHD,Bed Purchasing - North,Permanent Residential,Beaufort House,1824.2, 28-Oct-2014
141,Revenue,CCHD,Bed Purchasing - North,Respite Planned - Residential,Beaufort House,2402.86, 28-Oct-2014
142,Revenue,CCHD,Bed Purchasing - North,Respite Planned - Residential,Beaufort House,1740, 28-Oct-2014
143,Revenue,CCHD,Bed Purchasing - North,Permanent Residential,Beaufort House,1390.4, 28-Oct-2014
144,Revenue,CCHD,Bed Purchasing - South,Permanent Residential,Beaufort House,1434.24, 28-Oct-2014
145,Revenue,CCHD,Bed Purchasing - South,Permanent Residential,Beaufort House,15214.5, 28-Oct-2014
146,Revenue,CCHD,Bed Purchasing - North,Permanent Residential,Beaufort House,1800.08, 28-Oct-2014
147,Revenue,CCHD,Bed Purchasing - Southmead Hospital,Permanent Residential,Beaufort House,2320, 28-Oct-2014
148,Revenue,CCHD,Bed Purchasing - Southmead Hospital,Permanent Residential,Beaufort House,7291.43, 28-Oct-2014
149,Revenue,CCHD,Bed Purchasing - Southmead Hospital,Permanent Residential,Beaufort House,2320, 28-Oct-2014
150,Revenue,CCHD,Bed Purchasing - North,Permanent Residential,Beaufort House,1860.64, 28-Oct-2014
151,Revenue,CCHD,Bed Purchasing - North,Permanent Residential,Beaufort House,1755.08, 28-Oct-2014
152,Revenue,CCHD,Bed purchasing - Elderly MH - North,Permanent Residential,Beaufort House,1706.44, 28-Oct-2014
153,Revenue,CCHD,Bed Purchasing - South,Permanent Residential,Bedrock Lodge,3151.8, 28-Oct-2014
154,Revenue,CCHD,Bed Purchasing - South,Permanent Residential,Bedrock Lodge,3471.2, 28-Oct-2014
155,Revenue,CCHD,Bed purchasing - Elderly PWLD - South,Permanent Residential,Bedrock Lodge,2949.44, 28-Oct-2014
156,Revenue,CCHD,Section 117 Placements MH Younger,Permanent Residential,Bedrock Lodge,1864.88, 28-Oct-2014
157,Revenue,CCHD,Bed Purchasing - North,Permanent Nursing,Beech House,2378.48, 28-Oct-2014
158,Revenue,CCHD,Swift Dump Code,Permanent Residential,Beech House,3054.75, 28-Oct-2014
159,Revenue,CCHD,South Glos Users in South Glos Homes,Permanent Nursing,Beech House,1742.56, 28-Oct-2014
160,Revenue,CCHD,Bed Purchasing - North,Permanent Nursing,Beech House,1320.2, 28-Oct-2014
161,Revenue,CCHD,Bed purchasing - Elderly MH - North,Permanent Nursing,Beech House,1653.8, 28-Oct-2014
162,Revenue,CCHD,South Glos Users in South Glos Homes,Permanent Nursing,Beech House,2328.69, 28-Oct-2014
163,Revenue,CCHD,Bed Purchasing - North,Permanent Nursing,Beech House,1352.2, 28-Oct-2014
164,Revenue,CCHD,Bed Purchasing - North,Permanent Nursing,Beech House,879.56, 28-Oct-2014
165,Revenue,CCHD,Bed Purchasing - North,Permanent Residential,Beech House,1911.24, 28-Oct-2014
166,Revenue,CCHD,Bed Purchasing - North,Permanent Nursing,Beech House,2127.2, 28-Oct-2014
167,Revenue,CCHD,South Glos Users in South Glos Homes,Permanent Nursing,Beech House,1378.2, 28-Oct-2014
168,Revenue,CCHD,Bed Purchasing - North,Permanent Residential,Beech House,1394.08, 28-Oct-2014
169,Revenue,CCHD,Bed Purchasing - Elderly S117- North,Permanent Nursing,Blossom Field,1992, 28-Oct-2014
170,Revenue,CCHD,Bed Purchasing - North,Permanent Nursing,Blossom Field,1935.64, 28-Oct-2014
171,Revenue,CCHD,Bed Purchasing - North,Permanent Nursing,Blossom Field,1839.4, 28-Oct-2014
172,Revenue,CCHD,South Glos Users in South Glos Homes,Permanent Nursing,Blossom Field,3089.08, 28-Oct-2014
173,Revenue,CCHD,Bed Purchasing - North,Permanent Nursing,Blossom Field,2337, 28-Oct-2014
174,Revenue,CCHD,Bed Purchasing - North,Permanent Nursing,Blossom Field,2119.13, 28-Oct-2014
175,Revenue,CCHD,Bed Purchasing - North,Permanent Nursing,Blossom Field,508.26, 28-Oct-2014
176,Revenue,CCHD,Bed Purchasing - North,Permanent Nursing,Blossom Field,1425.12, 28-Oct-2014
177,Revenue,CCHD,Bed Purchasing - North,Permanent Nursing,Blossom Field,18037.89, 28-Oct-2014
178,Revenue,CCHD,Bed Purchasing - South,Permanent Nursing,Blossom Field,1909.84, 28-Oct-2014
179,Revenue,CCHD,Bed Purchasing - Southmead Hospital,Permanent Nursing,Blossom Field,2545.44, 28-Oct-2014
180,Revenue,CCHD,Bed Purchasing - Southmead Hospital,Permanent Nursing,Blossom Field,10934.81, 28-Oct-2014
181,Revenue,CCHD,Bed Purchasing - North,Permanent Nursing,Blossom Fields,2588.96, 22-Oct-2014
182,Revenue,CCHD,Bed Purchasing - Southmead Hospital,Permanent Nursing,Blossom Fields,2093.16, 22-Oct-2014
183,Revenue,CCHD,Bed Purchasing - North,Permanent Nursing,Blossom Fields,2588.96, 22-Oct-2014
184,Revenue,CCHD,Bed Purchasing - North,Permanent Nursing,Blossom Fields,1416.57, 22-Oct-2014
185,Revenue,CCHD,Bed Purchasing - North,Permanent Nursing,Blossom Fields,2093.16, 01-Oct-2014
186,Revenue,CCHD,Bed Purchasing - Southmead Hospital,Permanent Nursing,Blossom Fields,2093.16, 01-Oct-2014
187,Revenue,CCHD,Bed Purchasing - North,Permanent Nursing,Blossom Fields,2588.96, 01-Oct-2014
188,Revenue,CCHD,Training - Adult Services,Training Expenses,Bob Dawson,975, 14-Oct-2014
189,Revenue,CCHD,Sexual Health,Other Small Contracts,Boots UK Ltd,2310.85, 13-Oct-2014
190,Revenue,CCHD,Bed purchasing - S28A Under 65 - South,Permanent Residential,Bradbury House,4322.88, 24-Oct-2014
191,Revenue,CCHD,Bed Purchasing - North,Permanent Residential,Bradbury House,70572.34, 28-Oct-2014
192,Revenue,CCHD,User Involvement,Other Supplies & Services,Bradley Bailey,2700, 10-Oct-2014
193,Revenue,CCHD,Bed Purchasing - North,Permanent Residential,Bradley House,1533.8, 28-Oct-2014
194,Revenue,CCHD,Home Care - Elderly - North,Other Small Contracts,Bradley House Home Care Services,1298.08, 02-Oct-2014
195,Revenue,CCHD,Day Care - North,Day Care / Social Activities,Bradley House Home Care Services,102.48, 02-Oct-2014
196,Revenue,CCHD,Home Care - Elderly - North,Other Small Contracts,Bradley House Home Care Services,1310.89, 24-Oct-2014
197,Revenue,CCHD,Day Care - North,Day Care / Social Activities,Bradley House Home Care Services,102.48, 24-Oct-2014
198,Revenue,CCHD,Home Care - Elderly - North,Other Small Contracts,Bradley House Home Care Services,1263.92, 24-Oct-2014
199,Revenue,CCHD,Day Care - North,Day Care / Social Activities,Bradley House Home Care Services,102.48, 24-Oct-2014
200,Revenue,CCHD,Home Care - Elderly - North,Other Small Contracts,Bradley House Home Care Services,1310.89, 29-Oct-2014
201,Revenue,CCHD,Day Care - North,Day Care / Social Activities,Bradley House Home Care Services,98.21, 29-Oct-2014
202,Revenue,CCHD,Home Care - Elderly - North,Other Small Contracts,Bradley House Home Care Services,1310.89, 29-Oct-2014
203,Revenue,CCHD,Day Care - North,Day Care / Social Activities,Bradley House Home Care Services,102.48, 29-Oct-2014
204,Revenue,CCHD,Home Care - Elderly - North,Other Small Contracts,Bradley House Home Care Services,969.29, 31-Oct-2014
205,Revenue,CCHD,Day Care - North,Day Care / Social Activities,Bradley House Home Care Services,102.48, 31-Oct-2014
206,Revenue,CCHD,Alexandra Way,"Provisions (Food, etc)",Brake Bros,535.28, 01-Oct-2014
207,Revenue,CCHD,Alexandra Way,"Provisions (Food, etc)",Brake Bros,522.1, 02-Oct-2014
208,Revenue,CCHD,Woodleaze,"Provisions (Food, etc)",Brake Bros,561.1, 02-Oct-2014
209,Revenue,CCHD,Alexandra Way,"Provisions (Food, etc)",Brake Bros,520.65, 08-Oct-2014
210,Revenue,CCHD,Alexandra Way,"Provisions (Food, etc)",Brake Bros,515.88, 22-Oct-2014
211,Revenue,CCHD,Woodleaze,"Provisions (Food, etc)",Brake Bros,514.92, 22-Oct-2014
212,Revenue,CCHD,South Glos Users in South Glos Homes,Permanent Nursing,Brandon Trust,5724.76, 28-Oct-2014
213,Revenue,CCHD,South Glos Users in South Glos Homes,Permanent Nursing,Brandon Trust,5861.93, 28-Oct-2014
214,Revenue,CCHD,Bed Purchasing - Under 65s PWLD - South,Permanent Nursing,Brandon Trust,5036.84, 28-Oct-2014
215,Revenue,CCHD,Bed Purchasing - S28A - Over 65- North,Permanent Residential,Brandon Trust,3097.08, 28-Oct-2014
216,Revenue,CCHD,Bed Purchasing - Under 65s PWLD - South,Permanent Residential,Brandon Trust,10268.44, 28-Oct-2014
217,Revenue,CCHD,Bed Purchasing - Under 65s PWLD - South,Permanent Residential,Brandon Trust,4036.12, 28-Oct-2014
218,Revenue,CCHD,Bed Purchasing - South,Permanent Residential,Brandon Trust,30161.03, 28-Oct-2014
219,Revenue,CCHD,Bed Purchasing - LD S28A- Over 65- South,Permanent Nursing,Brandon Trust,4860.44, 28-Oct-2014
220,Revenue,CCHD,Bed Purchasing - Under 65s PWLD - South,Permanent Nursing,Brandon Trust,5036.84, 28-Oct-2014
221,Revenue,CCHD,Bed purchasing - S28A Under 65 - South,Permanent Nursing,Brandon Trust,5359.12, 28-Oct-2014
222,Revenue,CCHD,Bed purchasing - S28A Under 65 - South,Permanent Residential,Brandon Trust,4901.16, 28-Oct-2014
223,Revenue,CCHD,Bed purchasing - S28A Under 65 - South,Permanent Nursing,Brandon Trust,5359.12, 28-Oct-2014
224,Revenue,CCHD,Bed Purchasing - LD S28A- Over 65- South,Permanent Nursing,Brandon Trust,5182.72, 28-Oct-2014
225,Revenue,CCHD,Bed Purchasing - LD S28A- Over 65- South,Permanent Nursing,Brandon Trust,4849.76, 28-Oct-2014
226,Revenue,CCHD,Bed Purchasing - South,Permanent Residential,Brandon Trust,3273.48, 28-Oct-2014
227,Revenue,CCHD,Bed Purchasing - South,Permanent Residential,Brandon Trust,24251.94, 28-Oct-2014
228,Revenue,CCHD,Bed Purchasing - S28A - Over 65- North,Permanent Nursing,Brandon Trust,4810.28, 28-Oct-2014
229,Revenue,CCHD,Bed purchasing - S28A Under 65 - South,Permanent Residential,Brandon Trust,5202.76, 28-Oct-2014
230,Revenue,CCHD,Bed purchasing - S28A Under 65 - South,Permanent Residential,Brandon Trust,5258.44, 28-Oct-2014
231,Revenue,CCHD,Bed Purchasing - S28A - Over 65- North,Permanent Residential,Brandon Trust,10996.28, 28-Oct-2014
232,Revenue,CCHD,Bed purchasing - S28A Under 65 - South,Permanent Nursing,Brandon Trust,5399.12, 28-Oct-2014
233,Revenue,CCHD,Bed purchasing - S28A Under 65 - South,Permanent Nursing,Brandon Trust,5359.12, 28-Oct-2014
234,Revenue,CCHD,Bed purchasing -S28A  Under 65 - North,Permanent Nursing,Brandon Trust,4783.16, 28-Oct-2014
235,Revenue,CCHD,Bed purchasing - S28A Under 65 - South,Permanent Residential,Brandon Trust,5258.44, 28-Oct-2014
236,Revenue,CCHD,Bed Purchasing - LD S28A- Over 65- South,Permanent Residential,Brandon Trust,4748.2, 28-Oct-2014
237,Revenue,CCHD,Bed Purchasing - South,Permanent Residential,Brandon Trust,33208.03, 28-Oct-2014
238,Revenue,CCHD,Bed Purchasing - North,Respite Planned - Residential,Bridge House Care Home,1160, 28-Oct-2014
239,Revenue,CCHD,Bed Purchasing - North,Permanent Residential,Bridge House Care Home,7932.81, 28-Oct-2014
240,Revenue,CCHD,Swift Dump Code,Permanent Residential,Bridge House Care Home,1846.67, 28-Oct-2014
241,Revenue,CCHD,Bed Purchasing - North,Permanent Residential,Bridge House Care Home,1513, 28-Oct-2014
242,Revenue,CCHD,Bed Purchasing - North,Permanent Residential,Bridge House Care Home,1167.32, 28-Oct-2014
243,Revenue,CCHD,Bed Purchasing - South,Permanent Residential,Bridge House Care Home,1444.6, 28-Oct-2014
244,Revenue,CCHD,Bed Purchasing - North,Respite Planned - Residential,Bridge House Care Home,7291.43, 28-Oct-2014
245,Revenue,CCHD,Bed Purchasing - Elderly MH - South,Permanent Residential,Brightbow,2095.28, 28-Oct-2014
246,Revenue,CCHD,MH Purchasing - Younger,Permanent Residential,Brightbow,1493.96, 28-Oct-2014
247,Revenue,CCHD,Older People's Commissioned Se,Grants to Voluntary Bodies,Bristol Area Stroke Foundation,5000, 01-Oct-2014
248,Revenue,CCHD,Supported Living - North,Private & Voluntary Home Care,Bristol Houses UK Limited,1056.6, 15-Oct-2014
249,Revenue,CCHD,Supported Living - North,Private & Voluntary Home Care,Bristol Houses UK Limited,575.32, 15-Oct-2014
250,Revenue,CCHD,Supported Living - North,Private & Voluntary Home Care,Bristol Houses UK Limited,968.96, 15-Oct-2014
251,Revenue,CCHD,Day Care - North,Day Care / Social Activities,Bristol Houses UK Limited,575.32, 10-Oct-2014
252,Revenue,CCHD,Bed and Breakfast,Bed & Breakfast,Bristol Housing & Support Limited,1610, 06-Oct-2014
253,Revenue,CCHD,Bed and Breakfast,Bed & Breakfast,Bristol Housing & Support Limited,1450, 16-Oct-2014
254,Revenue,CCHD,Bed and Breakfast,Bed & Breakfast,Bristol Housing & Support Limited,1730, 20-Oct-2014
255,Revenue,CCHD,Bed and Breakfast,Bed & Breakfast,Bristol Housing & Support Limited,1890, 27-Oct-2014
256,Revenue,CCHD,Alexandra Way,Water Charges,Bristol Wessex Billing Services Limited,4959.98, 22-Oct-2014
257,Revenue,CCHD,Home Care - Elderly - North,Day Care / Social Activities,Britannia House,686.16, 28-Oct-2014
258,Revenue,CCHD,Home Care - Elderly - South,Day Care / Social Activities,Britannia House,914.88, 28-Oct-2014
259,Revenue,CCHD,Home Care - Elderly - North,Day Care / Social Activities,Britannia House,686.16, 28-Oct-2014
260,Revenue,CCHD,Home Care - Elderly - North,Day Care / Social Activities,Britannia House,914.88, 28-Oct-2014
261,Revenue,CCHD,Home Care - Elderly - South,Day Care / Social Activities,Britannia House,686.16, 28-Oct-2014
262,Revenue,CCHD,Home Care - Elderly - North,Day Care / Social Activities,Britannia House,914.88, 28-Oct-2014
263,Revenue,CCHD,Home Care - Elderly - South,Day Care / Social Activities,Britannia House,571.8, 28-Oct-2014
264,Revenue,CCHD,Home Care - Elderly - South,Day Care / Social Activities,Britannia House,1143.6, 28-Oct-2014
265,Revenue,CCHD,Home Care - Elderly - South,Day Care / Social Activities,Britannia House,686.16, 28-Oct-2014
266,Revenue,CCHD,Home Care - Elderly - South,Day Care / Social Activities,Britannia House,686.16, 28-Oct-2014
267,Revenue,CCHD,Home Care - Elderly - South,Day Care / Social Activities,Britannia House,686.16, 28-Oct-2014
268,Revenue,CCHD,Leadership and Business Support,Professional Fees,Brockbank McGill Associates,1300, 31-Oct-2014
269,Revenue,CCHD,Supporting People Programme,Grants to Voluntary Bodies,Bromford Housing Group,14050.25, 01-Oct-2014
270,Revenue,CCHD,Supporting People Programme,Grants to Voluntary Bodies,Bromford Housing Group,14050.25, 31-Oct-2014
271,Revenue,CCHD,Sexual Health,Other Small Contracts,Brook Advisory Centre (Avon),17955, 08-Oct-2014
272,Revenue,CCHD,Sexual Health,Other Small Contracts,Brook Advisory Centre (Avon),11382, 08-Oct-2014
273,Revenue,CCHD,South Glos Users in South Glos Homes,Permanent Nursing,Brunel Care  Saffron Gardens,2851.46, 28-Oct-2014
274,Revenue,CCHD,Bed Purchasing - North,Permanent Nursing,Brunel Care  Saffron Gardens,631.52, 28-Oct-2014
275,Revenue,CCHD,Bed Purchasing - North,Permanent Residential,Brunel Care  Saffron Gardens,976.8, 28-Oct-2014
276,Revenue,CCHD,Bed Purchasing - Southmead Hospital,Permanent Nursing,Brunel Care  Saffron Gardens,8376.08, 28-Oct-2014
277,Revenue,CCHD,Bed Purchasing - Southmead Hospital,Permanent Nursing,Brunel Care  Saffron Gardens,16716.83, 28-Oct-2014
278,Revenue,CCHD,South Glos Users in South Glos Homes,Permanent Nursing,Brunel Care  Saffron Gardens,7323.84, 28-Oct-2014
279,Revenue,CCHD,Bed Purchasing - Southmead Hospital,Permanent Residential,Brunel Care  Saffron Gardens,1270.68, 28-Oct-2014
280,Revenue,CCHD,Bed Purchasing - Elderly MH - South,Permanent Nursing,Brunel Care  Saffron Gardens,2072.32, 28-Oct-2014
281,Revenue,CCHD,Bed Purchasing - Southmead Hospital,Permanent Nursing,Brunel Care  Saffron Gardens,1391.72, 28-Oct-2014
282,Revenue,CCHD,Bed Purchasing - South,Permanent Nursing,Brunel Care  Saffron Gardens,2760.03, 28-Oct-2014
283,Revenue,CCHD,Bed Purchasing - South,Permanent Residential,Brunel Care  Saffron Gardens,1296.84, 28-Oct-2014
284,Revenue,CCHD,Home Care - Elderly - North,Private & Voluntary Home Care,Brunelcare,23160, 06-Oct-2014
285,Revenue,CCHD,Home Care - Elderly - North,Private & Voluntary Home Care,Brunelcare,23160, 13-Oct-2014
286,Revenue,CCHD,Home Care - Elderly - North,Private & Voluntary Home Care,Brunelcare,23160, 20-Oct-2014
287,Revenue,CCHD,Home Care - Elderly - North,Private & Voluntary Home Care,Brunelcare,23160, 27-Oct-2014
288,Revenue,CCHD,South Glos Users in South Glos Homes,Permanent Nursing,Brunelcare,506.93, 03-Oct-2014
289,Revenue,CCHD,Bed Purchasing - Elderly MH - South,Permanent Nursing,Brunelcare,2000.55, 03-Oct-2014
290,Revenue,CCHD,South Glos Users in South Glos Homes,Permanent Nursing,Brunelcare,506.93, 03-Oct-2014
291,Revenue,CCHD,Bed Purchasing - South,Permanent Nursing,Brunelcare,2046.35, 03-Oct-2014
292,Revenue,CCHD,South Glos Users in South Glos Homes,Permanent Nursing,Brunelcare,506.93, 03-Oct-2014
293,Revenue,CCHD,Bed Purchasing - South,Permanent Nursing,Brunelcare,1668.89, 03-Oct-2014
294,Revenue,CCHD,South Glos Users in South Glos Homes,Permanent Nursing,Brunelcare,506.93, 03-Oct-2014
295,Revenue,CCHD,Bed Purchasing - Elderly MH - South,Permanent Nursing,Brunelcare,2042.56, 03-Oct-2014
296,Revenue,CCHD,Bed Purchasing - South,Permanent Nursing,Brunelcare,2101.99, 03-Oct-2014
297,Revenue,CCHD,South Glos Users in South Glos Homes,Permanent Nursing,Brunelcare,506.93, 03-Oct-2014
298,Revenue,CCHD,Bed Purchasing - South,Permanent Nursing,Brunelcare,1361.6, 03-Oct-2014
299,Revenue,CCHD,South Glos Users in South Glos Homes,Permanent Nursing,Brunelcare,506.93, 03-Oct-2014
300,Revenue,CCHD,Bed Purchasing - Elderly MH - South,Permanent Nursing,Brunelcare,2086.22, 03-Oct-2014
301,Revenue,CCHD,South Glos Users in South Glos Homes,Permanent Nursing,Brunelcare,506.93, 03-Oct-2014
302,Revenue,CCHD,Bed Purchasing - South,Permanent Nursing,Brunelcare,2101.76, 03-Oct-2014
303,Revenue,CCHD,South Glos Users in South Glos Homes,Permanent Nursing,Brunelcare,506.93, 03-Oct-2014
304,Revenue,CCHD,Bed Purchasing - Elderly S117- North,Permanent Nursing,Brunelcare,2161.69, 03-Oct-2014
305,Revenue,CCHD,South Glos Users in South Glos Homes,Permanent Nursing,Brunelcare,506.93, 03-Oct-2014
306,Revenue,CCHD,Bed Purchasing - Elderly S117- North,Permanent Nursing,Brunelcare,2668.62, 03-Oct-2014
307,Revenue,CCHD,Bed purchasing - Elderly S117 - South,Permanent Nursing,Brunelcare,2668.62, 03-Oct-2014
308,Revenue,CCHD,South Glos Users in South Glos Homes,Permanent Nursing,Brunelcare,506.93, 03-Oct-2014
309,Revenue,CCHD,Bed Purchasing - Southmead Hospital,Permanent Nursing,Brunelcare,1792.78, 03-Oct-2014
310,Revenue,CCHD,South Glos Users in South Glos Homes,Permanent Nursing,Brunelcare,506.93, 03-Oct-2014
311,Revenue,CCHD,Bed Purchasing - Southmead Hospital,Permanent Nursing,Brunelcare,943.45, 03-Oct-2014
312,Revenue,CCHD,South Glos Users in South Glos Homes,Permanent Nursing,Brunelcare,506.93, 03-Oct-2014
313,Revenue,CCHD,Bed Purchasing - Southmead Hospital,Permanent Nursing,Brunelcare,1748.34, 03-Oct-2014
314,Revenue,CCHD,South Glos Users in South Glos Homes,Permanent Nursing,Brunelcare,506.93, 03-Oct-2014
315,Revenue,CCHD,Bed Purchasing - South,Permanent Nursing,Brunelcare,1361.6, 03-Oct-2014
316,Revenue,CCHD,South Glos Users in South Glos Homes,Permanent Nursing,Brunelcare,506.93, 03-Oct-2014
317,Revenue,CCHD,Bed Purchasing - South,Permanent Nursing,Brunelcare,1566.17, 03-Oct-2014
318,Revenue,CCHD,South Glos Users in South Glos Homes,Permanent Nursing,Brunelcare,506.93, 03-Oct-2014
319,Revenue,CCHD,Bed Purchasing - South,Permanent Nursing,Brunelcare,1486.26, 03-Oct-2014
320,Revenue,CCHD,South Glos Users in South Glos Homes,Permanent Nursing,Brunelcare,506.93, 03-Oct-2014
321,Revenue,CCHD,Bed Purchasing - Southmead Hospital,Permanent Nursing,Brunelcare,1184.96, 03-Oct-2014
322,Revenue,CCHD,South Glos Users in South Glos Homes,Permanent Nursing,Brunelcare,506.93, 03-Oct-2014
323,Revenue,CCHD,Bed Purchasing - Southmead Hospital,Permanent Nursing,Brunelcare,1868.53, 03-Oct-2014
324,Revenue,CCHD,Bed Purchasing - South,Permanent Nursing,Brunelcare,1868.53, 03-Oct-2014
325,Revenue,CCHD,South Glos Users in South Glos Homes,Permanent Nursing,Brunelcare,506.93, 03-Oct-2014
326,Revenue,CCHD,Bed Purchasing - North,Permanent Nursing,Brunelcare,1868.53, 03-Oct-2014
327,Revenue,CCHD,South Glos Users in South Glos Homes,Permanent Nursing,Brunelcare,506.93, 03-Oct-2014
328,Revenue,CCHD,Bed Purchasing - Southmead Hospital,Permanent Nursing,Brunelcare,1868.53, 03-Oct-2014
329,Revenue,CCHD,South Glos Users in South Glos Homes,Permanent Nursing,Brunelcare,506.93, 03-Oct-2014
330,Revenue,CCHD,Bed Purchasing - Southmead Hospital,Permanent Nursing,Brunelcare,1758.08, 03-Oct-2014
331,Revenue,CCHD,South Glos Users in South Glos Homes,Permanent Nursing,Brunelcare,506.93, 03-Oct-2014
332,Revenue,CCHD,Bed purchasing - Elderly S117 - South,Permanent Nursing,Brunelcare,2668.62, 03-Oct-2014
333,Revenue,CCHD,Bed Purchasing - Southmead Hospital,Permanent Nursing,Brunelcare,1525.53, 03-Oct-2014
334,Revenue,CCHD,Bed Purchasing - South,Permanent Nursing,Brunelcare,1868.53, 03-Oct-2014
335,Revenue,CCHD,Bed Purchasing - South,Permanent Nursing,Brunelcare,2435.15, 03-Oct-2014
336,Revenue,CCHD,South Glos Users in South Glos Homes,Permanent Nursing,Brunelcare,887.12, 03-Oct-2014
337,Revenue,CCHD,South Glos Users in South Glos Homes,Permanent Nursing,Brunelcare,3326.7, 03-Oct-2014
338,Revenue,CCHD,Bed Purchasing - South,Permanent Nursing,Brunelcare,2101.99, 03-Oct-2014
339,Revenue,CCHD,S75 CCG Interim Beds,Permanent Nursing,Brunelcare,11400, 01-Oct-2014
340,Revenue,CCHD,S75 CCG Interim Beds,Permanent Nursing,Brunelcare,11400, 06-Oct-2014
341,Revenue,CCHD,S75 CCG Interim Beds,Permanent Nursing,Brunelcare,11400, 22-Oct-2014
342,Revenue,CCHD,Home Care - Elderly - South,Other Small Contracts,Brunelcare,3178.32, 02-Oct-2014
343,Revenue,CCHD,Home Care - Elderly - North,Other Small Contracts,Brunelcare,3296.64, 02-Oct-2014
344,Revenue,CCHD,Day Care - South,Day Care / Social Activities,Brunelcare,24.48, 02-Oct-2014
345,Revenue,CCHD,Day Care - North,Day Care / Social Activities,Brunelcare,53.04, 02-Oct-2014
346,Revenue,CCHD,Home Care - Elderly - South,Other Small Contracts,Brunelcare,3104.88, 02-Oct-2014
347,Revenue,CCHD,Home Care - Elderly - North,Other Small Contracts,Brunelcare,3170.16, 02-Oct-2014
348,Revenue,CCHD,Day Care - South,Day Care / Social Activities,Brunelcare,28.56, 02-Oct-2014
349,Revenue,CCHD,Day Care - North,Day Care / Social Activities,Brunelcare,53.04, 02-Oct-2014
350,Revenue,CCHD,Home Care - Elderly - South,Other Small Contracts,Brunelcare,3153.84, 02-Oct-2014
351,Revenue,CCHD,Home Care - Elderly - North,Other Small Contracts,Brunelcare,3170.16, 02-Oct-2014
352,Revenue,CCHD,Day Care - South,Day Care / Social Activities,Brunelcare,28.56, 02-Oct-2014
353,Revenue,CCHD,Day Care - North,Day Care / Social Activities,Brunelcare,48.96, 02-Oct-2014
354,Revenue,CCHD,Home Care - Elderly - South,Other Small Contracts,Brunelcare,2994.72, 31-Oct-2014
355,Revenue,CCHD,Home Care - Elderly - North,Other Small Contracts,Brunelcare,3223.2, 31-Oct-2014
356,Revenue,CCHD,Day Care - South,Day Care / Social Activities,Brunelcare,32.64, 31-Oct-2014
357,Revenue,CCHD,Day Care - North,Day Care / Social Activities,Brunelcare,53.04, 31-Oct-2014
358,Revenue,CCHD,Home Care - Elderly - South,Other Small Contracts,Brunelcare,2754, 31-Oct-2014
359,Revenue,CCHD,Home Care - Elderly - North,Other Small Contracts,Brunelcare,3255.84, 31-Oct-2014
360,Revenue,CCHD,Day Care - South,Day Care / Social Activities,Brunelcare,28.56, 31-Oct-2014
361,Revenue,CCHD,Day Care - North,Day Care / Social Activities,Brunelcare,48.96, 31-Oct-2014
362,Revenue,CCHD,Home Care - Elderly - South,Other Small Contracts,Brunelcare,2937.6, 31-Oct-2014
363,Revenue,CCHD,Home Care - Elderly - North,Other Small Contracts,Brunelcare,3198.72, 31-Oct-2014
364,Revenue,CCHD,Day Care - South,Day Care / Social Activities,Brunelcare,24.48, 31-Oct-2014
365,Revenue,CCHD,Day Care - North,Day Care / Social Activities,Brunelcare,48.96, 31-Oct-2014
366,Revenue,CCHD,Home Care - Elderly - South,Other Small Contracts,Brunelcare,2892.72, 31-Oct-2014
367,Revenue,CCHD,Home Care - Elderly - North,Other Small Contracts,Brunelcare,3170.16, 31-Oct-2014
368,Revenue,CCHD,Day Care - South,Day Care / Social Activities,Brunelcare,24.48, 31-Oct-2014
369,Revenue,CCHD,Day Care - North,Day Care / Social Activities,Brunelcare,48.96, 31-Oct-2014
370,Revenue,CCHD,Information Systems - Software,Computer Equipment - Purchase,BT Global Services Solutions,984.77, 22-Oct-2014
371,Revenue,CCHD,Bed Purchasing - Southmead Hospital,Permanent Nursing,Bupa Care Services  Bridge House,1902.4, 28-Oct-2014
372,Revenue,CCHD,Bed Purchasing - Southmead Hospital,Permanent Nursing,Bupa Care Services  Bridge House,1674.48, 28-Oct-2014
373,Revenue,CCHD,Bed Purchasing - North,Permanent Nursing,Bupa Care Services  Bridge House,5938.28, 28-Oct-2014
374,Revenue,CCHD,South Glos Users in all other LA Homes,Permanent Nursing,Bupa Care Services  Bridge House,610.44, 28-Oct-2014
375,Revenue,CCHD,Bed Purchasing - North,Permanent Nursing,Bupa Care Services  Bridge House,40083.39, 28-Oct-2014
376,Revenue,CCHD,Bed purchasing - Elderly MH - North,Permanent Residential,Bupa Care Services  Bridge House,1987.24, 28-Oct-2014
377,Revenue,CCHD,Day Care - North,Day Care / Social Activities,Camphill Communities Thornbury Limited,2105.92, 27-Oct-2014
378,Revenue,CCHD,Supported Living - North,Private & Voluntary Home Care,Camphill Communities Thornbury Limited,2615.52, 27-Oct-2014
379,Revenue,CCHD,Supported Living - North,Private & Voluntary Home Care,Camphill Communities Thornbury Limited,2164.48, 01-Oct-2014
380,Revenue,CCHD,Supported Living - North,Private & Voluntary Home Care,Camphill Communities Thornbury Limited,2487.24, 01-Oct-2014
381,Revenue,CCHD,Supported Living - North,Private & Voluntary Home Care,Camphill Communities Thornbury Limited,2516.08, 02-Oct-2014
382,Revenue,CCHD,Supported Living - North,Private & Voluntary Home Care,Camphill Communities Thornbury Limited,2270.44, 02-Oct-2014
383,Revenue,CCHD,Supported Living - North,Private & Voluntary Home Care,Camphill Communities Thornbury Limited,1819.48, 02-Oct-2014
384,Revenue,CCHD,Supported Living - North,Private & Voluntary Home Care,Camphill Communities Thornbury Limited,2235.68, 02-Oct-2014
385,Revenue,CCHD,Day Care - North,Day Care / Social Activities,Camphill Communities Thornbury Limited,2105.92, 27-Oct-2014
386,Revenue,CCHD,Supported Living - North,Private & Voluntary Home Care,Camphill Communities Thornbury Limited,2337.16, 06-Oct-2014
387,Revenue,CCHD,Supported Living - North,Private & Voluntary Home Care,Camphill Communities Thornbury Limited,2719.32, 10-Oct-2014
388,Revenue,CCHD,Supported Living - North,Private & Voluntary Home Care,Camphill Communities Thornbury Limited,2835.16, 10-Oct-2014
389,Revenue,CCHD,Supported Living - North,Private & Voluntary Home Care,Camphill Communities Thornbury Limited,2535.76, 24-Oct-2014
390,Revenue,CCHD,Supported Living - North,Private & Voluntary Home Care,Camphill Communities Thornbury Limited,2635.92, 27-Oct-2014
391,Revenue,CCHD,Supported Living - North,Private & Voluntary Home Care,Camphill Communities Thornbury Limited,2615.52, 27-Oct-2014
392,Revenue,CCHD,Supported Living - North,Private & Voluntary Home Care,Camphill Communities Thornbury Limited,1717.45, 24-Oct-2014
393,Revenue,CCHD,Supported Living - North,Private & Voluntary Home Care,Camphill Communities Thornbury Limited,1743.63, 24-Oct-2014
394,Revenue,CCHD,Supported Living - North,Private & Voluntary Home Care,Camphill Communities Thornbury Limited,1560.06, 24-Oct-2014
395,Revenue,CCHD,Supported Living - North,Private & Voluntary Home Care,Camphill Communities Thornbury Limited,1534.74, 24-Oct-2014
396,Revenue,CCHD,Supported Living - North,Private & Voluntary Home Care,Camphill Communities Thornbury Limited,1486.24, 24-Oct-2014
397,Revenue,CCHD,Supported Living - North,Private & Voluntary Home Care,Camphill Communities Thornbury Limited,1082.24, 24-Oct-2014
398,Revenue,CCHD,Supported Living - North,Private & Voluntary Home Care,Camphill Communities Thornbury Limited,1243.62, 24-Oct-2014
399,Revenue,CCHD,Supported Living - North,Private & Voluntary Home Care,Camphill Communities Thornbury Limited,1168.09, 27-Oct-2014
400,Revenue,CCHD,Supported Living - North,Private & Voluntary Home Care,Camphill Communities Thornbury Limited,1054.05, 24-Oct-2014
401,Revenue,CCHD,Supported Living - North,Private & Voluntary Home Care,Camphill Communities Thornbury Limited,844.7, 24-Oct-2014
402,Revenue,CCHD,Supported Living - North,Private & Voluntary Home Care,Camphill Communities Thornbury Limited,1085.03, 24-Oct-2014
403,Revenue,CCHD,Supported Living - North,Private & Voluntary Home Care,Camphill Communities Thornbury Limited,1037.92, 24-Oct-2014
404,Revenue,CCHD,Day Care - North,Day Care / Social Activities,Camphill Communities Thornbury Limited,977.68, 27-Oct-2014
405,Revenue,CCHD,Supported Living - North,Private & Voluntary Home Care,Camphill Communities Thornbury Limited,582.62, 24-Oct-2014
406,Revenue,CCHD,Supported Living - North,Private & Voluntary Home Care,Camphill Communities Thornbury Limited,607.43, 24-Oct-2014
407,Revenue,CCHD,Purchase of Non-Res Care - South,Day Care / Social Activities,Camphill Village Trust,734.92, 17-Oct-2014
408,Revenue,CCHD,Bed Purchasing - Elderly S117- North,Permanent Residential,Canjayor,2334.04, 28-Oct-2014
409,Revenue,CCHD,Bed Purchasing - PWLD S 117 Placements,Permanent Residential,Care Community Ltd,7647.92, 28-Oct-2014
410,Revenue,CCHD,Supported Living - North,Private & Voluntary Home Care,Care Horizons Limited,5948.83, 09-Oct-2014
411,Revenue,CCHD,Purchase of Non-Res Care - North,Day Care / Social Activities,Care Horizons Limited,946.87, 09-Oct-2014
412,Revenue,CCHD,Purchase of Non-Res Care - North,Day Care / Social Activities,Care Horizons Limited,1705.28, 10-Oct-2014
413,Revenue,CCHD,Purchase of Non-Res Care - North,Day Care / Social Activities,Care Horizons Limited,1567.78, 09-Oct-2014
414,Revenue,CCHD,Supported Living - North,Private & Voluntary Home Care,Care Horizons Limited,5453.31, 24-Oct-2014
415,Revenue,CCHD,Supported Living - South,Private & Voluntary Home Care,Care Horizons Limited,1936.27, 24-Oct-2014
416,Revenue,CCHD,Electronic Home Care Monitoring,Other Supplies & Services,Care Monitoring 2000 Limited,9285.67, 24-Oct-2014
417,Revenue,CCHD,Home Care - Elderly - South,Day Care / Social Activities,Care UK,184.24, 02-Oct-2014
418,Revenue,CCHD,Home Care - Elderly - South,Other Small Contracts,Care UK,4707.92, 02-Oct-2014
419,Revenue,CCHD,Home Care - Elderly - North,Day Care / Social Activities,Care UK,125.44, 02-Oct-2014
420,Revenue,CCHD,Home Care - Elderly - North,Other Small Contracts,Care UK,987.84, 02-Oct-2014
421,Revenue,CCHD,Day Care - North,Day Care / Social Activities,Care UK,297.92, 02-Oct-2014
422,Revenue,CCHD,Home care - Elderly MH - North,Other Small Contracts,Care UK,501.76, 02-Oct-2014
423,Revenue,CCHD,Elderly MH Day Care North,Day Care / Social Activities,Care UK,148.96, 02-Oct-2014
424,Revenue,CCHD,Home Care - Elderly - South,Day Care / Social Activities,Care UK,196, 07-Oct-2014
425,Revenue,CCHD,Home Care - Elderly - South,Other Small Contracts,Care UK,4547.2, 07-Oct-2014
426,Revenue,CCHD,Home Care - Elderly - North,Day Care / Social Activities,Care UK,125.44, 07-Oct-2014
427,Revenue,CCHD,Home Care - Elderly - North,Other Small Contracts,Care UK,1007.44, 07-Oct-2014
428,Revenue,CCHD,Day Care - North,Day Care / Social Activities,Care UK,286.16, 07-Oct-2014
429,Revenue,CCHD,Home care - Elderly MH - North,Other Small Contracts,Care UK,525.28, 07-Oct-2014
430,Revenue,CCHD,Elderly MH Day Care North,Day Care / Social Activities,Care UK,145.04, 07-Oct-2014
431,Revenue,CCHD,Home Care - Elderly - South,Day Care / Social Activities,Care UK,196, 24-Oct-2014
432,Revenue,CCHD,Home Care - Elderly - South,Other Small Contracts,Care UK,4523.68, 24-Oct-2014
433,Revenue,CCHD,Home Care - Elderly - North,Day Care / Social Activities,Care UK,125.44, 24-Oct-2014
434,Revenue,CCHD,Home Care - Elderly - North,Other Small Contracts,Care UK,995.68, 24-Oct-2014
435,Revenue,CCHD,Day Care - North,Day Care / Social Activities,Care UK,282.24, 24-Oct-2014
436,Revenue,CCHD,Home care - Elderly MH - North,Other Small Contracts,Care UK,509.6, 24-Oct-2014
437,Revenue,CCHD,Elderly MH Day Care North,Day Care / Social Activities,Care UK,148.96, 24-Oct-2014
438,Revenue,CCHD,Home Care - Elderly - South,Day Care / Social Activities,Care UK,196, 29-Oct-2014
439,Revenue,CCHD,Home Care - Elderly - South,Other Small Contracts,Care UK,4711.84, 29-Oct-2014
440,Revenue,CCHD,Home Care - Elderly - North,Day Care / Social Activities,Care UK,129.36, 29-Oct-2014
441,Revenue,CCHD,Home Care - Elderly - North,Other Small Contracts,Care UK,1015.28, 29-Oct-2014
442,Revenue,CCHD,Day Care - North,Day Care / Social Activities,Care UK,286.16, 29-Oct-2014
443,Revenue,CCHD,Home care - Elderly MH - North,Other Small Contracts,Care UK,537.04, 29-Oct-2014
444,Revenue,CCHD,Elderly MH Day Care North,Day Care / Social Activities,Care UK,145.04, 29-Oct-2014
445,Revenue,CCHD,Home Care - Elderly - South,Day Care / Social Activities,Care UK,196, 29-Oct-2014
446,Revenue,CCHD,Home Care - Elderly - South,Other Small Contracts,Care UK,3998.4, 29-Oct-2014
447,Revenue,CCHD,Home Care - Elderly - North,Day Care / Social Activities,Care UK,121.52, 29-Oct-2014
448,Revenue,CCHD,Home Care - Elderly - North,Other Small Contracts,Care UK,1003.52, 29-Oct-2014
449,Revenue,CCHD,Day Care - North,Day Care / Social Activities,Care UK,286.16, 29-Oct-2014
450,Revenue,CCHD,Home care - Elderly MH - North,Other Small Contracts,Care UK,525.28, 29-Oct-2014
451,Revenue,CCHD,Elderly MH Day Care North,Day Care / Social Activities,Care UK,141.12, 29-Oct-2014
452,Revenue,CCHD,SLA Grants - Support Serv,Grants to Voluntary Bodies,Carers Support Centre,500, 01-Oct-2014
453,Revenue,CCHD,SLA Grants - Support Serv,Grants to Voluntary Bodies,Carers Support Centre,500, 01-Oct-2014
454,Revenue,CCHD,SLA Grants - Support Serv,Grants to Voluntary Bodies,Carers Support Centre,500, 01-Oct-2014
455,Revenue,CCHD,SLA Grants - Support Serv,Grants to Voluntary Bodies,Carers Support Centre,500, 01-Oct-2014
456,Revenue,CCHD,Learning Difficulties Development Fund,Other Supplies & Services,Carers Support Centre,5393, 10-Oct-2014
457,Revenue,CCHD,Home Care - Elderly - South,Other Small Contracts,Carewatch (Bristol),399.5, 08-Oct-2014
458,Revenue,CCHD,Home Care - Elderly - North,Other Small Contracts,Carewatch (Bristol),658.75, 08-Oct-2014
459,Revenue,CCHD,Home Care - Elderly - South,Other Small Contracts,Carewatch (Bristol),565.25, 24-Oct-2014
460,Revenue,CCHD,Home Care - Elderly - North,Other Small Contracts,Carewatch (Bristol),1083.75, 24-Oct-2014
461,Revenue,CCHD,Home Care - Elderly - South,Other Small Contracts,Carewatch (Bristol),340, 27-Oct-2014
462,Revenue,CCHD,Home Care - Elderly - North,Other Small Contracts,Carewatch (Bristol),862.75, 27-Oct-2014
463,Revenue,CCHD,Home Care - Elderly - South,Other Small Contracts,Carewatch (Bristol),348.5, 27-Oct-2014
464,Revenue,CCHD,Home Care - Elderly - North,Other Small Contracts,Carewatch (Bristol),892.5, 27-Oct-2014
465,Revenue,CCHD,Elderly MH Day Care South,Day Care / Social Activities,Caring Home Healthcare Group Limited,1000, 22-Oct-2014
466,Revenue,CCHD,Social Lettings Agency,Fees - General,Individual,10.1, 01-Oct-2014
467,Revenue,CCHD,Social Lettings Agency,Fees & Charges Income - General,Individual,570.66, 01-Oct-2014
468,Revenue,CCHD,Social Lettings Agency,Fees - General,Individual,10.1, 31-Oct-2014
469,Revenue,CCHD,Social Lettings Agency,Fees & Charges Income - General,Individual,522.66, 31-Oct-2014
470,Revenue,CCHD,Bed Purchasing - Southmead Hospital,Permanent Residential,Cepen Lodge Care Home,12023.63, 28-Oct-2014
471,Revenue,CCHD,Bed Purchasing - North,Respite Planned - Residential,Charlton House Residential Home,970, 28-Oct-2014
472,Revenue,CCHD,Bed Purchasing - Southmead Hospital,Respite Planned - Residential,Charlton House Residential Home,940.71, 28-Oct-2014
473,Revenue,CCHD,Bed Purchasing - North,Permanent Residential,Charlton House Residential Home,1071.28, 28-Oct-2014
474,Revenue,CCHD,Home Care - Elderly - South,Other Small Contracts,Cherish Able Care Limited,6476.01, 03-Oct-2014
475,Revenue,CCHD,Home Care - Elderly - North,Other Small Contracts,Cherish Able Care Limited,129.27, 03-Oct-2014
476,Revenue,CCHD,Home Care - Elderly - South,Other Small Contracts,Cherish Able Care Limited,6634.47, 09-Oct-2014
477,Revenue,CCHD,Home Care - Elderly - North,Other Small Contracts,Cherish Able Care Limited,116.76, 09-Oct-2014
478,Revenue,CCHD,Home Care - Elderly - South,Other Small Contracts,Cherish Able Care Limited,6763.74, 15-Oct-2014
479,Revenue,CCHD,Home Care - Elderly - North,Other Small Contracts,Cherish Able Care Limited,116.76, 15-Oct-2014
480,Revenue,CCHD,Home Care - Elderly - South,Other Small Contracts,Cherish Able Care Limited,6938.88, 24-Oct-2014
481,Revenue,CCHD,Home Care - Elderly - North,Other Small Contracts,Cherish Able Care Limited,116.76, 24-Oct-2014
482,Revenue,CCHD,Bed purchasing -S28A  Under 65 - North,Permanent Residential,Chescombe Lodge,8697, 28-Oct-2014
483,Revenue,CCHD,Bed Purchasing - Southmead Hospital,Permanent Nursing,Cholwell House Nursing Home Ltd,3781.23, 28-Oct-2014
484,Revenue,CCHD,Bed purchasing - Under 65s PWLD - North,Permanent Residential,Church House,10507.68, 28-Oct-2014
485,Revenue,CCHD,Bed Purchasing - North,Permanent Residential,Church House,48175.09, 28-Oct-2014
486,Revenue,CCHD,Section 117 Placements MH Younger,Permanent Residential,Church House,7567.32, 28-Oct-2014
487,Revenue,CCHD,Section 117 Placements MH Younger,Permanent Residential,Church House,7307.08, 28-Oct-2014
488,Revenue,CCHD,Learning Difficulties,Premises Hire,Circadian Trust,526.5, 22-Oct-2014
489,Revenue,CCHD,Bed Purchasing - Under 65s PWLD - South,Permanent Residential,Citibase Watford,7012, 28-Oct-2014
490,Revenue,CCHD,Bed Purchasing - PWLD S 117 Placements,Permanent Residential,Citibase Watford,8932.12, 28-Oct-2014
491,Revenue,CCHD,Bed Purchasing - South,Permanent Residential,Citibase Watford,44954.56, 28-Oct-2014
492,Revenue,CCHD,Home Care - Elderly - South,Other Small Contracts,Cleeve Care Group,969.5, 10-Oct-2014
493,Revenue,CCHD,Home Care - Elderly - North,Other Small Contracts,Cleeve Care Group,427, 10-Oct-2014
494,Revenue,CCHD,Home Care - Elderly - South,Other Small Contracts,Cleeve Care Group,983.5, 31-Oct-2014
495,Revenue,CCHD,Home Care - Elderly - North,Day Care / Social Activities,Cleeve Care Group,14, 31-Oct-2014
496,Revenue,CCHD,Home Care - Elderly - North,Other Small Contracts,Cleeve Care Group,665, 31-Oct-2014
497,Revenue,CCHD,Home Care - Elderly - South,Other Small Contracts,Cleeve Care Group,1134, 29-Oct-2014
498,Revenue,CCHD,Home Care - Elderly - North,Day Care / Social Activities,Cleeve Care Group,28, 29-Oct-2014
499,Revenue,CCHD,Home Care - Elderly - North,Other Small Contracts,Cleeve Care Group,962.5, 29-Oct-2014
500,Revenue,CCHD,Bed Purchasing - Southmead Hospital,Permanent Residential,Cleeve Lodge,1457.16, 28-Oct-2014
501,Revenue,CCHD,Bed Purchasing - North,Permanent Nursing,Cleeve Lodge,1874.24, 28-Oct-2014
502,Revenue,CCHD,Bed Purchasing - South,Permanent Residential,Cleeve Lodge,1801.44, 28-Oct-2014
503,Revenue,CCHD,Bed Purchasing - South,Permanent Residential,Cleeve Lodge,2291.88, 28-Oct-2014
504,Revenue,CCHD,Bed Purchasing - North,Permanent Residential,Cleeve Lodge,1393.6, 28-Oct-2014
505,Revenue,CCHD,Bed Purchasing - South,Permanent Residential,Cleeve Lodge,1806.32, 28-Oct-2014
506,Revenue,CCHD,Bed Purchasing - South,Permanent Residential,Collingwood Residential Home,1427.48, 28-Oct-2014
507,Revenue,CCHD,Bed Purchasing - South,Permanent Residential,Collingwood Residential Home,1094.24, 28-Oct-2014
508,Revenue,CCHD,Bed Purchasing - South,Respite Planned - Residential,Collingwood Residential Home,2600, 28-Oct-2014
509,Revenue,CCHD,Bed Purchasing - South,Respite Planned - Residential,Collingwood Residential Home,1485.71, 28-Oct-2014
510,Revenue,CCHD,Bed Purchasing - South,Permanent Residential,Collingwood Residential Home,1448.6, 28-Oct-2014
511,Revenue,CCHD,Bed Purchasing - Elderly MH - South,Permanent Residential,Collingwood Residential Home,1323.04, 28-Oct-2014
512,Revenue,CCHD,Bed Purchasing - South,Permanent Residential,Collingwood Residential Home,1280.2, 28-Oct-2014
513,Revenue,CCHD,Bed and Breakfast,Bed & Breakfast,Connolly & Callaghan Limited,459.9, 01-Oct-2014
514,Revenue,CCHD,Bed and Breakfast,Bed & Breakfast,Connolly & Callaghan Limited,585.9, 01-Oct-2014
515,Revenue,CCHD,Bed and Breakfast,Bed & Breakfast,Connolly & Callaghan Limited,585.9, 01-Oct-2014
516,Revenue,CCHD,Bed and Breakfast,Bed & Breakfast,Connolly & Callaghan Limited,459.9, 01-Oct-2014
517,Revenue,CCHD,Bed and Breakfast,Bed & Breakfast,Connolly & Callaghan Limited,617.4, 01-Oct-2014
518,Revenue,CCHD,Bed and Breakfast,Bed & Breakfast,Connolly & Callaghan Limited,630, 01-Oct-2014
519,Revenue,CCHD,Bed and Breakfast,Bed & Breakfast,Connolly & Callaghan Limited,459.9, 17-Oct-2014
520,Revenue,CCHD,Bed and Breakfast,Bed & Breakfast,Connolly & Callaghan Limited,459.9, 17-Oct-2014
521,Revenue,CCHD,Bed and Breakfast,Bed & Breakfast,Connolly & Callaghan Limited,525, 17-Oct-2014
522,Revenue,CCHD,Bed and Breakfast,Bed & Breakfast,Connolly & Callaghan Limited,585.9, 17-Oct-2014
523,Revenue,CCHD,Bed and Breakfast,Bed & Breakfast,Connolly & Callaghan Limited,585.9, 17-Oct-2014
524,Revenue,CCHD,Bed and Breakfast,Bed & Breakfast,Connolly & Callaghan Limited,459.9, 17-Oct-2014
525,Revenue,CCHD,Bed and Breakfast,Bed & Breakfast,Connolly & Callaghan Limited,617.4, 17-Oct-2014
526,Revenue,CCHD,Bed and Breakfast,Bed & Breakfast,Connolly & Callaghan Limited,630, 17-Oct-2014
527,Revenue,CCHD,Bed and Breakfast,Bed & Breakfast,Connolly & Callaghan Limited,556.8, 17-Oct-2014
528,Revenue,CCHD,Bed and Breakfast,Bed & Breakfast,Connolly & Callaghan Limited,459.9, 17-Oct-2014
529,Revenue,CCHD,Bed and Breakfast,Bed & Breakfast,Connolly & Callaghan Limited,459.9, 17-Oct-2014
530,Revenue,CCHD,Bed and Breakfast,Bed & Breakfast,Connolly & Callaghan Limited,554.4, 17-Oct-2014
531,Revenue,CCHD,Bed and Breakfast,Bed & Breakfast,Connolly & Callaghan Limited,525, 17-Oct-2014
532,Revenue,CCHD,Bed and Breakfast,Bed & Breakfast,Connolly & Callaghan Limited,585.9, 20-Oct-2014
533,Revenue,CCHD,Bed and Breakfast,Bed & Breakfast,Connolly & Callaghan Limited,522.9, 17-Oct-2014
534,Revenue,CCHD,Bed and Breakfast,Bed & Breakfast,Connolly & Callaghan Limited,585.9, 20-Oct-2014
535,Revenue,CCHD,Bed and Breakfast,Bed & Breakfast,Connolly & Callaghan Limited,477.9, 17-Oct-2014
536,Revenue,CCHD,Bed and Breakfast,Bed & Breakfast,Connolly & Callaghan Limited,522.9, 17-Oct-2014
537,Revenue,CCHD,Bed and Breakfast,Bed & Breakfast,Connolly & Callaghan Limited,617.4, 20-Oct-2014
538,Revenue,CCHD,Bed and Breakfast,Bed & Breakfast,Connolly & Callaghan Limited,630, 17-Oct-2014
539,Revenue,CCHD,Bed and Breakfast,Bed & Breakfast,Connolly & Callaghan Limited,459.9, 21-Oct-2014
540,Revenue,CCHD,Bed and Breakfast,Bed & Breakfast,Connolly & Callaghan Limited,459.9, 21-Oct-2014
541,Revenue,CCHD,Bed and Breakfast,Bed & Breakfast,Connolly & Callaghan Limited,554.4, 21-Oct-2014
542,Revenue,CCHD,Bed and Breakfast,Bed & Breakfast,Connolly & Callaghan Limited,525, 21-Oct-2014
543,Revenue,CCHD,Bed and Breakfast,Bed & Breakfast,Connolly & Callaghan Limited,585.9, 21-Oct-2014
544,Revenue,CCHD,Bed and Breakfast,Bed & Breakfast,Connolly & Callaghan Limited,522.9, 21-Oct-2014
545,Revenue,CCHD,Bed and Breakfast,Bed & Breakfast,Connolly & Callaghan Limited,585.9, 21-Oct-2014
546,Revenue,CCHD,Bed and Breakfast,Bed & Breakfast,Connolly & Callaghan Limited,522.9, 21-Oct-2014
547,Revenue,CCHD,Bed and Breakfast,Bed & Breakfast,Connolly & Callaghan Limited,522.9, 21-Oct-2014
548,Revenue,CCHD,Bed and Breakfast,Bed & Breakfast,Connolly & Callaghan Limited,448, 21-Oct-2014
549,Revenue,CCHD,Bed and Breakfast,Bed & Breakfast,Connolly & Callaghan Limited,617.4, 21-Oct-2014
550,Revenue,CCHD,Bed and Breakfast,Bed & Breakfast,Connolly & Callaghan Limited,490, 21-Oct-2014
551,Revenue,CCHD,Bed and Breakfast,Bed & Breakfast,Connolly & Callaghan Limited,630, 21-Oct-2014
552,Revenue,CCHD,Bed and Breakfast,Bed & Breakfast,Connolly & Callaghan Limited,459.9, 21-Oct-2014
553,Revenue,CCHD,Bed and Breakfast,Bed & Breakfast,Connolly & Callaghan Limited,459.9, 21-Oct-2014
554,Revenue,CCHD,Bed and Breakfast,Bed & Breakfast,Connolly & Callaghan Limited,554.4, 21-Oct-2014
555,Revenue,CCHD,Bed and Breakfast,Bed & Breakfast,Connolly & Callaghan Limited,525, 21-Oct-2014
556,Revenue,CCHD,Bed and Breakfast,Bed & Breakfast,Connolly & Callaghan Limited,585.9, 21-Oct-2014
557,Revenue,CCHD,Bed and Breakfast,Bed & Breakfast,Connolly & Callaghan Limited,585.9, 21-Oct-2014
558,Revenue,CCHD,Bed and Breakfast,Bed & Breakfast,Connolly & Callaghan Limited,522.9, 21-Oct-2014
559,Revenue,CCHD,Bed and Breakfast,Bed & Breakfast,Connolly & Callaghan Limited,522.9, 21-Oct-2014
560,Revenue,CCHD,Bed and Breakfast,Bed & Breakfast,Connolly & Callaghan Limited,448, 21-Oct-2014
561,Revenue,CCHD,Bed and Breakfast,Bed & Breakfast,Connolly & Callaghan Limited,522.9, 21-Oct-2014
562,Revenue,CCHD,Bed and Breakfast,Bed & Breakfast,Connolly & Callaghan Limited,617.4, 21-Oct-2014
563,Revenue,CCHD,Bed and Breakfast,Bed & Breakfast,Connolly & Callaghan Limited,490, 21-Oct-2014
564,Revenue,CCHD,Bed and Breakfast,Bed & Breakfast,Connolly & Callaghan Limited,630, 21-Oct-2014
565,Revenue,CCHD,Bed and Breakfast,Bed & Breakfast,Connolly & Callaghan Limited,459.9, 23-Oct-2014
566,Revenue,CCHD,Bed and Breakfast,Bed & Breakfast,Connolly & Callaghan Limited,554.4, 23-Oct-2014
567,Revenue,CCHD,Bed and Breakfast,Bed & Breakfast,Connolly & Callaghan Limited,525, 23-Oct-2014
568,Revenue,CCHD,Bed and Breakfast,Bed & Breakfast,Connolly & Callaghan Limited,585.9, 23-Oct-2014
569,Revenue,CCHD,Bed and Breakfast,Bed & Breakfast,Connolly & Callaghan Limited,585.9, 23-Oct-2014
570,Revenue,CCHD,Bed and Breakfast,Bed & Breakfast,Connolly & Callaghan Limited,522.9, 23-Oct-2014
571,Revenue,CCHD,Bed and Breakfast,Bed & Breakfast,Connolly & Callaghan Limited,448, 23-Oct-2014
572,Revenue,CCHD,Bed and Breakfast,Bed & Breakfast,Connolly & Callaghan Limited,522.9, 23-Oct-2014
573,Revenue,CCHD,Bed and Breakfast,Bed & Breakfast,Connolly & Callaghan Limited,617.4, 23-Oct-2014
574,Revenue,CCHD,Bed and Breakfast,Bed & Breakfast,Connolly & Callaghan Limited,490, 23-Oct-2014
575,Revenue,CCHD,Bed and Breakfast,Bed & Breakfast,Connolly & Callaghan Limited,630, 23-Oct-2014
576,Revenue,CCHD,Bed and Breakfast,Bed & Breakfast,Connolly & Callaghan Limited,459.9, 31-Oct-2014
577,Revenue,CCHD,Bed and Breakfast,Bed & Breakfast,Connolly & Callaghan Limited,554.4, 31-Oct-2014
578,Revenue,CCHD,Bed and Breakfast,Bed & Breakfast,Connolly & Callaghan Limited,525, 31-Oct-2014
579,Revenue,CCHD,Bed and Breakfast,Bed & Breakfast,Connolly & Callaghan Limited,585.9, 31-Oct-2014
580,Revenue,CCHD,Bed and Breakfast,Bed & Breakfast,Connolly & Callaghan Limited,585.9, 31-Oct-2014
581,Revenue,CCHD,Bed and Breakfast,Bed & Breakfast,Connolly & Callaghan Limited,522.9, 31-Oct-2014
582,Revenue,CCHD,Bed and Breakfast,Bed & Breakfast,Connolly & Callaghan Limited,448, 31-Oct-2014
583,Revenue,CCHD,Bed and Breakfast,Bed & Breakfast,Connolly & Callaghan Limited,522.9, 31-Oct-2014
584,Revenue,CCHD,Bed and Breakfast,Bed & Breakfast,Connolly & Callaghan Limited,617.4, 31-Oct-2014
585,Revenue,CCHD,Bed and Breakfast,Bed & Breakfast,Connolly & Callaghan Limited,490, 31-Oct-2014
586,Revenue,CCHD,Bed and Breakfast,Bed & Breakfast,Connolly & Callaghan Limited,630, 31-Oct-2014
587,Revenue,CCHD,Bed Purchasing - Southmead Hospital,Permanent Residential,Coombs Wood House,12818, 28-Oct-2014
588,Revenue,CCHD,Bed Purchasing - S28A - Over 65- North,Permanent Residential,Cream Ii Ltd  Longrun House,8039.76, 28-Oct-2014
589,Revenue,CCHD,Bed Purchasing - Under 65s PWLD - South,Permanent Residential,Cream Ii Ltd  Longrun House,5628.52, 28-Oct-2014
590,Revenue,CCHD,Bed purchasing -S28A  Under 65 - North,Permanent Residential,Creedy Court,9294.4, 28-Oct-2014
591,Revenue,CCHD,Bed Purchasing - S28A - Over 65- North,Permanent Residential,Creedy Court,7726.88, 28-Oct-2014
592,Revenue,CCHD,Bed Purchasing - North,Permanent Residential,Creedy Court,100176.72, 24-Oct-2014
593,Revenue,CCHD,Brokerage and Information Service,Grants to Voluntary Bodies,D H I,13961, 01-Oct-2014
594,Revenue,CCHD,Bed Purchasing - South,Permanent Residential,Daneswood,11009.48, 28-Oct-2014
595,Revenue,CCHD,Bed Purchasing - South,Permanent Residential,Daneswood,76469.94, 28-Oct-2014
596,Revenue,CCHD,Bed Purchasing - North,Permanent Residential,Daneswood,9114.88, 28-Oct-2014
597,Revenue,CCHD,Bed Purchasing - North,Permanent Residential,Daneswood,63974.34, 28-Oct-2014
598,Revenue,CCHD,Bed Purchasing - PWLD S 117 Placements,Permanent Nursing,Danshell Healthcare Group,11529, 28-Oct-2014
599,Revenue,CCHD,Learning Difficulties PSL,Other Supplies & Services,Individual,2016.44, 22-Oct-2014
600,Revenue,CCHD,SLA Grants - Support Serv,Grants to Voluntary Bodies,Delia Robins,500, 02-Oct-2014
601,Revenue,CCHD,Purchase of Non-Res Care - North,Day Care / Social Activities,Design 4 Life Ltd,1180.98, 15-Oct-2014
602,Revenue,CCHD,Purchase of Non-Res Care - North,Day Care / Social Activities,Design 4 Life Ltd,1443.42, 15-Oct-2014
603,Revenue,CCHD,Bed Purchasing - South,Permanent Residential,Devon & Cornwall Autistic Community Trus,70751.93, 28-Oct-2014
604,Revenue,CCHD,Home Care - Elderly - South,Other Small Contracts,Dhek Bhal,445.28, 06-Oct-2014
605,Revenue,CCHD,Home Care - Elderly - North,Other Small Contracts,Dhek Bhal,193.6, 06-Oct-2014
606,Revenue,CCHD,Home Care - Elderly - South,Other Small Contracts,Dhek Bhal,387.2, 24-Oct-2014
607,Revenue,CCHD,Home Care - Elderly - North,Other Small Contracts,Dhek Bhal,193.6, 24-Oct-2014
608,Revenue,CCHD,Home Care - Elderly - South,Other Small Contracts,Dhek Bhal,358.16, 24-Oct-2014
609,Revenue,CCHD,Home Care - Elderly - North,Other Small Contracts,Dhek Bhal,193.6, 24-Oct-2014
610,Revenue,CCHD,SLA Grants - Support Serv,Grants to Voluntary Bodies,Dhek Bhal,500, 01-Oct-2014
611,Revenue,CCHD,Bed Purchasing - Under 65s PWLD - South,Permanent Residential,Dimensions (Uk),4880, 28-Oct-2014
612,Revenue,CCHD,Supported Living - South,Private & Voluntary Home Care,Dimensions (UK) Ltd,7748.4, 29-Oct-2014
613,Revenue,CCHD,Training - Adult Services,Training Expenses,Do The Right Thing Ltd,875, 21-Oct-2014
614,Revenue,CCHD,Home Care - Elderly - South,Other Small Contracts,DoCare Ltd,3923.5, 24-Oct-2014
615,Revenue,CCHD,Home Care - Elderly - North,One-off Planned Direct Payment,DoCare Ltd,104.5, 24-Oct-2014
616,Revenue,CCHD,Home Care - Elderly - North,Other Small Contracts,DoCare Ltd,8212.75, 24-Oct-2014
617,Revenue,CCHD,Home Care - Elderly - South,Other Small Contracts,DoCare Ltd,3871.26, 24-Oct-2014
618,Revenue,CCHD,Home Care - Elderly - North,One-off Planned Direct Payment,DoCare Ltd,14.25, 24-Oct-2014
619,Revenue,CCHD,Home Care - Elderly - North,Day Care / Social Activities,DoCare Ltd,38, 24-Oct-2014
620,Revenue,CCHD,Home Care - Elderly - North,Other Small Contracts,DoCare Ltd,7932.5, 24-Oct-2014
621,Revenue,CCHD,Home Care - Elderly - South,Other Small Contracts,DoCare Ltd,3885.5, 24-Oct-2014
622,Revenue,CCHD,Home Care - Elderly - North,Day Care / Social Activities,DoCare Ltd,38, 24-Oct-2014
623,Revenue,CCHD,Home Care - Elderly - North,Other Small Contracts,DoCare Ltd,7614.25, 24-Oct-2014
624,Revenue,CCHD,Home Care - Elderly - South,Other Small Contracts,DoCare Ltd,3918.76, 24-Oct-2014
625,Revenue,CCHD,Home Care - Elderly - North,Day Care / Social Activities,DoCare Ltd,38, 24-Oct-2014
626,Revenue,CCHD,Home Care - Elderly - North,Other Small Contracts,DoCare Ltd,8350.5, 24-Oct-2014
627,Revenue,CCHD,Cambrian Green Day Service,"Provisions (Food, etc)",Douglas Liddell,540, 29-Oct-2014
628,Revenue,CCHD,Cambrian Green Day Service,"Provisions (Food, etc)",Douglas Liddell,555, 13-Oct-2014
629,Revenue,CCHD,Cambrian Green Day Service,"Provisions (Food, etc)",Douglas Liddell,555, 29-Oct-2014
630,Revenue,CCHD,Cambrian Green Day Service,"Provisions (Food, etc)",Douglas Liddell,530, 29-Oct-2014
631,Revenue,CCHD,Tenancy Start Up Scheme,Other Supplies & Services,Dovetail Properties,1555, 06-Oct-2014
632,Revenue,CCHD,MH Purchasing - Younger,Permanent Residential,Dunraven House,1854.32, 28-Oct-2014
633,Revenue,CCHD,Sexual Health,Other Supplies & Services,Durbin Plc,693.92, 01-Oct-2014
634,Revenue,CCHD,Bed and Breakfast,Bed & Breakfast,E J Bartlett,434, 10-Oct-2014
635,Revenue,CCHD,Bed and Breakfast,Bed & Breakfast,E J Bartlett,651, 16-Oct-2014
636,Revenue,CCHD,Bed and Breakfast,Bed & Breakfast,E J Bartlett,504, 10-Oct-2014
637,Revenue,CCHD,Bed and Breakfast,Bed & Breakfast,E J Bartlett,434, 10-Oct-2014
638,Revenue,CCHD,Bed and Breakfast,Bed & Breakfast,E J Bartlett,434, 16-Oct-2014
639,Revenue,CCHD,Bed and Breakfast,Bed & Breakfast,E J Bartlett,651, 16-Oct-2014
640,Revenue,CCHD,Bed and Breakfast,Bed & Breakfast,E J Bartlett,504, 16-Oct-2014
641,Revenue,CCHD,Bed and Breakfast,Bed & Breakfast,E J Bartlett,434, 16-Oct-2014
642,Revenue,CCHD,Bed and Breakfast,Bed & Breakfast,E J Bartlett,540, 16-Oct-2014
643,Revenue,CCHD,Bed and Breakfast,Bed & Breakfast,E J Bartlett,651, 21-Oct-2014
644,Revenue,CCHD,Bed and Breakfast,Bed & Breakfast,E J Bartlett,504, 21-Oct-2014
645,Revenue,CCHD,Bed and Breakfast,Bed & Breakfast,E J Bartlett,720, 21-Oct-2014
646,Revenue,CCHD,Bed and Breakfast,Bed & Breakfast,E J Bartlett,434, 24-Oct-2014
647,Revenue,CCHD,Bed and Breakfast,Bed & Breakfast,E J Bartlett,651, 31-Oct-2014
648,Revenue,CCHD,Bed and Breakfast,Bed & Breakfast,E J Bartlett,504, 31-Oct-2014
649,Revenue,CCHD,Bed and Breakfast,Bed & Breakfast,E J Bartlett,504, 31-Oct-2014
650,Revenue,CCHD,Bed and Breakfast,Bed & Breakfast,E J Bartlett,434, 31-Oct-2014
651,Revenue,CCHD,Bed Purchasing - North,Permanent Residential,East Court,19310.11, 28-Oct-2014
652,Revenue,CCHD,Minor Adaptations Service,Operational Equipment,Eastman & Co (Timber) Limited,706, 15-Oct-2014
653,Revenue,CCHD,Home Care - Elderly - South,Day Care / Social Activities,Easton Community Centre,520.56, 28-Oct-2014
654,Revenue,CCHD,Home Care - Elderly - South,Day Care / Social Activities,Easton Community Centre,520.56, 28-Oct-2014
655,Revenue,CCHD,Home Care - Elderly - North,Day Care / Social Activities,Easton Community Centre,520.56, 28-Oct-2014
656,Revenue,CCHD,Home Care - Elderly - North,Day Care / Social Activities,Easton Community Centre,520.56, 28-Oct-2014
657,Revenue,CCHD,Home Care - Elderly - North,Supported Living,Eclipse Office Park,4293.72, 28-Oct-2014
658,Revenue,CCHD,Supported Living (S28a) North,Private & Voluntary Home Care,Eclipse Office Park,4032.8, 28-Oct-2014
659,Revenue,CCHD,Supported Living (S28a) North,Private & Voluntary Home Care,Eclipse Office Park,4032.8, 28-Oct-2014
660,Revenue,CCHD,Home Care - Elderly - South,Supported Living,Eclipse Office Park,3604.68, 28-Oct-2014
661,Revenue,CCHD,Home Care - Elderly - South,Supported Living,Eclipse Office Park,2292.92, 28-Oct-2014
662,Revenue,CCHD,Supported Living (S28a) North,Private & Voluntary Home Care,Eclipse Office Park,4002.44, 28-Oct-2014
663,Revenue,CCHD,Supported Living (S28a) North,Private & Voluntary Home Care,Eclipse Office Park,4002.44, 28-Oct-2014
664,Revenue,CCHD,Supported Living (S28a) North,Private & Voluntary Home Care,Eclipse Office Park,4002.44, 28-Oct-2014
665,Revenue,CCHD,Supported Living (S28a) North,Private & Voluntary Home Care,Eclipse Office Park,4002.44, 28-Oct-2014
666,Revenue,CCHD,Supported Living (S28a) North,Private & Voluntary Home Care,Eclipse Office Park,4032.8, 28-Oct-2014
667,Revenue,CCHD,Supported Living (S28a) North,Private & Voluntary Home Care,Eclipse Office Park,4032.8, 28-Oct-2014
668,Revenue,CCHD,Supported Living (S28a) South,Supported Living,Eclipse Office Park,3839.88, 28-Oct-2014
669,Revenue,CCHD,Supported Living (S28a) South,Supported Living,Eclipse Office Park,3839.88, 28-Oct-2014
670,Revenue,CCHD,Supported Living (S28a) North,Private & Voluntary Home Care,Eclipse Office Park,3564.6, 28-Oct-2014
671,Revenue,CCHD,Supported Living (S28a) North,Private & Voluntary Home Care,Eclipse Office Park,3564.6, 28-Oct-2014
672,Revenue,CCHD,Supported Living (S28a) North,Private & Voluntary Home Care,Eclipse Office Park,3564.6, 28-Oct-2014
673,Revenue,CCHD,Supported Living (S28a) North,Private & Voluntary Home Care,Eclipse Office Park,3564.6, 28-Oct-2014
674,Revenue,CCHD,Home Care - Elderly - South,Supported Living,Eclipse Office Park,2949.92, 28-Oct-2014
675,Revenue,CCHD,Supported Living (S28a) South,Supported Living,Eclipse Office Park,5447, 28-Oct-2014
676,Revenue,CCHD,Supported Living (S28a) South,Supported Living,Eclipse Office Park,5447, 28-Oct-2014
677,Revenue,CCHD,Home Care - Elderly - South,Supported Living,Eclipse Office Park,2208.68, 28-Oct-2014
678,Revenue,CCHD,Supported Living (S28a) South,Supported Living,Eclipse Office Park,2208.68, 28-Oct-2014
679,Revenue,CCHD,Supported Living (S28a) South,Supported Living,Eclipse Office Park,2208.68, 28-Oct-2014
680,Revenue,CCHD,Supported Living (S28a) North,Private & Voluntary Home Care,Eclipse Office Park,4303.72, 28-Oct-2014
681,Revenue,CCHD,Supported Living (S28a) North,Private & Voluntary Home Care,Eclipse Office Park,4303.72, 28-Oct-2014
682,Revenue,CCHD,Supported Living (S28a) North,Private & Voluntary Home Care,Eclipse Office Park,3576.6, 28-Oct-2014
683,Revenue,CCHD,Supported Living (S28a) North,Private & Voluntary Home Care,Eclipse Office Park,3576.6, 28-Oct-2014
684,Revenue,CCHD,Supported Living (S28a) South,Supported Living,Eclipse Office Park,2088.68, 28-Oct-2014
685,Revenue,CCHD,Supported Living (S28a) South,Supported Living,Eclipse Office Park,2088.68, 28-Oct-2014
686,Revenue,CCHD,Supported Living (S28a) South,Supported Living,Eclipse Office Park,2208.68, 28-Oct-2014
687,Revenue,CCHD,Supported Living (S28a) South,Supported Living,Eclipse Office Park,2208.68, 28-Oct-2014
688,Revenue,CCHD,Supported Living (S28a) South,Supported Living,Eclipse Office Park,2949.92, 28-Oct-2014
689,Revenue,CCHD,Supported Living (S28a) South,Supported Living,Eclipse Office Park,2949.92, 28-Oct-2014
690,Revenue,CCHD,Home Care - Elderly - South,Day Care / Social Activities,Eclipse Office Park,735.12, 28-Oct-2014
691,Revenue,CCHD,Home Care - Elderly - North,Day Care / Social Activities,Eclipse Office Park,980.16, 28-Oct-2014
692,Revenue,CCHD,Home Care - Elderly - South,Day Care / Social Activities,Eclipse Office Park,612.6, 28-Oct-2014
693,Revenue,CCHD,Home Care - Elderly - South,Day Care / Social Activities,Eclipse Office Park,857.64, 28-Oct-2014
694,Revenue,CCHD,Home Care - Elderly - South,Day Care / Social Activities,Eclipse Office Park,735.12, 28-Oct-2014
695,Revenue,CCHD,Home Care - Elderly - South,Day Care / Social Activities,Eclipse Office Park,857.64, 28-Oct-2014
696,Revenue,CCHD,Home Care - Elderly - South,Day Care / Social Activities,Eclipse Office Park,1225.2, 28-Oct-2014
697,Revenue,CCHD,Home Care - Elderly - South,Day Care / Social Activities,Eclipse Office Park,735.12, 28-Oct-2014
698,Revenue,CCHD,Home Care - Elderly - South,Day Care / Social Activities,Eclipse Office Park,857.64, 28-Oct-2014
699,Revenue,CCHD,Home Care - Elderly - South,Day Care / Social Activities,Eclipse Office Park,980.16, 28-Oct-2014
700,Revenue,CCHD,Bed Purchasing - North,Permanent Residential,Eclipse Office Park,21097.62, 28-Oct-2014
701,Revenue,CCHD,Bed Purchasing - South,Permanent Residential,Eclipse Office Park,1429.36, 28-Oct-2014
702,Revenue,CCHD,Bed Purchasing - South,Permanent Residential,Eclipse Office Park,21401.11, 28-Oct-2014
703,Revenue,CCHD,Bed Purchasing - North,Permanent Residential,Eclipse Office Park,3435.28, 28-Oct-2014
704,Revenue,CCHD,Bed Purchasing - North,Permanent Residential,Eclipse Office Park,26534.79, 28-Oct-2014
705,Revenue,CCHD,Bed Purchasing - Under 65s PWLD - South,Permanent Residential,Eclipse Office Park,4867.92, 28-Oct-2014
706,Revenue,CCHD,Bed Purchasing - South,Permanent Residential,Eclipse Office Park,5442.48, 28-Oct-2014
707,Revenue,CCHD,Bed Purchasing - South,Permanent Residential,Eclipse Office Park,38892.69, 28-Oct-2014
708,Revenue,CCHD,Bed Purchasing - South,Permanent Nursing,Eclipse Office Park,2740.16, 28-Oct-2014
709,Revenue,CCHD,Bed Purchasing - South,Permanent Nursing,Eclipse Office Park,24713.91, 28-Oct-2014
710,Revenue,CCHD,Bed Purchasing - South,Permanent Nursing,Eclipse Office Park,1281.68, 28-Oct-2014
711,Revenue,CCHD,Bed Purchasing - South,Permanent Nursing,Eclipse Office Park,13446, 28-Oct-2014
712,Revenue,CCHD,Bed Purchasing - Elderly MH - South,Permanent Residential,Eclipse Office Park,3605.96, 28-Oct-2014
713,Revenue,CCHD,Bed purchasing - Elderly S117 - South,Permanent Nursing,Eclipse Office Park,1992, 28-Oct-2014
714,Revenue,CCHD,Section 117 Placements MH Younger,Permanent Residential,Eclipse Office Park,1356, 28-Oct-2014
715,Revenue,CCHD,Bed purchasing - Elderly S117 - South,Permanent Nursing,Eclipse Office Park,1992, 28-Oct-2014
716,Revenue,CCHD,Bed Purchasing - South,Permanent Nursing,Eclipse Office Park,926.6, 28-Oct-2014
717,Revenue,CCHD,Bed Purchasing - North,Permanent Nursing,Eclipse Office Park,1421.72, 28-Oct-2014
718,Revenue,CCHD,Bed Purchasing - North,Respite Planned - Nursing,Eclipse Office Park,2408.13, 28-Oct-2014
719,Revenue,CCHD,Bed Purchasing - North,Respite Planned - Nursing,Eclipse Office Park,573.37, 28-Oct-2014
720,Revenue,CCHD,Bed purchasing - Elderly PWLD - South,Permanent Residential,Eclipse Office Park,4125.12, 28-Oct-2014
721,Revenue,CCHD,Bed purchasing -S28A  Under 65 - North,Permanent Nursing,Eclipse Office Park,5411.96, 28-Oct-2014
722,Revenue,CCHD,Bed purchasing -S28A  Under 65 - North,Permanent Residential,Eclipse Office Park,5334.12, 28-Oct-2014
723,Revenue,CCHD,Bed purchasing - S28A Under 65 - South,Permanent Residential,Eclipse Office Park,5527.88, 28-Oct-2014
724,Revenue,CCHD,Bed Purchasing - Elderly MH - South,Permanent Residential,Eclipse Office Park,1302.92, 28-Oct-2014
725,Revenue,CCHD,Bed Purchasing - South,Permanent Residential,Eclipse Office Park,5018.44, 28-Oct-2014
726,Revenue,CCHD,Bed Purchasing - South,Permanent Residential,Eclipse Office Park,36030.42, 28-Oct-2014
727,Revenue,CCHD,Bed Purchasing - Under 65s PWLD - South,Permanent Residential,Eclipse Office Park,5534.96, 28-Oct-2014
728,Revenue,CCHD,Bed purchasing - S28A Under 65 - South,Permanent Nursing,Eclipse Office Park,7294.32, 28-Oct-2014
729,Revenue,CCHD,MH Purchasing - Younger,Permanent Residential,Eclipse Office Park,860.2, 28-Oct-2014
730,Revenue,CCHD,Bed purchasing - Elderly PWLD - South,Permanent Residential,Eclipse Office Park,5124.6, 28-Oct-2014
731,Revenue,CCHD,Bed purchasing - Elderly PWLD - South,Permanent Residential,Eclipse Office Park,3877.68, 28-Oct-2014
732,Revenue,CCHD,Bed Purchasing - North,Permanent Residential,Eclipse Office Park,4023.56, 28-Oct-2014
733,Revenue,CCHD,Bed Purchasing - North,Permanent Residential,Eclipse Office Park,26309.13, 28-Oct-2014
734,Revenue,CCHD,Bed purchasing -S28A  Under 65 - North,Permanent Residential,Eclipse Office Park,5258.04, 28-Oct-2014
735,Revenue,CCHD,Bed purchasing -S28A  Under 65 - North,Permanent Residential,Eclipse Office Park,7058.72, 28-Oct-2014
736,Revenue,CCHD,Bed purchasing -S28A  Under 65 - North,Permanent Nursing,Eclipse Office Park,6244.88, 28-Oct-2014
737,Revenue,CCHD,Bed Purchasing - South,Permanent Residential,Eclipse Office Park,4515.52, 28-Oct-2014
738,Revenue,CCHD,Bed Purchasing - South,Permanent Residential,Eclipse Office Park,33826.41, 28-Oct-2014
739,Revenue,CCHD,Bed Purchasing - South,Permanent Residential,Eclipse Office Park,3210.16, 28-Oct-2014
740,Revenue,CCHD,Bed purchasing -S28A  Under 65 - North,Permanent Residential,Eclipse Office Park,6755.12, 28-Oct-2014
741,Revenue,CCHD,Bed purchasing - S28A Under 65 - South,Permanent Residential,Eclipse Office Park,4525.88, 28-Oct-2014
742,Revenue,CCHD,Bed Purchasing - S28A - Over 65- North,Permanent Residential,Eclipse Office Park,6604.52, 28-Oct-2014
743,Revenue,CCHD,Bed purchasing -S28A  Under 65 - North,Permanent Residential,Eclipse Office Park,7114.72, 28-Oct-2014
744,Revenue,CCHD,Bed purchasing -S28A  Under 65 - North,Permanent Residential,Eclipse Office Park,7058.72, 28-Oct-2014
745,Revenue,CCHD,Bed Purchasing - LD S28A- Over 65- South,Permanent Residential,Eclipse Office Park,4098.32, 28-Oct-2014
746,Revenue,CCHD,Bed purchasing - S28A Under 65 - South,Permanent Residential,Eclipse Office Park,4867.92, 28-Oct-2014
747,Revenue,CCHD,Bed purchasing - S28A Under 65 - South,Permanent Residential,Eclipse Office Park,4761.36, 28-Oct-2014
748,Revenue,CCHD,Bed purchasing - S28A Under 65 - South,Permanent Residential,Eclipse Office Park,3663.96, 28-Oct-2014
749,Revenue,CCHD,Bed Purchasing - LD S28A- Over 65- South,Permanent Residential,Eclipse Office Park,5091.12, 28-Oct-2014
750,Revenue,CCHD,Bed Purchasing - LD S28A- Over 65- South,Permanent Residential,Eclipse Office Park,5031.12, 28-Oct-2014
751,Revenue,CCHD,Bed Purchasing - LD S28A- Over 65- South,Permanent Residential,Eclipse Office Park,5187.16, 28-Oct-2014
752,Revenue,CCHD,Bed Purchasing - LD S28A- Over 65- South,Permanent Residential,Eclipse Office Park,4353.28, 28-Oct-2014
753,Revenue,CCHD,Bed Purchasing - LD S28A- Over 65- South,Permanent Residential,Eclipse Office Park,5170.2, 28-Oct-2014
754,Revenue,CCHD,Bed Purchasing - S28A - Over 65- North,Permanent Residential,Eclipse Office Park,2875.08, 28-Oct-2014
755,Revenue,CCHD,Section 117 Placements MH Younger,Permanent Residential,Eclipse Office Park,1356, 28-Oct-2014
756,Revenue,CCHD,Bed purchasing - Elderly MH - North,Permanent Residential,Eclipse Office Park,860.2, 28-Oct-2014
757,Revenue,CCHD,Bed purchasing - S28A Under 65 - South,Permanent Residential,Eclipse Office Park,5415.92, 28-Oct-2014
758,Revenue,CCHD,Bed Purchasing - North,Permanent Residential,Eclipse Office Park,36729.31, 28-Oct-2014
759,Revenue,CCHD,Bed purchasing - Elderly MH - North,Permanent Nursing,Eclipse Office Park,1104.48, 28-Oct-2014
760,Revenue,CCHD,Bed Purchasing - Under 65s PWLD - South,Permanent Residential,Eclipse Office Park,4271.52, 28-Oct-2014
761,Revenue,CCHD,Bed purchasing -S28A  Under 65 - North,Permanent Residential,Eclipse Office Park,5675.56, 28-Oct-2014
762,Revenue,CCHD,Bed Purchasing - S28A - Over 65- North,Permanent Residential,Eclipse Office Park,3599.08, 28-Oct-2014
763,Revenue,CCHD,Bed Purchasing - Elderly S117- North,Permanent Residential,Eclipse Office Park,1756, 28-Oct-2014
764,Revenue,CCHD,MH Purchasing - Younger,Permanent Residential,Eclipse Office Park,1036.6, 28-Oct-2014
765,Revenue,CCHD,Bed Purchasing - S28A - Over 65- North,Permanent Residential,Eclipse Office Park,3214.56, 28-Oct-2014
766,Revenue,CCHD,Bed Purchasing - LD S28A- Over 65- South,Permanent Residential,Eclipse Office Park,3882.08, 28-Oct-2014
767,Revenue,CCHD,Bed purchasing - S28A Under 65 - South,Permanent Residential,Eclipse Office Park,5471.56, 28-Oct-2014
768,Revenue,CCHD,Bed purchasing - S28A Under 65 - South,Permanent Nursing,Eclipse Office Park,5364.24, 28-Oct-2014
769,Revenue,CCHD,Bed Purchasing - LD S28A- Over 65- South,Permanent Nursing,Eclipse Office Park,5225.52, 28-Oct-2014
770,Revenue,CCHD,Bed Purchasing - LD S28A- Over 65- South,Permanent Residential,Eclipse Office Park,4802.88, 28-Oct-2014
771,Revenue,CCHD,Bed Purchasing - LD S28A- Over 65- South,Permanent Residential,Eclipse Office Park,4524.76, 28-Oct-2014
772,Revenue,CCHD,Bed Purchasing - LD S28A- Over 65- South,Permanent Residential,Eclipse Office Park,4599.84, 28-Oct-2014
773,Revenue,CCHD,Bed purchasing - S28A Under 65 - South,Permanent Residential,Eclipse Office Park,6053.44, 28-Oct-2014
774,Revenue,CCHD,Bed Purchasing - LD S28A- Over 65- South,Permanent Residential,Eclipse Office Park,4667.16, 28-Oct-2014
775,Revenue,CCHD,Bed Purchasing - S28A - Over 65- North,Permanent Residential,Eclipse Office Park,4750.44, 28-Oct-2014
776,Revenue,CCHD,Bed Purchasing - South,Permanent Nursing,Eclipse Office Park,2932.43, 28-Oct-2014
777,Revenue,CCHD,Bed Purchasing - S28A - Over 65- North,Permanent Residential,Eclipse Office Park,4588.52, 28-Oct-2014
778,Revenue,CCHD,Bed Purchasing - S28A - Over 65- North,Permanent Residential,Eclipse Office Park,4759.28, 28-Oct-2014
779,Revenue,CCHD,Bed purchasing - S28A Under 65 - South,Permanent Residential,Eclipse Office Park,4756.28, 28-Oct-2014
780,Revenue,CCHD,Bed Purchasing - S28A - Over 65- North,Permanent Residential,Eclipse Office Park,4503.16, 28-Oct-2014
781,Revenue,CCHD,Bed purchasing -S28A  Under 65 - North,Permanent Residential,Eclipse Office Park,7058.72, 28-Oct-2014
782,Revenue,CCHD,Bed purchasing -S28A  Under 65 - North,Permanent Residential,Eclipse Office Park,3304.04, 28-Oct-2014
783,Revenue,CCHD,Bed Purchasing - S28A - Over 65- North,Permanent Residential,Eclipse Office Park,3133.72, 28-Oct-2014
784,Revenue,CCHD,Bed Purchasing - S28A - Over 65- North,Permanent Residential,Eclipse Office Park,3431.24, 28-Oct-2014
785,Revenue,CCHD,Bed Purchasing - LD S28A- Over 65- South,Permanent Residential,Eclipse Office Park,3086.04, 28-Oct-2014
786,Revenue,CCHD,Bed purchasing - Under 65s PWLD - North,Permanent Residential,Eclipse Office Park,6773.16, 28-Oct-2014
787,Revenue,CCHD,Bed Purchasing - South,Permanent Residential,Eclipse Office Park,1318.68, 28-Oct-2014
788,Revenue,CCHD,MH Purchasing - Younger,Permanent Nursing,Eclipse Office Park,937.8, 28-Oct-2014
789,Revenue,CCHD,MH Purchasing - Younger,Permanent Nursing,Eclipse Office Park,952.2, 28-Oct-2014
790,Revenue,CCHD,Bed purchasing - Elderly PWLD - South,Permanent Residential,Eclipse Office Park,3254.24, 28-Oct-2014
791,Revenue,CCHD,Bed purchasing - S28A Under 65 - South,Permanent Residential,Eclipse Office Park,5919.12, 28-Oct-2014
792,Revenue,CCHD,Bed purchasing - S28A Under 65 - South,Permanent Residential,Eclipse Office Park,6010.16, 28-Oct-2014
793,Revenue,CCHD,Bed Purchasing - LD S28A- Over 65- South,Permanent Residential,Eclipse Office Park,4353.28, 28-Oct-2014
794,Revenue,CCHD,Bed Purchasing - South,Permanent Residential,Eclipse Office Park,5919.52, 28-Oct-2014
795,Revenue,CCHD,Bed Purchasing - South,Permanent Residential,Eclipse Office Park,42112.71, 28-Oct-2014
796,Revenue,CCHD,Bed Purchasing - LD S28A- Over 65- South,Permanent Nursing,Eclipse Office Park,4528.36, 28-Oct-2014
797,Revenue,CCHD,Bed Purchasing - LD S28A- Over 65- South,Permanent Nursing,Eclipse Office Park,5225.52, 28-Oct-2014
798,Revenue,CCHD,Bed Purchasing - LD S28A- Over 65- South,Permanent Residential,Eclipse Office Park,3540.96, 28-Oct-2014
799,Revenue,CCHD,Bed Purchasing - LD S28A- Over 65- South,Permanent Residential,Eclipse Office Park,4343.36, 28-Oct-2014
800,Revenue,CCHD,Bed Purchasing - LD S28A- Over 65- South,Permanent Residential,Eclipse Office Park,4832.92, 28-Oct-2014
801,Revenue,CCHD,Bed Purchasing - Elderly MH - South,Permanent Residential,Eclipse Office Park,1224.16, 28-Oct-2014
802,Revenue,CCHD,Bed purchasing -S28A  Under 65 - North,Permanent Nursing,Eclipse Office Park,7675.92, 28-Oct-2014
803,Revenue,CCHD,Bed Purchasing - Southmead Hospital,Permanent Nursing,Eclipse Office Park,1348.48, 28-Oct-2014
804,Revenue,CCHD,Bed Purchasing - Southmead Hospital,Permanent Nursing,Eclipse Office Park,13374.86, 28-Oct-2014
805,Revenue,CCHD,Bed Purchasing - South,Permanent Residential,Eclipse Office Park,43075.9, 28-Oct-2014
806,Revenue,CCHD,Bed Purchasing - Elderly S117- North,Permanent Nursing,Eclipse Office Park,1992, 28-Oct-2014
807,Revenue,CCHD,Bed Purchasing - North,Permanent Nursing,Eclipse Office Park,836.44, 28-Oct-2014
808,Revenue,CCHD,Section 117 Placements MH Younger,Permanent Residential,Eclipse Office Park,1356, 28-Oct-2014
809,Revenue,CCHD,Bed Purchasing - South,Permanent Nursing,Eclipse Office Park,3389.36, 28-Oct-2014
810,Revenue,CCHD,Bed Purchasing - South,Permanent Nursing,Eclipse Office Park,26204.04, 28-Oct-2014
811,Revenue,CCHD,Bed Purchasing - South,Permanent Residential,Eclipse Office Park,3389.48, 28-Oct-2014
812,Revenue,CCHD,Bed Purchasing - LD S28A- Over 65- South,Permanent Nursing,Eclipse Office Park,2981.68, 28-Oct-2014
813,Revenue,CCHD,Bed Purchasing - LD S28A- Over 65- South,Permanent Nursing,Eclipse Office Park,2767.44, 28-Oct-2014
814,Revenue,CCHD,Bed Purchasing - S28A - Over 65- North,Permanent Nursing,Eclipse Office Park,3692.72, 28-Oct-2014
815,Revenue,CCHD,Bed Purchasing - S28A - Over 65- North,Permanent Nursing,Eclipse Office Park,3684.72, 28-Oct-2014
816,Revenue,CCHD,MH Purchasing - Younger,Respite Planned - Residential,Eclipse Office Park,3734.48, 28-Oct-2014
817,Revenue,CCHD,Bed Purchasing - South,Respite Planned - Residential,Edgecumbe Lodge,2100, 28-Oct-2014
818,Revenue,CCHD,Bed Purchasing - Southmead Hospital,Permanent Residential,Edgecumbe Lodge,1260.2, 28-Oct-2014
819,Revenue,CCHD,Bed Purchasing - South,Permanent Residential,Edgecumbe Lodge,1056.36, 28-Oct-2014
820,Revenue,CCHD,Bed Purchasing - South,Permanent Residential,Edgecumbe Lodge,1427, 28-Oct-2014
821,Revenue,CCHD,Bed Purchasing - Southmead Hospital,Permanent Residential,Edgecumbe Lodge,1594.6, 28-Oct-2014
822,Revenue,CCHD,Bed Purchasing - Southmead Hospital,Permanent Residential,Edgecumbe Lodge,1533.8, 28-Oct-2014
823,Revenue,CCHD,Bed Purchasing - South,Permanent Residential,Edgecumbe Lodge,1141.04, 28-Oct-2014
824,Revenue,CCHD,Bed Purchasing - South,Permanent Residential,Edgecumbe Lodge,1286.84, 28-Oct-2014
825,Revenue,CCHD,Bed Purchasing - Southmead Hospital,Permanent Residential,Edgecumbe Lodge,2700, 28-Oct-2014
826,Revenue,CCHD,Bed Purchasing - South,Permanent Residential,Edgecumbe Lodge,1231.12, 28-Oct-2014
827,Revenue,CCHD,Bed Purchasing - North,Permanent Residential,Edgecumbe Lodge,1372.64, 28-Oct-2014
828,Revenue,CCHD,Bed Purchasing - North,Permanent Residential,Edgecumbe Lodge,14384.79, 28-Oct-2014
829,Revenue,CCHD,South Glos Users in South Glos Homes,Permanent Nursing,Edgemont House Ltd,776.23, 28-Oct-2014
830,Revenue,CCHD,Bed Purchasing - Southmead Hospital,Permanent Residential,Edgemont House Ltd,1432.2, 28-Oct-2014
831,Revenue,CCHD,Bed Purchasing - South,Permanent Residential,Edgemont House Ltd,1472.92, 28-Oct-2014
832,Revenue,CCHD,Bed Purchasing - South,Permanent Residential,Edgemont House Ltd,1260.2, 28-Oct-2014
833,Revenue,CCHD,Bed Purchasing - South,Permanent Residential,Edgemont House Ltd,1260.2, 28-Oct-2014
834,Revenue,CCHD,Bed Purchasing - South,Permanent Residential,Edgemont House Ltd,1430.32, 28-Oct-2014
835,Revenue,CCHD,Bed Purchasing - South,Permanent Residential,Edgemont House Ltd,1293.48, 28-Oct-2014
836,Revenue,CCHD,Bed Purchasing - North,Permanent Nursing,Edgemont View Nursing Home,1217.24, 28-Oct-2014
837,Revenue,CCHD,Bed Purchasing - South,Permanent Nursing,Edgemont View Nursing Home,1445.88, 28-Oct-2014
838,Revenue,CCHD,Bed Purchasing - Southmead Hospital,Permanent Nursing,Edgemont View Nursing Home,1275.8, 28-Oct-2014
839,Revenue,CCHD,Bed Purchasing - Southmead Hospital,Permanent Nursing,Edgemont View Nursing Home,16028.82, 28-Oct-2014
840,Revenue,CCHD,Bed Purchasing - South,Permanent Nursing,Edgemont View Nursing Home,1320.36, 28-Oct-2014
841,Revenue,CCHD,Bed Purchasing - South,Permanent Nursing,Edgemont View Nursing Home,1634.8, 28-Oct-2014
842,Revenue,CCHD,Bed Purchasing - South,Permanent Nursing,Edgemont View Nursing Home,1196.68, 28-Oct-2014
843,Revenue,CCHD,Planning and Partnerships procurement,Other Supplies & Services,Eldercare,4326.2, 07-Oct-2014
844,Revenue,CCHD,Planning and Partnerships procurement,Other Supplies & Services,Eldercare,1414.26, 07-Oct-2014
845,Revenue,CCHD,Planning and Partnerships procurement,Other Supplies & Services,Eldercare,1390.98, 07-Oct-2014
846,Revenue,CCHD,Supporting People Programme,Grants to Voluntary Bodies,Elim Housing Association Limited,5018.5, 01-Oct-2014
847,Revenue,CCHD,Supporting People Programme,Grants to Voluntary Bodies,Elim Housing Association Limited,5018.5, 31-Oct-2014
848,Revenue,CCHD,Home Care - Elderly - South,Other Small Contracts,Elite Home Care Ltd,4151.5, 24-Oct-2014
849,Revenue,CCHD,Home Care - Elderly - North,Other Small Contracts,Elite Home Care Ltd,327.75, 24-Oct-2014
850,Revenue,CCHD,Home Care - Elderly - South,Other Small Contracts,Elite Home Care Ltd,4487.99, 24-Oct-2014
851,Revenue,CCHD,Home Care - Elderly - North,Other Small Contracts,Elite Home Care Ltd,336.49, 24-Oct-2014
852,Revenue,CCHD,Home Care - Elderly - South,Other Small Contracts,Elite Home Care Ltd,4575.39, 31-Oct-2014
853,Revenue,CCHD,Home Care - Elderly - North,Other Small Contracts,Elite Home Care Ltd,332.12, 31-Oct-2014
854,Revenue,CCHD,Home Care - Elderly - South,Other Small Contracts,Elite Home Care Ltd,3898.04, 31-Oct-2014
855,Revenue,CCHD,Home Care - Elderly - North,Other Small Contracts,Elite Home Care Ltd,327.75, 31-Oct-2014
856,Revenue,CCHD,Home Care - Elderly - South,Other Small Contracts,Elite Home Care Ltd,4286.97, 31-Oct-2014
857,Revenue,CCHD,Home Care - Elderly - North,Other Small Contracts,Elite Home Care Ltd,340.86, 31-Oct-2014
858,Revenue,CCHD,Bed Purchasing - Southmead Hospital,Permanent Nursing,Elmwood Nursing Home,8525.5, 28-Oct-2014
859,Revenue,CCHD,Day Care - South,Day Care / Social Activities,Enham,638.72, 01-Oct-2014
860,Revenue,CCHD,Day Care - South,Day Care / Social Activities,Enham,638.72, 30-Oct-2014
861,Revenue,CCHD,Training - Adult Services,Training Expenses,Equality & Diversity UK Limited,831.8, 02-Oct-2014
862,Revenue,CCHD,Home Care - Elderly - South,Other Small Contracts,Everycare (Bristol) Ltd,3017.5, 07-Oct-2014
863,Revenue,CCHD,Home Care - Elderly - North,Other Small Contracts,Everycare (Bristol) Ltd,2877.25, 07-Oct-2014
864,Revenue,CCHD,Under 65s -MH  Home Care Purch,Other Small Contracts,Everycare (Bristol) Ltd,51, 07-Oct-2014
865,Revenue,CCHD,Home Care - Elderly - South,Other Small Contracts,Everycare (Bristol) Ltd,3068.5, 24-Oct-2014
866,Revenue,CCHD,Home Care - Elderly - North,Other Small Contracts,Everycare (Bristol) Ltd,2919.75, 24-Oct-2014
867,Revenue,CCHD,Under 65s -MH  Home Care Purch,Other Small Contracts,Everycare (Bristol) Ltd,51, 24-Oct-2014
868,Revenue,CCHD,Home Care - Elderly - South,Other Small Contracts,Everycare (Bristol) Ltd,2962.25, 22-Oct-2014
869,Revenue,CCHD,Home Care - Elderly - North,Other Small Contracts,Everycare (Bristol) Ltd,2898.5, 22-Oct-2014
870,Revenue,CCHD,Under 65s -MH  Home Care Purch,Other Small Contracts,Everycare (Bristol) Ltd,51, 22-Oct-2014
871,Revenue,CCHD,Home Care - Elderly - South,Other Small Contracts,Everycare (Bristol) Ltd,3034.5, 22-Oct-2014
872,Revenue,CCHD,Home Care - Elderly - North,Other Small Contracts,Everycare (Bristol) Ltd,2941, 22-Oct-2014
873,Revenue,CCHD,Under 65s -MH  Home Care Purch,Other Small Contracts,Everycare (Bristol) Ltd,51, 22-Oct-2014
874,Revenue,CCHD,Home Care - Elderly - South,Other Small Contracts,Everycare (Bristol) Ltd,2970.75, 29-Oct-2014
875,Revenue,CCHD,Home Care - Elderly - North,Other Small Contracts,Everycare (Bristol) Ltd,2779.5, 29-Oct-2014
876,Revenue,CCHD,Under 65s -MH  Home Care Purch,Other Small Contracts,Everycare (Bristol) Ltd,55.25, 29-Oct-2014
877,Revenue,CCHD,Bed Purchasing - Elderly MH - South,Permanent Residential,Exmouth House,1420.84, 28-Oct-2014
878,Revenue,CCHD,Bed Purchasing - South,Permanent Nursing,Fairview Court,1148.04, 28-Oct-2014
879,Revenue,CCHD,Bed Purchasing - Elderly MH - South,Permanent Nursing,Fairview Court,1880.16, 28-Oct-2014
880,Revenue,CCHD,Bed Purchasing - Southmead Hospital,Permanent Nursing,Fairview Court,1879.96, 28-Oct-2014
881,Revenue,CCHD,Bed Purchasing - Southmead Hospital,Respite Planned - Nursing,Fairview Court,2756.44, 28-Oct-2014
882,Revenue,CCHD,Bed Purchasing - Southmead Hospital,Permanent Nursing,Fairview Court,13388.42, 28-Oct-2014
883,Revenue,CCHD,South Glos Users in South Glos Homes,Permanent Nursing,Fairview Court,1283.16, 28-Oct-2014
884,Revenue,CCHD,South Glos Users in South Glos Homes,Permanent Nursing,Fairview Court,633.66, 28-Oct-2014
885,Revenue,CCHD,Bed Purchasing - South,Permanent Nursing,Fairview Court,1646.6, 28-Oct-2014
886,Revenue,CCHD,Bed Purchasing - South,Permanent Nursing,Fairview Court,1774.64, 28-Oct-2014
887,Revenue,CCHD,Bed Purchasing - South,Permanent Residential,Fairview Court,2687.76, 28-Oct-2014
888,Revenue,CCHD,Bed Purchasing - Elderly MH - South,Permanent Nursing,Fairview Court,2001.48, 28-Oct-2014
889,Revenue,CCHD,Bed Purchasing - South,Permanent Nursing,Fairview Court,1858.8, 28-Oct-2014
890,Revenue,CCHD,Bed Purchasing - Southmead Hospital,Permanent Nursing,Fairview Court,11613.88, 28-Oct-2014
891,Revenue,CCHD,Bed Purchasing - South,Respite Planned - Nursing,Fairview Court,3445.55, 28-Oct-2014
892,Revenue,CCHD,Bed Purchasing - South,Permanent Nursing,Fairview Court,2060.64, 28-Oct-2014
893,Revenue,CCHD,South Glos Users in South Glos Homes,Permanent Nursing,Fairview Court,2043.54, 28-Oct-2014
894,Revenue,CCHD,Bed Purchasing - South,Permanent Nursing,Fairview Court,2739.96, 28-Oct-2014
895,Revenue,CCHD,Bed Purchasing - Elderly MH - South,Permanent Nursing,Fairview Court,33026.69, 28-Oct-2014
896,Revenue,CCHD,South Glos Users in South Glos Homes,Permanent Nursing,Fairview Court,3089.08, 28-Oct-2014
897,Revenue,CCHD,Bed Purchasing - Elderly MH - South,Permanent Nursing,Fairview Court,1951.44, 28-Oct-2014
898,Revenue,CCHD,South Glos Users in South Glos Homes,Permanent Nursing,Fairview Court,1819.38, 28-Oct-2014
899,Revenue,CCHD,Bed Purchasing - South,Permanent Nursing,Fairview Court,1713.92, 28-Oct-2014
900,Revenue,CCHD,Bed Purchasing - South,Permanent Nursing,Fairview Court,17048.61, 28-Oct-2014
901,Revenue,CCHD,S75 CCG Interim Beds,Permanent Nursing,Fairview Court Care Home,9428.62, 01-Oct-2014
902,Revenue,CCHD,S75 CCG Interim Beds,Permanent Nursing,Fairview Court Care Home,6571.48, 01-Oct-2014
903,Revenue,CCHD,S75 CCG Interim Beds,Permanent Nursing,Fairview Court Care Home,9857.24, 21-Oct-2014
904,Revenue,CCHD,Bed Purchasing - South,Permanent Nursing,Fairview Court Care Home,1126.41, 06-Oct-2014
905,Revenue,CCHD,Bed Purchasing - Elderly MH - South,Permanent Nursing,Fairview Court Care Home,985.16, 06-Oct-2014
906,Revenue,CCHD,Bed Purchasing - South,Permanent Nursing,Fairview Court Care Home,1991.06, 06-Oct-2014
907,Revenue,CCHD,Bed Purchasing - Elderly MH - South,Permanent Nursing,Fairview Court Care Home,1997.1, 06-Oct-2014
908,Revenue,CCHD,Bed Purchasing - Frenchay Hospital,Permanent Nursing,Fairview Court Care Home,1521.17, 06-Oct-2014
909,Revenue,CCHD,Bed purchasing - Elderly S117 - South,Permanent Nursing,Fairview Court Care Home,2528.31, 06-Oct-2014
910,Revenue,CCHD,Bed Purchasing - South,Permanent Residential,Fairview House,872.32, 28-Oct-2014
911,Revenue,CCHD,Bed purchasing - Elderly S117 - South,Permanent Residential,Fairview House,1916.84, 28-Oct-2014
912,Revenue,CCHD,Bed Purchasing - Southmead Hospital,Permanent Residential,Fairview House,1023.16, 28-Oct-2014
913,Revenue,CCHD,Bed Purchasing - South,Permanent Residential,Fairview House,22138.9, 28-Oct-2014
914,Revenue,CCHD,Bed Purchasing - South,Permanent Residential,Fairview House,865.24, 28-Oct-2014
915,Revenue,CCHD,Bed Purchasing - South,Permanent Residential,Fairview House,1260.2, 28-Oct-2014
916,Revenue,CCHD,Bed Purchasing - South,Permanent Residential,Fairview House,1192.92, 28-Oct-2014
917,Revenue,CCHD,Bed Purchasing - Elderly MH - South,Permanent Residential,Fairview House,1117.92, 28-Oct-2014
918,Revenue,CCHD,Bed Purchasing - Southmead Hospital,Permanent Residential,Fairview House,1260.2, 28-Oct-2014
919,Revenue,CCHD,Bed Purchasing - Southmead Hospital,Permanent Residential,Fairview House,11853, 28-Oct-2014
920,Revenue,CCHD,Bed Purchasing - Southmead Hospital,Permanent Residential,Fairview House,1077.32, 28-Oct-2014
921,Revenue,CCHD,Bed Purchasing - Elderly MH - South,Permanent Residential,Fairview House,1039.6, 28-Oct-2014
922,Revenue,CCHD,Bed Purchasing - Southmead Hospital,Permanent Residential,Faith House,14238.09, 28-Oct-2014
923,Revenue,CCHD,Bed Purchasing - North,Permanent Residential,Fernbank,61877.45, 28-Oct-2014
924,Revenue,CCHD,Home Care - Elderly - South,Other Small Contracts,Firstpoint Homecare Ltd,2069.76, 27-Oct-2014
925,Revenue,CCHD,Home Care - Elderly - North,Other Small Contracts,Firstpoint Homecare Ltd,1816.32, 27-Oct-2014
926,Revenue,CCHD,Under 65s -MH  Home Care Purch,Other Small Contracts,Firstpoint Homecare Ltd,46.08, 27-Oct-2014
927,Revenue,CCHD,Home Care - Elderly - North,Other Small Contracts,Firstpoint Homecare Ltd,2096.76, 24-Oct-2014
928,Revenue,CCHD,Training - Adult Services,Training Expenses,Focal Point UK,450.4, 22-Oct-2014
929,Revenue,CCHD,Learning Difficulties Development Fund,Other Supplies & Services,Forest of Avon Trust,2500, 10-Oct-2014
930,Revenue,CCHD,ASSIST - Health Promotion in Schools,Other Supplies & Services,Foster & Brown Research LTD,12400, 10-Oct-2014
931,Revenue,CCHD,Bed Purchasing - South,Permanent Nursing,Four Seasons Health Care,1196.88, 28-Oct-2014
932,Revenue,CCHD,Bed Purchasing - Elderly S117- North,Permanent Residential,Four Seasons Health Care,2060.4, 28-Oct-2014
933,Revenue,CCHD,Bed Purchasing - Frenchay Hospital,Permanent Residential,Four Seasons Health Care,1550.64, 28-Oct-2014
934,Revenue,CCHD,Freeways,Permanent Residential,Freeways Trust Limited,2425.52, 17-Oct-2014
935,Revenue,CCHD,Freeways,Permanent Residential,Freeways Trust Limited,2425.52, 17-Oct-2014
936,Revenue,CCHD,Freeways,Permanent Residential,Freeways Trust Limited,3611.8, 17-Oct-2014
937,Revenue,CCHD,Freeways,Permanent Residential,Freeways Trust Limited,2269.08, 17-Oct-2014
938,Revenue,CCHD,Freeways,Permanent Residential,Freeways Trust Limited,2346.88, 17-Oct-2014
939,Revenue,CCHD,Freeways,Permanent Residential,Freeways Trust Limited,2993.72, 17-Oct-2014
940,Revenue,CCHD,Freeways,Permanent Residential,Freeways Trust Limited,2346.88, 17-Oct-2014
941,Revenue,CCHD,Freeways,Permanent Residential,Freeways Trust Limited,3357.44, 17-Oct-2014
942,Revenue,CCHD,Freeways,Permanent Residential,Freeways Trust Limited,3242.64, 17-Oct-2014
943,Revenue,CCHD,Freeways,Permanent Residential,Freeways Trust Limited,3522.28, 17-Oct-2014
944,Revenue,CCHD,Freeways,Permanent Residential,Freeways Trust Limited,3023.2, 17-Oct-2014
945,Revenue,CCHD,Freeways,Permanent Residential,Freeways Trust Limited,2870.2, 17-Oct-2014
946,Revenue,CCHD,Freeways,Permanent Residential,Freeways Trust Limited,3077.36, 17-Oct-2014
947,Revenue,CCHD,Freeways,Permanent Residential,Freeways Trust Limited,3573.72, 17-Oct-2014
948,Revenue,CCHD,Freeways,Permanent Residential,Freeways Trust Limited,2440.84, 17-Oct-2014
949,Revenue,CCHD,Freeways,Permanent Residential,Freeways Trust Limited,3211.48, 17-Oct-2014
950,Revenue,CCHD,Supported Living - South,Private & Voluntary Home Care,Freeways Trust Limited,1306.44, 15-Oct-2014
951,Revenue,CCHD,Supported Living - South,Private & Voluntary Home Care,Freeways Trust Limited,1237.68, 15-Oct-2014
952,Revenue,CCHD,Bed purchasing - Under 65s PWLD - North,Permanent Residential,Freeways Trust Ltd,2860.04, 28-Oct-2014
953,Revenue,CCHD,Bed purchasing - S28A Under 65 - South,Permanent Residential,Freeways Trust Ltd,2924.48, 28-Oct-2014
954,Revenue,CCHD,Bed purchasing - Under 65s PWLD - North,Permanent Residential,Freeways Trust Ltd,3129.84, 28-Oct-2014
955,Revenue,CCHD,Bed purchasing - Under 65s PWLD - North,Permanent Residential,Freeways Trust Ltd,2286.96, 28-Oct-2014
956,Revenue,CCHD,Bed purchasing - Under 65s PWLD - North,Permanent Residential,Freeways Trust Ltd,2731.36, 28-Oct-2014
957,Revenue,CCHD,Bed Purchasing - Under 65s PWLD - South,Permanent Residential,Freeways Trust Ltd,3338.76, 28-Oct-2014
958,Revenue,CCHD,Bed Purchasing - North,Permanent Residential,Freeways Trust Ltd,20911.25, 28-Oct-2014
959,Revenue,CCHD,Bed Purchasing - Under 65s PWLD - South,Permanent Residential,Freeways Trust Ltd,2397.48, 28-Oct-2014
960,Revenue,CCHD,Bed purchasing - Under 65s PWLD - North,Permanent Residential,Freeways Trust Ltd,2731.36, 28-Oct-2014
961,Revenue,CCHD,Bed Purchasing - North,Permanent Residential,Freeways Trust Ltd,3155.72, 28-Oct-2014
962,Revenue,CCHD,Bed Purchasing - North,Permanent Residential,Freeways Trust Ltd,24647.76, 28-Oct-2014
963,Revenue,CCHD,Section 117 Placements MH Younger,Permanent Residential,Freeways Trust Ltd,3373.2, 28-Oct-2014
964,Revenue,CCHD,Bed Purchasing - North,Permanent Residential,Freeways Trust Ltd,32316.17, 28-Oct-2014
965,Revenue,CCHD,Bed Purchasing - Under 65s PWLD - South,Permanent Residential,Freeways Trust Ltd,7906.56, 28-Oct-2014
966,Revenue,CCHD,Bed Purchasing - Southmead Hospital,Permanent Nursing,Frenchay Park Nursing Home,13268, 28-Oct-2014
967,Revenue,CCHD,Bed Purchasing - South,Permanent Nursing,Frenchay Park Nursing Home,1328.2, 28-Oct-2014
968,Revenue,CCHD,Bed Purchasing - South,Permanent Nursing,Fshc  1St Floor,896.16, 28-Oct-2014
969,Revenue,CCHD,Bed Purchasing - Southmead Hospital,Permanent Nursing,Fshc  1St Floor,3916.71, 28-Oct-2014
970,Revenue,CCHD,South Glos Users in South Glos Homes,Permanent Nursing,Fshc  1St Floor,1267.31, 28-Oct-2014
971,Revenue,CCHD,Bed Purchasing - Southmead Hospital,Permanent Nursing,Fshc  1St Floor,6324.86, 28-Oct-2014
972,Revenue,CCHD,Bed Purchasing - Southmead Hospital,Permanent Residential,Fshc  1St Floor,894.12, 28-Oct-2014
973,Revenue,CCHD,Bed Purchasing - Southmead Hospital,Permanent Residential,Fshc  1St Floor,11853, 28-Oct-2014
974,Revenue,CCHD,Bed Purchasing - South,Permanent Nursing,Fshc  1St Floor,6436.26, 28-Oct-2014
975,Revenue,CCHD,Bed Purchasing - South,Permanent Nursing,Fshc  1St Floor,953.52, 28-Oct-2014
976,Revenue,CCHD,Bed Purchasing - South,Permanent Nursing,Fshc  1St Floor,676.45, 28-Oct-2014
977,Revenue,CCHD,Bed Purchasing - Southmead Hospital,Permanent Residential,Fshc  1St Floor,4829, 28-Oct-2014
978,Revenue,CCHD,Bed Purchasing - Southmead Hospital,Permanent Nursing,Fshc  1St Floor,4684.4, 28-Oct-2014
979,Revenue,CCHD,Bed Purchasing - Southmead Hospital,Permanent Nursing,Fshc  1St Floor,1352.2, 28-Oct-2014
980,Revenue,CCHD,Bed Purchasing - Southmead Hospital,Permanent Nursing,Fshc  1St Floor,12717, 28-Oct-2014
981,Revenue,CCHD,Bed Purchasing - Southmead Hospital,Permanent Nursing,Fshc  1St Floor,1388.2, 28-Oct-2014
982,Revenue,CCHD,Bed Purchasing - Southmead Hospital,Permanent Nursing,Fshc  1St Floor,1267.72, 28-Oct-2014
983,Revenue,CCHD,Bed Purchasing - Southmead Hospital,Permanent Nursing,Fshc  1St Floor,956.56, 28-Oct-2014
984,Revenue,CCHD,Bed Purchasing - Southmead Hospital,Permanent Nursing,Fshc  1St Floor,1388.2, 28-Oct-2014
985,Revenue,CCHD,Bed Purchasing - Southmead Hospital,Permanent Nursing,Fshc  1St Floor,12717, 28-Oct-2014
986,Revenue,CCHD,Bed Purchasing - Southmead Hospital,Permanent Nursing,Fshc  1St Floor,8949.15, 28-Oct-2014
987,Revenue,CCHD,Bed Purchasing - Southmead Hospital,Permanent Nursing,Fshc  1St Floor,1325.8, 28-Oct-2014
988,Revenue,CCHD,Bed Purchasing - Southmead Hospital,Permanent Nursing,Fshc  1St Floor,12717, 28-Oct-2014
989,Revenue,CCHD,Bed Purchasing - Southmead Hospital,Permanent Nursing,Fshc  1St Floor,1388.2, 28-Oct-2014
990,Revenue,CCHD,Bed Purchasing - Southmead Hospital,Permanent Nursing,Fshc  1St Floor,1884, 28-Oct-2014
991,Revenue,CCHD,Bed Purchasing - Southmead Hospital,Permanent Nursing,Fshc  1St Floor,4911.86, 28-Oct-2014
992,Revenue,CCHD,Bed Purchasing - South,Permanent Residential,Fshc  1St Floor,1216.24, 28-Oct-2014
993,Revenue,CCHD,Bed Purchasing - Southmead Hospital,Permanent Nursing,Fshc  1St Floor,1455.83, 28-Oct-2014
994,Revenue,CCHD,Bed Purchasing - Southmead Hospital,Permanent Nursing,Fshc  1St Floor,1198.92, 28-Oct-2014
995,Revenue,CCHD,Bed Purchasing - South,Permanent Nursing,Fshc  1St Floor,1012.92, 28-Oct-2014
996,Revenue,CCHD,Bed Purchasing - Southmead Hospital,Permanent Nursing,Fshc  1St Floor,1388.2, 28-Oct-2014
997,Revenue,CCHD,Bed Purchasing - South,Permanent Nursing,Fshc  1St Floor,1115.96, 28-Oct-2014
998,Revenue,CCHD,Bed Purchasing - South,Permanent Nursing,Fshc  1St Floor,1226.68, 28-Oct-2014
999,Revenue,CCHD,Bed Purchasing - South,Permanent Nursing,Fshc  1St Floor,659.08, 28-Oct-2014
1000,Revenue,CCHD,Bed Purchasing - Southmead Hospital,Permanent Nursing,Fshc  1St Floor,1365.64, 28-Oct-2014
1001,Revenue,CCHD,Bed Purchasing - South,Permanent Nursing,Fshc  1St Floor,1324.48, 28-Oct-2014
1002,Revenue,CCHD,Bed Purchasing - Southmead Hospital,Permanent Nursing,Fshc  1St Floor,1388.2, 28-Oct-2014
1003,Revenue,CCHD,Bed Purchasing - Southmead Hospital,Permanent Nursing,Fshc  1St Floor,5786.57, 28-Oct-2014
1004,Revenue,CCHD,Bed Purchasing - North,Permanent Nursing,Fshc  1St Floor,1388.2, 28-Oct-2014
1005,Revenue,CCHD,Bed Purchasing - Southmead Hospital,Permanent Nursing,Fshc  1St Floor,1884, 28-Oct-2014
1006,Revenue,CCHD,Bed Purchasing - Southmead Hospital,Permanent Nursing,Fshc  1St Floor,12717, 28-Oct-2014
1007,Revenue,CCHD,Bed Purchasing - North,Permanent Nursing,Fshc  1St Floor,1884, 28-Oct-2014
1008,Revenue,CCHD,Bed Purchasing - Southmead Hospital,Permanent Nursing,Fshc  1St Floor,1204.12, 28-Oct-2014
1009,Revenue,CCHD,Bed Purchasing - Southmead Hospital,Permanent Nursing,Fshc  1St Floor,12717, 28-Oct-2014
1010,Revenue,CCHD,Bed Purchasing - South,Permanent Nursing,Fshc  1St Floor,1388.2, 28-Oct-2014
1011,Revenue,CCHD,Bed Purchasing - South,Permanent Nursing,Fshc  1St Floor,1337.52, 28-Oct-2014
1012,Revenue,CCHD,Bed Purchasing - South,Permanent Nursing,Fshc  1St Floor,1372.2, 28-Oct-2014
1013,Revenue,CCHD,Bed Purchasing - Southmead Hospital,Permanent Nursing,Fshc  1St Floor,1096.6, 28-Oct-2014
1014,Revenue,CCHD,Bed Purchasing - Southmead Hospital,Permanent Nursing,Fshc  1St Floor,12717, 28-Oct-2014
1015,Revenue,CCHD,Bed Purchasing - Elderly MH - South,Permanent Residential,Fshc  1St Floor,1131.72, 28-Oct-2014
1016,Revenue,CCHD,Bed Purchasing - Southmead Hospital,Permanent Nursing,Fshc  1St Floor,2758.71, 28-Oct-2014
1017,Revenue,CCHD,Bed Purchasing - South,Permanent Nursing,Fshc  1St Floor,1352.2, 28-Oct-2014
1018,Revenue,CCHD,Bed Purchasing - Southmead Hospital,Permanent Nursing,Fshc  1St Floor,1388.2, 28-Oct-2014
1019,Revenue,CCHD,Bed Purchasing - Elderly MH - South,Permanent Nursing,Fshc  1St Floor,1229.44, 28-Oct-2014
1020,Revenue,CCHD,Bed Purchasing - North,Permanent Nursing,Fshc  1St Floor,781.44, 28-Oct-2014
1021,Revenue,CCHD,Bed Purchasing - North,Permanent Nursing,Fshc  1St Floor,13905, 28-Oct-2014
1022,Revenue,CCHD,Bed Purchasing - South,Permanent Nursing,Fshc  1St Floor,993.48, 28-Oct-2014
1023,Revenue,CCHD,Bed Purchasing - North,Permanent Residential,Fshc  1St Floor,945.15, 28-Oct-2014
1024,Revenue,CCHD,Bed Purchasing - North,Permanent Nursing,Fshc  1St Floor,1137.44, 28-Oct-2014
1025,Revenue,CCHD,Bed Purchasing - North,Permanent Nursing,Fshc  1St Floor,985.88, 28-Oct-2014
1026,Revenue,CCHD,Bed Purchasing - Southmead Hospital,Permanent Nursing,Fshc  1St Floor,944.48, 28-Oct-2014
1027,Revenue,CCHD,Bed Purchasing - Southmead Hospital,Permanent Nursing,Fshc  1St Floor,12717, 28-Oct-2014
1028,Revenue,CCHD,Bed Purchasing - North,Permanent Nursing,Fshc  1St Floor,1290.68, 28-Oct-2014
1029,Revenue,CCHD,Bed Purchasing - Southmead Hospital,Permanent Nursing,Fshc  1St Floor,1602.96, 28-Oct-2014
1030,Revenue,CCHD,Bed Purchasing - Southmead Hospital,Permanent Nursing,Fshc  1St Floor,13905, 28-Oct-2014
1031,Revenue,CCHD,Bed Purchasing - Frenchay Hospital,Permanent Residential,Fshc  1St Floor,1142.92, 28-Oct-2014
1032,Revenue,CCHD,Bed Purchasing - North,Permanent Nursing,Fshc  1St Floor,1347.08, 28-Oct-2014
1033,Revenue,CCHD,Bed Purchasing - North,Permanent Nursing,Fshc  1St Floor,1039.6, 28-Oct-2014
1034,Revenue,CCHD,Bed Purchasing - Southmead Hospital,Permanent Nursing,Fshc  1St Floor,1222.04, 28-Oct-2014
1035,Revenue,CCHD,Bed Purchasing - North,Permanent Residential,Fshc  1St Floor,1077, 28-Oct-2014
1036,Revenue,CCHD,Bed Purchasing - North,Permanent Residential,Fshc  1St Floor,1367.48, 28-Oct-2014
1037,Revenue,CCHD,Bed Purchasing - Southmead Hospital,Permanent Residential,Fshc  1St Floor,1036.84, 28-Oct-2014
1038,Revenue,CCHD,Bed Purchasing - Southmead Hospital,Permanent Residential,Fshc  1St Floor,962.78, 28-Oct-2014
1039,Revenue,CCHD,Bed Purchasing - Southmead Hospital,Permanent Nursing,Fshc  1St Floor,931.84, 28-Oct-2014
1040,Revenue,CCHD,Bed Purchasing - Southmead Hospital,Permanent Nursing,Fshc  1St Floor,12717, 28-Oct-2014
1041,Revenue,CCHD,Bed Purchasing - Southmead Hospital,Permanent Nursing,Fshc  1St Floor,1104.08, 28-Oct-2014
1042,Revenue,CCHD,Bed Purchasing - Southmead Hospital,Permanent Nursing,Fshc  1St Floor,12717, 28-Oct-2014
1043,Revenue,CCHD,Bed Purchasing - Southmead Hospital,Permanent Nursing,Fshc  1St Floor,1129, 28-Oct-2014
1044,Revenue,CCHD,Bed Purchasing - Southmead Hospital,Permanent Nursing,Fshc  1St Floor,12717, 28-Oct-2014
1045,Revenue,CCHD,Bed Purchasing - South,Permanent Nursing,Fshc  1St Floor,7872.14, 28-Oct-2014
1046,Revenue,CCHD,Bed Purchasing - Southmead Hospital,Permanent Nursing,Fshc  1St Floor,1289.2, 28-Oct-2014
1047,Revenue,CCHD,Bed Purchasing - Southmead Hospital,Permanent Nursing,Fshc  1St Floor,1128.8, 28-Oct-2014
1048,Revenue,CCHD,Bed Purchasing - Southmead Hospital,Permanent Nursing,Fshc  1St Floor,13905, 28-Oct-2014
1049,Revenue,CCHD,Bed Purchasing - Southmead Hospital,Permanent Nursing,Fshc  1St Floor,1588.2, 28-Oct-2014
1050,Revenue,CCHD,Bed Purchasing - Southmead Hospital,Permanent Nursing,Fshc  1St Floor,12286.43, 28-Oct-2014
1051,Revenue,CCHD,Bed Purchasing - South,Permanent Residential,Fshc  1St Floor,1132.6, 28-Oct-2014
1052,Revenue,CCHD,Bed Purchasing - Frenchay Hospital,Permanent Nursing,Fshc  1St Floor,2060, 28-Oct-2014
1053,Revenue,CCHD,Bed Purchasing - Southmead Hospital,Permanent Nursing,Fshc  1St Floor,1375.6, 28-Oct-2014
1054,Revenue,CCHD,Bed Purchasing - Southmead Hospital,Permanent Nursing,Fshc  1St Floor,12717, 28-Oct-2014
1055,Revenue,CCHD,Bed Purchasing - Southmead Hospital,Permanent Nursing,Fshc  1St Floor,1388.2, 28-Oct-2014
1056,Revenue,CCHD,Bed Purchasing - North,Permanent Nursing,Fshc  1St Floor,574.28, 28-Oct-2014
1057,Revenue,CCHD,Bed purchasing - Elderly MH - North,Permanent Nursing,Fshc  1St Floor,1489.72, 28-Oct-2014
1058,Revenue,CCHD,Bed Purchasing - North,Permanent Nursing,Fshc  1St Floor,1289.2, 28-Oct-2014
1059,Revenue,CCHD,Bed Purchasing - Southmead Hospital,Permanent Nursing,Fshc  1St Floor,1211.36, 28-Oct-2014
1060,Revenue,CCHD,Bed Purchasing - Southmead Hospital,Permanent Nursing,Fshc  1St Floor,7945.71, 28-Oct-2014
1061,Revenue,CCHD,Bed Purchasing - Southmead Hospital,Permanent Residential,Fshc  1St Floor,621.36, 28-Oct-2014
1062,Revenue,CCHD,Bed Purchasing - Southmead Hospital,Permanent Residential,Fshc  1St Floor,11853, 28-Oct-2014
1063,Revenue,CCHD,Bed Purchasing - Southmead Hospital,Permanent Nursing,Fshc  1St Floor,1294.72, 28-Oct-2014
1064,Revenue,CCHD,Bed Purchasing - Southmead Hospital,Permanent Nursing,Fshc  1St Floor,13905, 28-Oct-2014
1065,Revenue,CCHD,Bed Purchasing - Southmead Hospital,Permanent Nursing,Fshc  1St Floor,1372.56, 28-Oct-2014
1066,Revenue,CCHD,Bed Purchasing - Southmead Hospital,Permanent Nursing,Fshc  1St Floor,12717, 28-Oct-2014
1067,Revenue,CCHD,Bed Purchasing - North,Permanent Nursing,Fshc  1St Floor,1312.76, 28-Oct-2014
1068,Revenue,CCHD,Bed Purchasing - North,Permanent Residential,Fshc  1St Floor,779.72, 28-Oct-2014
1069,Revenue,CCHD,Bed Purchasing - Southmead Hospital,Permanent Nursing,Fshc  1St Floor,1475.48, 28-Oct-2014
1070,Revenue,CCHD,Bed Purchasing - Southmead Hospital,Permanent Nursing,Fshc  1St Floor,1564.2, 28-Oct-2014
1071,Revenue,CCHD,Bed Purchasing - Elderly MH - South,Permanent Nursing,Fshc  1St Floor,1338.84, 28-Oct-2014
1072,Revenue,CCHD,Bed Purchasing - North,Permanent Nursing,Fshc  1St Floor,1471.32, 28-Oct-2014
1073,Revenue,CCHD,Bed Purchasing - Elderly MH - South,Permanent Nursing,Fshc  1St Floor,1309.96, 28-Oct-2014
1074,Revenue,CCHD,Bed purchasing - Elderly MH - North,Permanent Residential,Fshc  1St Floor,1456.2, 28-Oct-2014
1075,Revenue,CCHD,Bed Purchasing - North,Permanent Nursing,Fshc  1St Floor,1552.64, 28-Oct-2014
1076,Revenue,CCHD,Bed purchasing - Elderly S117 - South,Permanent Nursing,Fshc  1St Floor,1884, 28-Oct-2014
1077,Revenue,CCHD,Bed Purchasing - North,Permanent Residential,Fshc  1St Floor,1263.96, 28-Oct-2014
1078,Revenue,CCHD,Bed Purchasing - North,Permanent Residential,Fshc  1St Floor,13176, 28-Oct-2014
1079,Revenue,CCHD,Bed Purchasing - Southmead Hospital,Permanent Residential,Fshc  1St Floor,1260.2, 28-Oct-2014
1080,Revenue,CCHD,Bed Purchasing - North,Permanent Residential,Fshc  1St Floor,1260.2, 28-Oct-2014
1081,Revenue,CCHD,Bed Purchasing - South,Permanent Nursing,Fshc  1St Floor,1564.2, 28-Oct-2014
1082,Revenue,CCHD,Bed Purchasing - North,Permanent Residential,Fshc  1St Floor,1401.92, 28-Oct-2014
1083,Revenue,CCHD,Bed Purchasing - North,Permanent Residential,Fshc  1St Floor,13176, 28-Oct-2014
1084,Revenue,CCHD,Bed Purchasing - Southmead Hospital,Permanent Residential,Fshc  1St Floor,1484.2, 28-Oct-2014
1085,Revenue,CCHD,Bed Purchasing - Southmead Hospital,Respite Planned - Nursing,Fshc  1St Floor,2826, 28-Oct-2014
1086,Revenue,CCHD,Bed Purchasing - North,Permanent Nursing,Fshc  1St Floor,1413, 28-Oct-2014
1087,Revenue,CCHD,Bed Purchasing - North,Permanent Nursing,Fshc  1St Floor,1388.2, 28-Oct-2014
1088,Revenue,CCHD,Bed Purchasing - North,Permanent Residential,Fshc  1St Floor,1260.2, 28-Oct-2014
1089,Revenue,CCHD,Bed Purchasing - North,Permanent Nursing,Fshc  1St Floor,1153.32, 28-Oct-2014
1090,Revenue,CCHD,Bed Purchasing - Southmead Hospital,Permanent Residential,Fshc  1St Floor,1260.2, 28-Oct-2014
1091,Revenue,CCHD,Bed Purchasing - Southmead Hospital,Permanent Residential,Fshc  1St Floor,11853, 28-Oct-2014
1092,Revenue,CCHD,Bed Purchasing - North,Permanent Nursing,Fshc  1St Floor,587.4, 28-Oct-2014
1093,Revenue,CCHD,Bed Purchasing - North,Permanent Nursing,Fshc  1St Floor,738.4, 28-Oct-2014
1094,Revenue,CCHD,South Glos Users in South Glos Homes,Permanent Nursing,Fshc  1St Floor,855.44, 28-Oct-2014
1095,Revenue,CCHD,South Glos Users in South Glos Homes,Permanent Nursing,Fshc  1St Floor,1378.2, 28-Oct-2014
1096,Revenue,CCHD,Bed Purchasing - Southmead Hospital,Permanent Nursing,Fshc  1St Floor,1328.04, 28-Oct-2014
1097,Revenue,CCHD,Bed Purchasing - Southmead Hospital,Permanent Nursing,Fshc  1St Floor,12717, 28-Oct-2014
1098,Revenue,CCHD,Bed Purchasing - North,Permanent Nursing,Fshc  1St Floor,903.52, 28-Oct-2014
1099,Revenue,CCHD,Bed Purchasing - North,Permanent Nursing,Fshc  1St Floor,1017.2, 28-Oct-2014
1100,Revenue,CCHD,Bed Purchasing - Southmead Hospital,Permanent Nursing,Fshc  1St Floor,4777.29, 28-Oct-2014
1101,Revenue,CCHD,Bed Purchasing - South,Permanent Nursing,Fshc  1St Floor,1365, 28-Oct-2014
1102,Revenue,CCHD,South Glos Users in South Glos Homes,Permanent Nursing,Fshc  1St Floor,3089.08, 28-Oct-2014
1103,Revenue,CCHD,South Glos Users in South Glos Homes,Permanent Nursing,Fshc  1St Floor,1003.79, 28-Oct-2014
1104,Revenue,CCHD,Bed Purchasing - Southmead Hospital,Permanent Nursing,Fshc  1St Floor,4911.86, 28-Oct-2014
1105,Revenue,CCHD,Bed Purchasing - Southmead Hospital,Permanent Nursing,Fshc  1St Floor,1388.2, 28-Oct-2014
1106,Revenue,CCHD,Bed Purchasing - Southmead Hospital,Permanent Nursing,Fshc  1St Floor,12717, 28-Oct-2014
1107,Revenue,CCHD,Bed Purchasing - Southmead Hospital,Permanent Nursing,Fshc  1St Floor,586.56, 28-Oct-2014
1108,Revenue,CCHD,Bed Purchasing - North,Permanent Nursing,Fshc  1St Floor,1083.08, 28-Oct-2014
1109,Revenue,CCHD,Bed Purchasing - Southmead Hospital,Respite Planned - Nursing,Fshc  1St Floor,1682.14, 28-Oct-2014
1110,Revenue,CCHD,Bed Purchasing - Frenchay Hospital,Respite Planned - Nursing,Fshc  1St Floor,1143.86, 28-Oct-2014
1111,Revenue,CCHD,Bed Purchasing - Southmead Hospital,Respite Planned - Nursing,Fshc  1St Floor,2893.29, 28-Oct-2014
1112,Revenue,CCHD,Bed Purchasing - Southmead Hospital,Permanent Nursing,Fshc  1St Floor,762.08, 28-Oct-2014
1113,Revenue,CCHD,Bed Purchasing - Southmead Hospital,Permanent Nursing,Fshc  1St Floor,873.88, 28-Oct-2014
1114,Revenue,CCHD,Bed Purchasing - Southmead Hospital,Permanent Nursing,Fshc  1St Floor,12717, 28-Oct-2014
1115,Revenue,CCHD,Bed Purchasing - Southmead Hospital,Permanent Nursing,Fshc  1St Floor,1312.68, 28-Oct-2014
1116,Revenue,CCHD,Bed Purchasing - North,Permanent Nursing,Fshc  1St Floor,1270.2, 28-Oct-2014
1117,Revenue,CCHD,Swift Dump Code,Permanent Residential,Fshc  1St Floor,3689.91, 28-Oct-2014
1118,Revenue,CCHD,Swift Dump Code,Permanent Residential,Fshc  1St Floor,2062.43, 28-Oct-2014
1119,Revenue,CCHD,Bed Purchasing - South,Permanent Nursing,Fshc  1St Floor,1337.24, 28-Oct-2014
1120,Revenue,CCHD,Bed Purchasing - Southmead Hospital,Permanent Nursing,Fshc  1St Floor,1360.32, 28-Oct-2014
1121,Revenue,CCHD,Bed Purchasing - Southmead Hospital,Permanent Nursing,Fshc  1St Floor,1822.56, 28-Oct-2014
1122,Revenue,CCHD,Bed Purchasing - North,Permanent Residential,Fshc  1St Floor,3000.64, 28-Oct-2014
1123,Revenue,CCHD,Bed Purchasing - North,Permanent Nursing,Fshc  1St Floor,1394.04, 28-Oct-2014
1124,Revenue,CCHD,Bed Purchasing - North,Permanent Nursing,Fshc  1St Floor,12756.42, 28-Oct-2014
1125,Revenue,CCHD,Bed Purchasing - Southmead Hospital,Permanent Nursing,Fshc  1St Floor,1319.28, 28-Oct-2014
1126,Revenue,CCHD,Bed Purchasing - Elderly MH - South,Permanent Residential,Fshc  1St Floor,1952, 28-Oct-2014
1127,Revenue,CCHD,Bed Purchasing - Southmead Hospital,Permanent Nursing,Fshc  1St Floor,1381, 28-Oct-2014
1128,Revenue,CCHD,Bed Purchasing - Southmead Hospital,Permanent Nursing,Fshc  1St Floor,12717, 28-Oct-2014
1129,Revenue,CCHD,Bed Purchasing - Southmead Hospital,Permanent Residential,Fshc  1St Floor,1484.2, 28-Oct-2014
1130,Revenue,CCHD,Bed Purchasing - North,Permanent Residential,Fshc  1St Floor,1167.12, 28-Oct-2014
1131,Revenue,CCHD,Bed Purchasing - North,Permanent Nursing,Fshc  1St Floor,1143.32, 28-Oct-2014
1132,Revenue,CCHD,South Glos Users in South Glos Homes,Permanent Nursing,Fshc  1St Floor,1207.69, 28-Oct-2014
1133,Revenue,CCHD,Bed Purchasing - Frenchay Hospital,Permanent Nursing,Fshc  1St Floor,1248.96, 28-Oct-2014
1134,Revenue,CCHD,Bed Purchasing - Southmead Hospital,Permanent Residential,Fshc  1St Floor,8505.14, 28-Oct-2014
1135,Revenue,CCHD,Bed Purchasing - North,Permanent Nursing,Fshc  1St Floor,1884, 28-Oct-2014
1136,Revenue,CCHD,Bed Purchasing - South,Permanent Residential,Fshc  1St Floor,1456.2, 28-Oct-2014
1137,Revenue,CCHD,Bed Purchasing - South,Permanent Residential,Fshc  1St Floor,13176, 28-Oct-2014
1138,Revenue,CCHD,Bed Purchasing - Southmead Hospital,Permanent Nursing,Fshc  1St Floor,1203.24, 28-Oct-2014
1139,Revenue,CCHD,Bed Purchasing - Southmead Hospital,Permanent Nursing,Fshc  1St Floor,1384.2, 28-Oct-2014
1140,Revenue,CCHD,Bed Purchasing - South,Permanent Residential,Fshc  1St Floor,901.6, 28-Oct-2014
1141,Revenue,CCHD,Bed Purchasing - South,Permanent Nursing,Fshc  1St Floor,1236.24, 28-Oct-2014
1142,Revenue,CCHD,South Glos Users in South Glos Homes,Permanent Nursing,Fshc  1St Floor,1061.38, 28-Oct-2014
1143,Revenue,CCHD,South Glos Users in South Glos Homes,Permanent Nursing,Fshc  1St Floor,998.01, 28-Oct-2014
1144,Revenue,CCHD,Bed purchasing - Elderly PWLD - South,Permanent Residential,Fshc  1St Floor,1260.2, 28-Oct-2014
1145,Revenue,CCHD,Bed Purchasing - Frenchay Hospital,Permanent Nursing,Fshc  1St Floor,1388.2, 28-Oct-2014
1146,Revenue,CCHD,Bed Purchasing - North,Permanent Residential,Fshc  1St Floor,1201.28, 28-Oct-2014
1147,Revenue,CCHD,Bed Purchasing - Frenchay Hospital,Permanent Nursing,Fshc  1St Floor,728.56, 28-Oct-2014
1148,Revenue,CCHD,Bed Purchasing - Southmead Hospital,Permanent Nursing,Fshc  1St Floor,1388.2, 28-Oct-2014
1149,Revenue,CCHD,Bed Purchasing - Southmead Hospital,Permanent Nursing,Fshc  1St Floor,12717, 28-Oct-2014
1150,Revenue,CCHD,Bed Purchasing - Southmead Hospital,Permanent Nursing,Fshc  1St Floor,1308.28, 28-Oct-2014
1151,Revenue,CCHD,Bed Purchasing - Southmead Hospital,Permanent Nursing,Fshc  1St Floor,997.48, 28-Oct-2014
1152,Revenue,CCHD,Bed Purchasing - Southmead Hospital,Permanent Residential,Fshc  1St Floor,1475.64, 28-Oct-2014
1153,Revenue,CCHD,Bed Purchasing - South,Permanent Nursing,Fshc  1St Floor,1227.24, 28-Oct-2014
1154,Revenue,CCHD,Bed Purchasing - South,Permanent Nursing,Fshc  1St Floor,816.76, 28-Oct-2014
1155,Revenue,CCHD,Bed purchasing - Elderly S117 - South,Permanent Nursing,Fshc  1St Floor,1884, 28-Oct-2014
1156,Revenue,CCHD,Bed Purchasing - Southmead Hospital,Permanent Residential,Fshc  1St Floor,1122.08, 28-Oct-2014
1157,Revenue,CCHD,Bed Purchasing - Southmead Hospital,Permanent Residential,Fshc  1St Floor,11853, 28-Oct-2014
1158,Revenue,CCHD,Bed Purchasing - South,Permanent Nursing,Fshc  1St Floor,1385.4, 28-Oct-2014
1159,Revenue,CCHD,Bed Purchasing - North,Permanent Nursing,Fshc  1St Floor,1327.84, 28-Oct-2014
1160,Revenue,CCHD,Bed Purchasing - South,Permanent Residential,Fshc  1St Floor,1371.16, 28-Oct-2014
1161,Revenue,CCHD,Bed Purchasing - Southmead Hospital,Permanent Nursing,Fshc  1St Floor,777.8, 28-Oct-2014
1162,Revenue,CCHD,Bed Purchasing - Southmead Hospital,Permanent Nursing,Fshc  1St Floor,12717, 28-Oct-2014
1163,Revenue,CCHD,Bed Purchasing - North,Permanent Residential,Fshc  1St Floor,1216.92, 28-Oct-2014
1164,Revenue,CCHD,Bed Purchasing - South,Permanent Nursing,Fshc  1St Floor,1193.88, 28-Oct-2014
1165,Revenue,CCHD,Bed Purchasing - South,Permanent Nursing,Fshc  1St Floor,1304.72, 28-Oct-2014
1166,Revenue,CCHD,Bed Purchasing - South,Permanent Nursing,Fshc  1St Floor,1668.4, 28-Oct-2014
1167,Revenue,CCHD,Bed Purchasing - South,Permanent Nursing,Fshc  1St Floor,1132.32, 28-Oct-2014
1168,Revenue,CCHD,Bed Purchasing - Southmead Hospital,Permanent Nursing,Fshc  1St Floor,958.64, 28-Oct-2014
1169,Revenue,CCHD,Bed Purchasing - Southmead Hospital,Permanent Nursing,Fshc  1St Floor,12717, 28-Oct-2014
1170,Revenue,CCHD,Bed Purchasing - Southmead Hospital,Permanent Nursing,Fshc  1St Floor,3902.57, 28-Oct-2014
1171,Revenue,CCHD,Bed Purchasing - Southmead Hospital,Permanent Nursing,Fshc  1St Floor,1549, 28-Oct-2014
1172,Revenue,CCHD,Bed Purchasing - Southmead Hospital,Permanent Nursing,Fshc  1St Floor,12717, 28-Oct-2014
1173,Revenue,CCHD,Bed Purchasing - Southmead Hospital,Permanent Nursing,Fshc  1St Floor,1364.92, 28-Oct-2014
1174,Revenue,CCHD,Bed Purchasing - Southmead Hospital,Permanent Nursing,Fshc  1St Floor,1388.2, 28-Oct-2014
1175,Revenue,CCHD,Bed Purchasing - Southmead Hospital,Permanent Nursing,Fshc  1St Floor,12717, 28-Oct-2014
1176,Revenue,CCHD,Bed Purchasing - Southmead Hospital,Permanent Nursing,Fshc  1St Floor,881.8, 28-Oct-2014
1177,Revenue,CCHD,Bed Purchasing - Southmead Hospital,Permanent Nursing,Fshc  1St Floor,1199.48, 28-Oct-2014
1178,Revenue,CCHD,Bed Purchasing - South,Permanent Residential,Fshc  1St Floor,2704.2, 28-Oct-2014
1179,Revenue,CCHD,Bed Purchasing - North,Permanent Nursing,Fshc  1St Floor,5084.46, 28-Oct-2014
1180,Revenue,CCHD,Bed Purchasing - North,Permanent Residential,Fshc  1St Floor,6401.52, 28-Oct-2014
1181,Revenue,CCHD,Bed Purchasing - North,Permanent Residential,Fshc  1St Floor,1422.4, 28-Oct-2014
1182,Revenue,CCHD,Bed Purchasing - Southmead Hospital,Permanent Nursing,Fshc  1St Floor,4086, 28-Oct-2014
1183,Revenue,CCHD,Bed Purchasing - North,Permanent Nursing,Fshc  1St Floor,1346.88, 28-Oct-2014
1184,Revenue,CCHD,Bed Purchasing - North,Respite Planned - Nursing,Fshc  1St Floor,1627.03, 28-Oct-2014
1185,Revenue,CCHD,Bed purchasing - Phys Dis - North,Permanent Nursing,Fshc  1St Floor,775.72, 28-Oct-2014
1186,Revenue,CCHD,Bed Purchasing - North,Permanent Nursing,Fshc  1St Floor,1496.2, 28-Oct-2014
1187,Revenue,CCHD,Bed Purchasing - North,Permanent Nursing,Fshc  1St Floor,1229.36, 28-Oct-2014
1188,Revenue,CCHD,Bed Purchasing - Southmead Hospital,Permanent Nursing,Fshc  1St Floor,1344.2, 28-Oct-2014
1189,Revenue,CCHD,Bed Purchasing - Southmead Hospital,Permanent Nursing,Fshc  1St Floor,12258, 28-Oct-2014
1190,Revenue,CCHD,Bed Purchasing - South,Permanent Nursing,Fshc  1St Floor,857.04, 28-Oct-2014
1191,Revenue,CCHD,Bed Purchasing - South,Permanent Nursing,Fshc  1St Floor,13446, 28-Oct-2014
1192,Revenue,CCHD,Bed Purchasing - Southmead Hospital,Permanent Nursing,Fshc  1St Floor,1496.2, 28-Oct-2014
1193,Revenue,CCHD,Bed Purchasing - North,Permanent Nursing,Fshc  1St Floor,1368.56, 28-Oct-2014
1194,Revenue,CCHD,Bed Purchasing - Southmead Hospital,Permanent Nursing,Fshc  1St Floor,9035.14, 28-Oct-2014
1195,Revenue,CCHD,Bed Purchasing - Southmead Hospital,Permanent Residential,Fshc  1St Floor,1233.08, 28-Oct-2014
1196,Revenue,CCHD,Bed Purchasing - Southmead Hospital,Permanent Residential,Fshc  1St Floor,11853, 28-Oct-2014
1197,Revenue,CCHD,Bed Purchasing - Southmead Hospital,Permanent Nursing,Fshc  1St Floor,1263.24, 28-Oct-2014
1198,Revenue,CCHD,Bed Purchasing - Southmead Hospital,Permanent Nursing,Fshc  1St Floor,1467.24, 28-Oct-2014
1199,Revenue,CCHD,Bed purchasing - Elderly S117 - South,Permanent Nursing,Fshc  1St Floor,1992, 28-Oct-2014
1200,Revenue,CCHD,Bed Purchasing - North,Permanent Residential,Fshc  1St Floor,1125.72, 28-Oct-2014
1201,Revenue,CCHD,Bed Purchasing - Southmead Hospital,Permanent Nursing,Fshc  1St Floor,950.68, 28-Oct-2014
1202,Revenue,CCHD,Bed Purchasing - Southmead Hospital,Permanent Nursing,Fshc  1St Floor,15837.66, 28-Oct-2014
1203,Revenue,CCHD,Bed Purchasing - Elderly S117- North,Permanent Nursing,Fshc  1St Floor,1992, 28-Oct-2014
1204,Revenue,CCHD,Bed Purchasing - North,Permanent Residential,Fshc  1St Floor,1432.2, 28-Oct-2014
1205,Revenue,CCHD,Bed Purchasing - Southmead Hospital,Respite Planned - Nursing,Fshc  1St Floor,640.29, 28-Oct-2014
1206,Revenue,CCHD,Bed Purchasing - Southmead Hospital,Permanent Nursing,Fshc  1St Floor,1100.44, 28-Oct-2014
1207,Revenue,CCHD,Bed Purchasing - Southmead Hospital,Permanent Nursing,Fshc  1St Floor,13446, 28-Oct-2014
1208,Revenue,CCHD,Bed Purchasing - North,Permanent Residential,Fshc  1St Floor,1043.24, 28-Oct-2014
1209,Revenue,CCHD,Bed Purchasing - South,Permanent Residential,Fshc  1St Floor,1351.48, 28-Oct-2014
1210,Revenue,CCHD,Bed Purchasing - Southmead Hospital,Permanent Residential,FSHC 1st Floor,806.6, 28-Oct-2014
1211,Revenue,CCHD,Section 117 Placements MH Younger,Permanent Residential,Gladstone House,2762.16, 28-Oct-2014
1212,Revenue,CCHD,Bed Purchasing - South,Permanent Residential,Glasallt Fawr,37926.85, 28-Oct-2014
1213,Revenue,CCHD,Bed purchasing - Elderly MH - North,Permanent Residential,Glebe House Nursing Home,12301.2, 28-Oct-2014
1214,Revenue,CCHD,Bed Purchasing - North,Permanent Residential,Glebe House Nursing Home,2101.72, 28-Oct-2014
1215,Revenue,CCHD,Swift Dump Code,Permanent Residential,Glebe House Nursing Home,1951.2, 28-Oct-2014
1216,Revenue,CCHD,Bed Purchasing - North,Permanent Residential,Glebe House Nursing Home,21234.69, 28-Oct-2014
1217,Revenue,CCHD,Bed Purchasing - North,Permanent Nursing,Glebe House Nursing Home,15326.93, 28-Oct-2014
1218,Revenue,CCHD,Bed Purchasing - North,Permanent Nursing,Glebe House Nursing Home,1982.08, 28-Oct-2014
1219,Revenue,CCHD,Bed Purchasing - Southmead Hospital,Permanent Residential,Glebe House Nursing Home,1346.16, 28-Oct-2014
1220,Revenue,CCHD,Bed Purchasing - Southmead Hospital,Permanent Residential,Glebe House Nursing Home,19542.86, 28-Oct-2014
1221,Revenue,CCHD,Bed Purchasing - South,Permanent Residential,Glebe House Nursing Home,2044.08, 28-Oct-2014
1222,Revenue,CCHD,Bed Purchasing - South,Permanent Residential,Glebe House Nursing Home,19700.28, 28-Oct-2014
1223,Revenue,CCHD,South Glos Users in South Glos Homes,Permanent Nursing,Glebe House Nursing Home,2281.17, 28-Oct-2014
1224,Revenue,CCHD,Bed Purchasing - North,Permanent Residential,Glebe House Nursing Home,7210.69, 28-Oct-2014
1225,Revenue,CCHD,Bed Purchasing - North,Permanent Residential,Glebe House Nursing Home,1869.44, 28-Oct-2014
1226,Revenue,CCHD,South Glos Users in South Glos Homes,Permanent Nursing,Glebe House Nursing Home,2328.69, 28-Oct-2014
1227,Revenue,CCHD,Bed Purchasing - North,Permanent Nursing,Glebe House Nursing Home,1832.52, 28-Oct-2014
1228,Revenue,CCHD,Bed Purchasing - North,Permanent Nursing,Glebe House Nursing Home,2166.72, 28-Oct-2014
1229,Revenue,CCHD,Bed Purchasing - North,Permanent Residential,Glebe House Nursing Home,2593, 28-Oct-2014
1230,Revenue,CCHD,Bed Purchasing - South,Permanent Residential,Gordena Care Home,2113.64, 28-Oct-2014
1231,Revenue,CCHD,Bed Purchasing - South,Permanent Residential,Gordena Care Home,16423.02, 28-Oct-2014
1232,Revenue,CCHD,Bed purchasing - Elderly PWLD - South,Permanent Residential,Gordena Care Home,4799.84, 28-Oct-2014
1233,Revenue,CCHD,Bed purchasing - Elderly PWLD - South,Permanent Residential,Gordena Care Home,3159.76, 28-Oct-2014
1234,Revenue,CCHD,Bed purchasing - Elderly PWLD - South,Permanent Residential,Gordena Care Home,2968.16, 28-Oct-2014
1235,Revenue,CCHD,Bed Purchasing - Under 65s PWLD - South,Permanent Residential,Gordena Care Home,1933.24, 28-Oct-2014
1236,Revenue,CCHD,Bed Purchasing - Under 65s PWLD - South,Permanent Residential,Gordena Care Limited,4217.76, 28-Oct-2014
1237,Revenue,CCHD,Bed purchasing - S28A Under 65 - South,Permanent Residential,Gordena Care Limited,4116, 28-Oct-2014
1238,Revenue,CCHD,Bed Purchasing - North,Permanent Residential,Gordena Care Limited,4218.96, 28-Oct-2014
1239,Revenue,CCHD,Bed Purchasing - North,Permanent Residential,Gordena Care Limited,31824.63, 28-Oct-2014
1240,Revenue,CCHD,Bed Purchasing - North,Permanent Residential,Greensleeves,1331.92, 28-Oct-2014
1241,Revenue,CCHD,Bed Purchasing - South,Respite Planned - Residential,Grove Care,1240, 28-Oct-2014
1242,Revenue,CCHD,Bed Purchasing - North,Permanent Residential,Gwendoline House,1138.52, 28-Oct-2014
1243,Revenue,CCHD,Bed Purchasing - South,Permanent Residential,Gwendoline House,5610.71, 28-Oct-2014
1244,Revenue,CCHD,Bed Purchasing - South,Permanent Residential,Gwendoline House,952.12, 28-Oct-2014
1245,Revenue,CCHD,Bed Purchasing - Elderly MH - South,Permanent Residential,Gwendoline House,1292.56, 28-Oct-2014
1246,Revenue,CCHD,Bed Purchasing - South,Permanent Residential,Gwendoline House,1143.56, 28-Oct-2014
1247,Revenue,CCHD,Bed Purchasing - South,Permanent Residential,Gwendoline House,2293.64, 28-Oct-2014
1248,Revenue,CCHD,Bed Purchasing - Southmead Hospital,Permanent Residential,Gwendoline House,1620.2, 28-Oct-2014
1249,Revenue,CCHD,Supporting People Programme,Grants to Voluntary Bodies,Habinteg Housing Association,1358.58, 01-Oct-2014
1250,Revenue,CCHD,Supporting People Programme,Grants to Voluntary Bodies,Habinteg Housing Association,1358.58, 31-Oct-2014
1251,Revenue,CCHD,Social Lettings Agency,Fees - General,Individual,15.78, 27-Oct-2014
1252,Revenue,CCHD,Social Lettings Agency,Other Supplies & Services,Individual,536.55, 27-Oct-2014
1253,Revenue,CCHD,Bed Purchasing - South,Permanent Residential,Harefield Hall,1203.2, 28-Oct-2014
1254,Revenue,CCHD,Bed Purchasing - South,Permanent Residential,Harefield Hall,1831.12, 28-Oct-2014
1255,Revenue,CCHD,Bed Purchasing - South,Permanent Residential,Harefield Hall,1140.08, 28-Oct-2014
1256,Revenue,CCHD,Bed Purchasing - Elderly MH - South,Permanent Residential,Harefield Hall,1036.4, 28-Oct-2014
1257,Revenue,CCHD,Bed Purchasing - South,Permanent Residential,Harefield Hall,1304.48, 28-Oct-2014
1258,Revenue,CCHD,Bed Purchasing - South,Permanent Residential,Harefield Hall,666.4, 28-Oct-2014
1259,Revenue,CCHD,Woodleaze,Equipment Maintenance,Harvey Servicing & Engineering Limited,472.5, 08-Oct-2014
1260,Revenue,CCHD,Alexandra Way,Premises Maintenance by Contractor,Harvey Servicing & Engineering Limited,765, 14-Oct-2014
1261,Revenue,CCHD,Bed Purchasing - Southmead Hospital,Permanent Nursing,Hc-One Ltd,1634.8, 28-Oct-2014
1262,Revenue,CCHD,Bed Purchasing - North,Permanent Nursing,Hc-One Ltd,1492.36, 28-Oct-2014
1263,Revenue,CCHD,Bed Purchasing - North,Permanent Nursing,Hc-One Ltd,1533.56, 28-Oct-2014
1264,Revenue,CCHD,Bed Purchasing - North,Permanent Residential,Hc-One Ltd,1006.84, 28-Oct-2014
1265,Revenue,CCHD,Bed Purchasing - North,Permanent Nursing,Hc-One Ltd,1518.6, 28-Oct-2014
1266,Revenue,CCHD,Bed Purchasing - South,Permanent Nursing,Hc-One Ltd,1955.92, 28-Oct-2014
1267,Revenue,CCHD,Bed Purchasing - South,Permanent Nursing,Hc-One Ltd,16549.11, 28-Oct-2014
1268,Revenue,CCHD,Bed Purchasing - North,Permanent Nursing,Hc-One Ltd,1496.2, 28-Oct-2014
1269,Revenue,CCHD,Bed purchasing - Elderly MH - North,Permanent Nursing,Hc-One Ltd,1496.2, 28-Oct-2014
1270,Revenue,CCHD,Bed purchasing - Elderly MH - North,Permanent Nursing,Hc-One Ltd,1239.28, 28-Oct-2014
1271,Revenue,CCHD,Bed Purchasing - South,Permanent Nursing,Hc-One Ltd,1152.48, 28-Oct-2014
1272,Revenue,CCHD,Bed purchasing - Elderly MH - North,Permanent Nursing,Hc-One Ltd,1197.44, 28-Oct-2014
1273,Revenue,CCHD,Bed Purchasing - Elderly S117- North,Permanent Nursing,Hc-One Ltd,1976.56, 28-Oct-2014
1274,Revenue,CCHD,Bed Purchasing - South,Permanent Residential,Heathwood Rest Home,1009.8, 28-Oct-2014
1275,Revenue,CCHD,Bed Purchasing - Southmead Hospital,Permanent Residential,Heathwood Rest Home,13295.51, 28-Oct-2014
1276,Revenue,CCHD,"Strategy, Advice and Public Protection",Other Supplies & Services,Helen Cooke,5100, 13-Oct-2014
1277,Revenue,CCHD,Home Care - Elderly - South,Other Small Contracts,Helping Hands Homecare,735.08, 07-Oct-2014
1278,Revenue,CCHD,Home Care - Elderly - North,Day Care / Social Activities,Helping Hands Homecare,31.28, 07-Oct-2014
1279,Revenue,CCHD,Home Care - Elderly - North,Other Small Contracts,Helping Hands Homecare,2177.87, 07-Oct-2014
1280,Revenue,CCHD,Day Care - North,Day Care / Social Activities,Helping Hands Homecare,93.84, 07-Oct-2014
1281,Revenue,CCHD,Under 65s -MH  Home Care Purch,Other Small Contracts,Helping Hands Homecare,35.19, 07-Oct-2014
1282,Revenue,CCHD,Home care - Elderly MH - North,Other Small Contracts,Helping Hands Homecare,62.56, 07-Oct-2014
1283,Revenue,CCHD,Home Care - Elderly - South,Other Small Contracts,Helping Hands Homecare,766.36, 07-Oct-2014
1284,Revenue,CCHD,Home Care - Elderly - North,Day Care / Social Activities,Helping Hands Homecare,31.28, 07-Oct-2014
1285,Revenue,CCHD,Home Care - Elderly - North,Other Small Contracts,Helping Hands Homecare,2197.42, 07-Oct-2014
1286,Revenue,CCHD,Day Care - North,Day Care / Social Activities,Helping Hands Homecare,93.84, 07-Oct-2014
1287,Revenue,CCHD,Under 65s -MH  Home Care Purch,Other Small Contracts,Helping Hands Homecare,31.28, 07-Oct-2014
1288,Revenue,CCHD,Home care - Elderly MH - North,Other Small Contracts,Helping Hands Homecare,62.56, 07-Oct-2014
1289,Revenue,CCHD,Home Care - Elderly - South,Other Small Contracts,Helping Hands Homecare,695.98, 09-Oct-2014
1290,Revenue,CCHD,Home Care - Elderly - North,Day Care / Social Activities,Helping Hands Homecare,31.28, 09-Oct-2014
1291,Revenue,CCHD,Home Care - Elderly - North,Other Small Contracts,Helping Hands Homecare,2162.23, 09-Oct-2014
1292,Revenue,CCHD,Day Care - North,Day Care / Social Activities,Helping Hands Homecare,93.84, 09-Oct-2014
1293,Revenue,CCHD,Under 65s -MH  Home Care Purch,Other Small Contracts,Helping Hands Homecare,31.28, 09-Oct-2014
1294,Revenue,CCHD,Home care - Elderly MH - North,Other Small Contracts,Helping Hands Homecare,62.56, 09-Oct-2014
1295,Revenue,CCHD,Home Care - Elderly - South,Other Small Contracts,Helping Hands Homecare,746.81, 24-Oct-2014
1296,Revenue,CCHD,Home Care - Elderly - North,Day Care / Social Activities,Helping Hands Homecare,31.28, 24-Oct-2014
1297,Revenue,CCHD,Home Care - Elderly - North,Other Small Contracts,Helping Hands Homecare,1935.45, 24-Oct-2014
1298,Revenue,CCHD,Day Care - North,Day Care / Social Activities,Helping Hands Homecare,93.84, 24-Oct-2014
1299,Revenue,CCHD,Under 65s -MH  Home Care Purch,Other Small Contracts,Helping Hands Homecare,31.28, 24-Oct-2014
1300,Revenue,CCHD,Home care - Elderly MH - North,Other Small Contracts,Helping Hands Homecare,66.47, 24-Oct-2014
1301,Revenue,CCHD,Home Care - Elderly - South,Other Small Contracts,Helping Hands Homecare,652.97, 24-Oct-2014
1302,Revenue,CCHD,Home Care - Elderly - North,Day Care / Social Activities,Helping Hands Homecare,27.37, 24-Oct-2014
1303,Revenue,CCHD,Home Care - Elderly - North,Other Small Contracts,Helping Hands Homecare,1947.18, 24-Oct-2014
1304,Revenue,CCHD,Day Care - North,Day Care / Social Activities,Helping Hands Homecare,93.84, 24-Oct-2014
1305,Revenue,CCHD,Under 65s -MH  Home Care Purch,Other Small Contracts,Helping Hands Homecare,31.28, 24-Oct-2014
1306,Revenue,CCHD,Home care - Elderly MH - North,Other Small Contracts,Helping Hands Homecare,62.56, 24-Oct-2014
1307,Revenue,CCHD,Home Care - Elderly - South,Other Small Contracts,Helping Hands Homecare,613.87, 24-Oct-2014
1308,Revenue,CCHD,Home Care - Elderly - North,Day Care / Social Activities,Helping Hands Homecare,31.28, 24-Oct-2014
1309,Revenue,CCHD,Home Care - Elderly - North,Other Small Contracts,Helping Hands Homecare,1704.76, 24-Oct-2014
1310,Revenue,CCHD,Day Care - North,Day Care / Social Activities,Helping Hands Homecare,93.84, 24-Oct-2014
1311,Revenue,CCHD,Under 65s -MH  Home Care Purch,Other Small Contracts,Helping Hands Homecare,31.28, 24-Oct-2014
1312,Revenue,CCHD,Home care - Elderly MH - North,Other Small Contracts,Helping Hands Homecare,66.47, 24-Oct-2014
1313,Revenue,CCHD,S117 Placements PCT,Permanent Residential,Hesley Hall,18209.52, 28-Oct-2014
1314,Revenue,CCHD,Bed Purchasing - Southmead Hospital,Permanent Residential,High Border Lodge,1442.96, 28-Oct-2014
1315,Revenue,CCHD,Bed Purchasing - Southmead Hospital,Permanent Residential,Highfield House,15201.37, 28-Oct-2014
1316,Revenue,CCHD,Bed Purchasing - Southmead Hospital,Permanent Residential,Highgate Studios,1174.24, 28-Oct-2014
1317,Revenue,CCHD,Bed Purchasing - North,Permanent Residential,Holmleigh Care Homes Ltd,33619.71, 28-Oct-2014
1318,Revenue,CCHD,Bed Purchasing - Under 65s PWLD - South,Permanent Residential,Holmleigh Care Homes Ltd,5102.6, 28-Oct-2014
1319,Revenue,CCHD,Bed purchasing - Under 65s PWLD - North,Permanent Residential,Home Farm Trust Ltd  5-6 Brook Office Pa,2852.08, 28-Oct-2014
1320,Revenue,CCHD,Bed purchasing - Elderly PWLD - South,Permanent Residential,Home Farm Trust Ltd  5-6 Brook Office Pa,5126.28, 28-Oct-2014
1321,Revenue,CCHD,Bed purchasing - Under 65s PWLD - North,Permanent Residential,Home Farm Trust Ltd  5-6 Brook Office Pa,3442.72, 28-Oct-2014
1322,Revenue,CCHD,Bed Purchasing - Under 65s PWLD - South,Permanent Residential,Home Farm Trust Ltd  5-6 Brook Office Pa,45010.48, 28-Oct-2014
1323,Revenue,CCHD,Bed Purchasing - North,Permanent Residential,Home From Home Care Ltd,72339.65, 28-Oct-2014
1324,Revenue,CCHD,Management & Support costs,Other Supplies & Services,Homeleigh Homes(Frenchay) Ltd,1301.1, 27-Oct-2014
1325,Revenue,CCHD,Bed purchasing - Under 65s PWLD - North,Permanent Residential,Homes Caring For Autism Ltd  Churchill H,9907.24, 28-Oct-2014
1326,Revenue,CCHD,Bed Purchasing - South,Permanent Residential,Homes Caring For Autism Ltd  Churchill H,102684.93, 28-Oct-2014
1327,Revenue,CCHD,Supporting People Programme,Grants to Voluntary Bodies,Housing 21,616.42, 01-Oct-2014
1328,Revenue,CCHD,Supporting People Programme,Grants to Voluntary Bodies,Housing 21,935, 01-Oct-2014
1329,Revenue,CCHD,Supporting People Programme,Grants to Voluntary Bodies,Housing 21,616.42, 31-Oct-2014
1330,Revenue,CCHD,Supporting People Programme,Grants to Voluntary Bodies,Housing 21,935, 31-Oct-2014
1331,Revenue,CCHD,Home Care - Elderly - North,Private & Voluntary Home Care,Housing 21,37580.45, 10-Oct-2014
1332,Revenue,CCHD,Home Care - Elderly - South,Private & Voluntary Home Care,Housing 21,24011, 01-Oct-2014
1333,Revenue,CCHD,Home Care - Elderly - South,Private & Voluntary Home Care,Housing 21,24011, 31-Oct-2014
1334,Revenue,CCHD,Home Care - Elderly - South,Private & Voluntary Home Care,Housing 21,8973.62, 24-Oct-2014
1335,Revenue,CCHD,Home Care - Elderly - South,Private & Voluntary Home Care,Housing 21,8973.62, 23-Oct-2014
1336,Revenue,CCHD,Information Systems - Software,Software Support & Maintenance,Housing Partners Limited,1875, 03-Oct-2014
1337,Revenue,CCHD,Care Management Team - South,Agency Staff (Operational)/PCT Pay,IPE,1917.51, 09-Oct-2014
1338,Revenue,CCHD,Social Lettings Agency,Fees - General,Individual,11.6, 10-Oct-2014
1339,Revenue,CCHD,Social Lettings Agency,Other Supplies & Services,Individual,655.41, 10-Oct-2014
1340,Revenue,CCHD,Homeless - Private Sector Leasing,Other Supplies & Services,Jill Collins,594, 15-Oct-2014
1341,Revenue,CCHD,Training - Adult Services,Training Expenses,Jonathan Coles,800, 29-Oct-2014
1342,Revenue,CCHD,Home Care - Elderly - South,Supported Living,Julia Simone- Supp. Ind.,1165.8, 28-Oct-2014
1343,Revenue,CCHD,Younger MH non-res purchasing,Supported Living,Julia Simone- Supp. Ind.,1165.8, 28-Oct-2014
1344,Revenue,CCHD,Younger MH non-res purchasing,Supported Living,Julia Simone- Supp. Ind.,1165.8, 28-Oct-2014
1345,Revenue,CCHD,Home Care - Elderly - North,Supported Living,Julia Simone- Supp. Ind.,1165.8, 28-Oct-2014
1346,Revenue,CCHD,Younger MH non-res purchasing,Supported Living,Julia Simone- Supp. Ind.,1165.8, 28-Oct-2014
1347,Revenue,CCHD,Younger MH non-res purchasing,Supported Living,Julia Simone- Supp. Ind.,1165.8, 28-Oct-2014
1348,Revenue,CCHD,Bed Purchasing - Under 65s PWLD - South,Permanent Residential,Julia Simone- Supp. Ind.,3960.52, 28-Oct-2014
1349,Revenue,CCHD,Bed purchasing -S28A  Under 65 - North,Permanent Residential,Julia Simone- Supp. Ind.,3494.52, 28-Oct-2014
1350,Revenue,CCHD,Bed Purchasing - South,Permanent Residential,Karenza Ltd,1756, 28-Oct-2014
1351,Revenue,CCHD,Bed Purchasing - South,Permanent Residential,Kenver House Residential Home,1568.68, 28-Oct-2014
1352,Revenue,CCHD,Bed Purchasing - Southmead Hospital,Permanent Residential,Kenver House Residential Home,1119.36, 28-Oct-2014
1353,Revenue,CCHD,Bed Purchasing - Southmead Hospital,Permanent Residential,Kenver House Residential Home,14612.13, 28-Oct-2014
1354,Revenue,CCHD,Bed Purchasing - Southmead Hospital,Permanent Residential,Kenver House Residential Home,1643.72, 28-Oct-2014
1355,Revenue,CCHD,Bed Purchasing - Southmead Hospital,Permanent Residential,Kenver House Residential Home,14626.44, 28-Oct-2014
1356,Revenue,CCHD,Bed Purchasing - Southmead Hospital,Permanent Residential,Kenver House Residential Home,1671.08, 28-Oct-2014
1357,Revenue,CCHD,Bed Purchasing - South,Permanent Residential,Kenver House Residential Home,1527.68, 28-Oct-2014
1358,Revenue,CCHD,Bed Purchasing - South,Permanent Residential,Kenver House Residential Home,1136.68, 28-Oct-2014
1359,Revenue,CCHD,Bed Purchasing - Elderly MH - South,Permanent Residential,Kenver House Residential Home,1370.92, 28-Oct-2014
1360,Revenue,CCHD,Bed Purchasing - South,Permanent Residential,Kenver House Residential Home,1691.08, 28-Oct-2014
1361,Revenue,CCHD,Bed Purchasing - Southmead Hospital,Respite Planned - Residential,Kenver House Residential Home,2166.88, 28-Oct-2014
1362,Revenue,CCHD,Bed Purchasing - South,Respite Planned - Residential,Kenver House Residential Home,1857.33, 28-Oct-2014
1363,Revenue,CCHD,Bed Purchasing - South,Permanent Residential,Kenver House Residential Home,2166.88, 28-Oct-2014
1364,Revenue,CCHD,Bed Purchasing - South,Permanent Residential,Kenver House Residential Home,1660.64, 28-Oct-2014
1365,Revenue,CCHD,Bed Purchasing - South,Permanent Residential,Kenver House Residential Home,1563.48, 28-Oct-2014
1366,Revenue,CCHD,Bed Purchasing - Southmead Hospital,Permanent Residential,Kenver House Residential Home,1671, 28-Oct-2014
1367,Revenue,CCHD,Bed Purchasing - South,Permanent Residential,Kenver House Residential Home,1414.64, 28-Oct-2014
1368,Revenue,CCHD,Bed Purchasing - North,Permanent Residential,Kenver House Residential Home,1659.44, 28-Oct-2014
1369,Revenue,CCHD,Bed Purchasing - Frenchay Hospital,Permanent Residential,Kenver House Residential Home,1562.4, 28-Oct-2014
1370,Revenue,CCHD,Supporting People Programme,Grants to Voluntary Bodies,Keyring Living Support Networks,2917, 01-Oct-2014
1371,Revenue,CCHD,Supporting People Programme,Grants to Voluntary Bodies,Keyring Living Support Networks,2917, 31-Oct-2014
1372,Revenue,CCHD,Bed Purchasing - North,Permanent Nursing,Kingfisher Lodge Care Centre,2514.24, 28-Oct-2014
1373,Revenue,CCHD,Supporting People Programme,Grants to Voluntary Bodies,Kingswood Young Homeless Project,16943.67, 01-Oct-2014
1374,Revenue,CCHD,Supporting People Programme,Grants to Voluntary Bodies,Kingswood Young Homeless Project,16943.67, 31-Oct-2014
1375,Revenue,CCHD,Housing Needs,Furniture & Fittings Loose,Kinnarps UK Limited (Invoice Account),919.5, 02-Oct-2014
1376,Revenue,CCHD,Bed purchasing - Under 65s PWLD - North,Permanent Residential,Kisimul Group,11388.88, 28-Oct-2014
1377,Revenue,CCHD,Supporting People Programme,Grants to Voluntary Bodies,Knightstone Housing Association Limited,13513.75, 01-Oct-2014
1378,Revenue,CCHD,Supporting People Programme,Grants to Voluntary Bodies,Knightstone Housing Association Limited,8537.92, 01-Oct-2014
1379,Revenue,CCHD,Supporting People Programme,Grants to Voluntary Bodies,Knightstone Housing Association Limited,7602.5, 01-Oct-2014
1380,Revenue,CCHD,Supporting People Programme,Grants to Voluntary Bodies,Knightstone Housing Association Limited,1789.75, 01-Oct-2014
1381,Revenue,CCHD,Supporting People Programme,Grants to Voluntary Bodies,Knightstone Housing Association Limited,2482.75, 01-Oct-2014
1382,Revenue,CCHD,Supporting People Programme,Grants to Voluntary Bodies,Knightstone Housing Association Limited,2483.33, 01-Oct-2014
1383,Revenue,CCHD,Supporting People Programme,Grants to Voluntary Bodies,Knightstone Housing Association Limited,844.58, 01-Oct-2014
1384,Revenue,CCHD,Supporting People Programme,Grants to Voluntary Bodies,Knightstone Housing Association Limited,13513.75, 31-Oct-2014
1385,Revenue,CCHD,Supporting People Programme,Grants to Voluntary Bodies,Knightstone Housing Association Limited,8537.92, 31-Oct-2014
1386,Revenue,CCHD,Supporting People Programme,Grants to Voluntary Bodies,Knightstone Housing Association Limited,7602.5, 31-Oct-2014
1387,Revenue,CCHD,Supporting People Programme,Grants to Voluntary Bodies,Knightstone Housing Association Limited,1789.75, 31-Oct-2014
1388,Revenue,CCHD,Supporting People Programme,Grants to Voluntary Bodies,Knightstone Housing Association Limited,2482.75, 31-Oct-2014
1389,Revenue,CCHD,Supporting People Programme,Grants to Voluntary Bodies,Knightstone Housing Association Limited,2483.33, 31-Oct-2014
1390,Revenue,CCHD,Supporting People Programme,Grants to Voluntary Bodies,Knightstone Housing Association Limited,844.58, 31-Oct-2014
1391,Revenue,CCHD,Home Care - Elderly - South,Other Small Contracts,Kumari Care Limited,2914.3, 23-Oct-2014
1392,Revenue,CCHD,Home Care - Elderly - North,Other Small Contracts,Kumari Care Limited,864.79, 23-Oct-2014
1393,Revenue,CCHD,Day Care - South,Day Care / Social Activities,Kumari Care Limited,100.36, 23-Oct-2014
1394,Revenue,CCHD,Under 65s -MH  Home Care Purch,Other Small Contracts,Kumari Care Limited,235.46, 23-Oct-2014
1395,Revenue,CCHD,Home Care - Elderly - South,Other Small Contracts,Kumari Care Limited,2610.55, 24-Oct-2014
1396,Revenue,CCHD,Home Care - Elderly - North,Other Small Contracts,Kumari Care Limited,881.53, 24-Oct-2014
1397,Revenue,CCHD,Day Care - South,Day Care / Social Activities,Kumari Care Limited,92.64, 24-Oct-2014
1398,Revenue,CCHD,Under 65s -MH  Home Care Purch,Other Small Contracts,Kumari Care Limited,203.04, 24-Oct-2014
1399,Revenue,CCHD,Home Care - Elderly - South,Other Small Contracts,Kumari Care Limited,2669.67, 23-Oct-2014
1400,Revenue,CCHD,Home Care - Elderly - North,Other Small Contracts,Kumari Care Limited,853.16, 23-Oct-2014
1401,Revenue,CCHD,Day Care - South,Day Care / Social Activities,Kumari Care Limited,96.5, 23-Oct-2014
1402,Revenue,CCHD,Under 65s -MH  Home Care Purch,Other Small Contracts,Kumari Care Limited,204.58, 23-Oct-2014
1403,Revenue,CCHD,Home Care - Elderly - South,Other Small Contracts,Kumari Care Limited,2722.4, 24-Oct-2014
1404,Revenue,CCHD,Home Care - Elderly - North,Other Small Contracts,Kumari Care Limited,864.74, 24-Oct-2014
1405,Revenue,CCHD,Day Care - South,Day Care / Social Activities,Kumari Care Limited,92.64, 24-Oct-2014
1406,Revenue,CCHD,Under 65s -MH  Home Care Purch,Other Small Contracts,Kumari Care Limited,254.76, 24-Oct-2014
1407,Revenue,CCHD,Home Care - Elderly - South,Other Small Contracts,Kumari Care Limited,2516.72, 24-Oct-2014
1408,Revenue,CCHD,Home Care - Elderly - North,Other Small Contracts,Kumari Care Limited,868.6, 24-Oct-2014
1409,Revenue,CCHD,Under 65s -MH  Home Care Purch,Other Small Contracts,Kumari Care Limited,135.1, 24-Oct-2014
1410,Revenue,CCHD,Home Care - Elderly - South,Other Small Contracts,Kumari Care Limited,3095.72, 24-Oct-2014
1411,Revenue,CCHD,Home Care - Elderly - North,Other Small Contracts,Kumari Care Limited,864.83, 24-Oct-2014
1412,Revenue,CCHD,Day Care - South,Day Care / Social Activities,Kumari Care Limited,96.5, 24-Oct-2014
1413,Revenue,CCHD,Learning Difficulties Development Fund,Other Supplies & Services,L D Awareness,1577.63, 10-Oct-2014
1414,Revenue,CCHD,Management & Support costs,Other Supplies & Services,Laing & Buisson (Publications) Limited,460, 21-Oct-2014
1415,Revenue,CCHD,Bed Purchasing - North,Permanent Nursing,Leonard Cheshire  National Account Centr,5036.48, 28-Oct-2014
1416,Revenue,CCHD,Bed Purchasing - North,Permanent Nursing,Leonard Cheshire  National Account Centr,33996.24, 28-Oct-2014
1417,Revenue,CCHD,Bed Purchasing - North,Permanent Residential,Leonard Cheshire  National Account Centr,2910.92, 28-Oct-2014
1418,Revenue,CCHD,Bed Purchasing - North,Permanent Residential,Leonard Cheshire  National Account Centr,22329.81, 28-Oct-2014
1419,Revenue,CCHD,Bed Purchasing - Under 65s PWLD - South,Permanent Residential,Leonard Cheshire  National Account Centr,3003.72, 28-Oct-2014
1420,Revenue,CCHD,Bed Purchasing - North,Permanent Nursing,Leonard Cheshire  National Account Centr,3520.6, 28-Oct-2014
1421,Revenue,CCHD,Bed Purchasing - North,Permanent Nursing,Leonard Cheshire  National Account Centr,2764.56, 28-Oct-2014
1422,Revenue,CCHD,Bed Purchasing - North,Permanent Nursing,Leonard Cheshire  National Account Centr,21341.88, 28-Oct-2014
1423,Revenue,CCHD,Bed Purchasing - North,Permanent Residential,Leonard Cheshire  National Account Centr,3196.52, 28-Oct-2014
1424,Revenue,CCHD,Bed Purchasing - North,Permanent Residential,Leonard Cheshire  National Account Centr,5959.48, 28-Oct-2014
1425,Revenue,CCHD,Bed Purchasing - North,Permanent Residential,Leonard Cheshire  National Account Centr,42382.44, 28-Oct-2014
1426,Revenue,CCHD,Bed purchasing - Under 65s PWLD - North,Permanent Residential,Leonard Cheshire  National Account Centr,5957.92, 28-Oct-2014
1427,Revenue,CCHD,Bed Purchasing - South,Permanent Residential,Leonard Cheshire  National Account Centr,4492.08, 28-Oct-2014
1428,Revenue,CCHD,Bed Purchasing - North,Permanent Nursing,Leonard Cheshire  National Account Centr,24484.63, 28-Oct-2014
1429,Revenue,CCHD,Bed Purchasing - North,Permanent Nursing,Leonard Cheshire  National Account Centr,3869.32, 28-Oct-2014
1430,Revenue,CCHD,Bed Purchasing - North,Permanent Nursing,Leonard Cheshire  National Account Centr,28273.86, 28-Oct-2014
1431,Revenue,CCHD,Bed Purchasing - North,Permanent Residential,Leonard Cheshire  National Account Centr,2932.64, 28-Oct-2014
1432,Revenue,CCHD,Bed Purchasing - North,Permanent Residential,Leonard Cheshire  National Account Centr,21951.27, 28-Oct-2014
1433,Revenue,CCHD,Bed Purchasing - North,Permanent Nursing,Leonard Cheshire  National Account Centr,25354.28, 28-Oct-2014
1434,Revenue,CCHD,Bed Purchasing - North,Permanent Nursing,Leonard Cheshire  National Account Centr,5603.08, 28-Oct-2014
1435,Revenue,CCHD,Bed Purchasing - North,Permanent Nursing,Leonard Cheshire  National Account Centr,37820.79, 28-Oct-2014
1436,Revenue,CCHD,Bed Purchasing - South,Permanent Nursing,Leonard Cheshire  National Account Centr,2908.6, 28-Oct-2014
1437,Revenue,CCHD,Bed Purchasing - Southmead Hospital,Permanent Nursing,Leonard Cheshire  National Account Centr,3041.76, 28-Oct-2014
1438,Revenue,CCHD,South Glos Users in all other LA Homes,Permanent Nursing,Leonard Cheshire  National Account Centr,610.44, 28-Oct-2014
1439,Revenue,CCHD,Bed Purchasing - North,Permanent Nursing,Leonard Cheshire  National Account Centr,3358.64, 28-Oct-2014
1440,Revenue,CCHD,Bed Purchasing - North,Permanent Nursing,Leonard Cheshire  National Account Centr,24826.77, 28-Oct-2014
1441,Revenue,CCHD,Bed purchasing - Phys Dis - North,Permanent Nursing,Leonard Cheshire  National Account Centr,4127.12, 28-Oct-2014
1442,Revenue,CCHD,Bed Purchasing - North,Respite Planned - Nursing,Leonard Cheshire  National Account Centr,1200, 28-Oct-2014
1443,Revenue,CCHD,Bed Purchasing - South,Permanent Nursing,Leonard Cheshire  National Account Centr,4560.88, 28-Oct-2014
1444,Revenue,CCHD,Bed Purchasing - Elderly S117- North,Permanent Nursing,Leonard Elms (Duplicated Address),2891, 28-Oct-2014
1445,Revenue,CCHD,Bed Purchasing - Southmead Hospital,Permanent Nursing,Leonard Elms (Duplicated Address),2856.44, 28-Oct-2014
1446,Revenue,CCHD,Bed Purchasing - Southmead Hospital,Permanent Nursing,Leonard Elms (Duplicated Address),6835.05, 28-Oct-2014
1447,Revenue,CCHD,Bed Purchasing - South,Permanent Nursing,Leonard Elms (Duplicated Address),1562.76, 28-Oct-2014
1448,Revenue,CCHD,Children & Young People�s Health,Other Supplies & Services,Lifeskills,1000, 31-Oct-2014
1449,Revenue,CCHD,Tenancy Start Up Scheme,Other Supplies & Services,Lifestyle Lettings (Deposit),550, 17-Oct-2014
1450,Revenue,CCHD,Supported Living - North,Private & Voluntary Home Care,Lifeways Community Care (Gloucester) Ltd,11373, 10-Oct-2014
1451,Revenue,CCHD,Tenancy Start Up Scheme,Other Supplies & Services,Lisa-Marie Letting & Property Management,1390, 23-Oct-2014
1452,Revenue,CCHD,Bed Purchasing - Southmead Hospital,Permanent Residential,Little Croft,1080.92, 28-Oct-2014
1453,Revenue,CCHD,Bed Purchasing - Southmead Hospital,Permanent Residential,Little Croft,1268.2, 28-Oct-2014
1454,Revenue,CCHD,Bed Purchasing - Southmead Hospital,Permanent Residential,Little Croft,11853, 28-Oct-2014
1455,Revenue,CCHD,Bed Purchasing - South,Permanent Residential,Little Croft,1570.6, 28-Oct-2014
1456,Revenue,CCHD,Bed Purchasing - South,Permanent Residential,Little Croft,1602.64, 28-Oct-2014
1457,Revenue,CCHD,Bed Purchasing - South,Permanent Residential,Little Croft,903.84, 28-Oct-2014
1458,Revenue,CCHD,Bed Purchasing - Southmead Hospital,Permanent Residential,Little Croft,1748.76, 28-Oct-2014
1459,Revenue,CCHD,Bed Purchasing - Southmead Hospital,Respite Emergency - Residential,Little Croft,1714.29, 28-Oct-2014
1460,Revenue,CCHD,Bed Purchasing - Southmead Hospital,Respite Emergency - Residential,Little Croft,785.71, 28-Oct-2014
1461,Revenue,CCHD,Bed Purchasing - Southmead Hospital,Permanent Residential,Little Croft,1736.2, 28-Oct-2014
1462,Revenue,CCHD,Bed Purchasing - Southmead Hospital,Permanent Residential,Little Croft,1432.2, 28-Oct-2014
1463,Revenue,CCHD,Bed Purchasing - Southmead Hospital,Permanent Residential,Little Croft,12394.29, 28-Oct-2014
1464,Revenue,CCHD,Bed Purchasing - South,Respite Planned - Residential,Little Croft,1003.43, 28-Oct-2014
1465,Revenue,CCHD,Bed Purchasing - Southmead Hospital,Permanent Residential,Little Croft,1189.72, 28-Oct-2014
1466,Revenue,CCHD,Bed Purchasing - Southmead Hospital,Permanent Residential,Little Croft,11853, 28-Oct-2014
1467,Revenue,CCHD,Bed Purchasing - Southmead Hospital,Permanent Residential,Little Croft,619.24, 28-Oct-2014
1468,Revenue,CCHD,Bed Purchasing - South,Permanent Residential,Little Croft,1050.36, 28-Oct-2014
1469,Revenue,CCHD,Bed Purchasing - South,Permanent Residential,Little Croft,1405.08, 28-Oct-2014
1470,Revenue,CCHD,Bed Purchasing - South,Permanent Residential,Little Croft,13014, 28-Oct-2014
1471,Revenue,CCHD,Bed Purchasing - Southmead Hospital,Permanent Residential,Little Croft,1260.2, 28-Oct-2014
1472,Revenue,CCHD,Bed Purchasing - North,Permanent Residential,Little Croft,1367.56, 28-Oct-2014
1473,Revenue,CCHD,Bed Purchasing - Southmead Hospital,Permanent Residential,Little Croft,1260.2, 28-Oct-2014
1474,Revenue,CCHD,Bed purchasing - Under 65s PWLD - North,Permanent Residential,Littlecroft Residential Homes  Longcroft,6481.28, 28-Oct-2014
1475,Revenue,CCHD,Home Care - Elderly - North,One-off Planned Direct Payment,Lloyds TSB Commercial Finance Limited,221.2, 24-Oct-2014
1476,Revenue,CCHD,Home Care - Elderly - North,Other Small Contracts,Lloyds TSB Commercial Finance Limited,6355.55, 24-Oct-2014
1477,Revenue,CCHD,Home Care - Elderly - North,One-off Planned Direct Payment,Lloyds TSB Commercial Finance Limited,209.35, 24-Oct-2014
1478,Revenue,CCHD,Home Care - Elderly - North,Other Small Contracts,Lloyds TSB Commercial Finance Limited,6241, 24-Oct-2014
1479,Revenue,CCHD,Home Care - Elderly - North,One-off Planned Direct Payment,Lloyds TSB Commercial Finance Limited,213.3, 24-Oct-2014
1480,Revenue,CCHD,Home Care - Elderly - North,Other Small Contracts,Lloyds TSB Commercial Finance Limited,6162, 24-Oct-2014
1481,Revenue,CCHD,Home Care - Elderly - North,One-off Planned Direct Payment,Lloyds TSB Commercial Finance Limited,205.4, 24-Oct-2014
1482,Revenue,CCHD,Home Care - Elderly - North,Other Small Contracts,Lloyds TSB Commercial Finance Limited,6051.4, 24-Oct-2014
1483,Revenue,CCHD,Home Care - Elderly - North,One-off Planned Direct Payment,Lloyds TSB Commercial Finance Limited,201.45, 24-Oct-2014
1484,Revenue,CCHD,Home Care - Elderly - North,Other Small Contracts,Lloyds TSB Commercial Finance Limited,6181.75, 24-Oct-2014
1485,Revenue,CCHD,Home Care - Elderly - North,One-off Planned Direct Payment,Lloyds TSB Commercial Finance Limited,201.45, 27-Oct-2014
1486,Revenue,CCHD,Home Care - Elderly - North,Other Small Contracts,Lloyds TSB Commercial Finance Limited,6043.5, 27-Oct-2014
1487,Revenue,CCHD,Supported Living - South,Private & Voluntary Home Care,Lloyds TSB Commercial Finance Limited,10134.52, 20-Oct-2014
1488,Revenue,CCHD,Supported Living - South,Private & Voluntary Home Care,Lloyds TSB Commercial Finance Limited,3804.05, 20-Oct-2014
1489,Revenue,CCHD,Supported Living - South,Private & Voluntary Home Care,Lloyds TSB Commercial Finance Limited,3850.94, 20-Oct-2014
1490,Revenue,CCHD,Supported Living - South,Private & Voluntary Home Care,Lloyds TSB Commercial Finance Limited,3742.52, 20-Oct-2014
1491,Revenue,CCHD,Supported Living - South,Private & Voluntary Home Care,Lloyds TSB Commercial Finance Limited,9199.95, 20-Oct-2014
1492,Revenue,CCHD,Supported Living - South,Private & Voluntary Home Care,Lloyds TSB Commercial Finance Limited,3765.75, 20-Oct-2014
1493,Revenue,CCHD,Supported Living - South,Private & Voluntary Home Care,Lloyds TSB Commercial Finance Limited,7785.72, 20-Oct-2014
1494,Revenue,CCHD,Supported Living - South,Private & Voluntary Home Care,Lloyds TSB Commercial Finance Limited,3670.05, 20-Oct-2014
1495,Revenue,CCHD,Supported Living - South,Private & Voluntary Home Care,Lloyds TSB Commercial Finance Limited,3904.71, 20-Oct-2014
1496,Revenue,CCHD,Supported Living - South,Private & Voluntary Home Care,Lloyds TSB Commercial Finance Limited,3582.23, 20-Oct-2014
1497,Revenue,CCHD,Supported Living - South,Private & Voluntary Home Care,Lloyds TSB Commercial Finance Limited,3137.44, 20-Oct-2014
1498,Revenue,CCHD,Supported Living - South,Private & Voluntary Home Care,Lloyds TSB Commercial Finance Limited,5945.75, 20-Oct-2014
1499,Revenue,CCHD,Supported Living - South,Private & Voluntary Home Care,Lloyds TSB Commercial Finance Limited,3427.92, 20-Oct-2014
1500,Revenue,CCHD,Supported Living - South,Private & Voluntary Home Care,Lloyds TSB Commercial Finance Limited,3532.97, 20-Oct-2014
1501,Revenue,CCHD,Supported Living - South,Private & Voluntary Home Care,Lloyds TSB Commercial Finance Limited,3463.65, 20-Oct-2014
1502,Revenue,CCHD,Supported Living - South,Private & Voluntary Home Care,Loga Care Ltd (T/A Logacare),3795.33, 02-Oct-2014
1503,Revenue,CCHD,Supported Living - South,Private & Voluntary Home Care,Loga Care Ltd (T/A Logacare),3672.9, 31-Oct-2014
1504,Revenue,CCHD,Social Lettings Agency,Fees - General,Individual,10, 01-Oct-2014
1505,Revenue,CCHD,Social Lettings Agency,Other Supplies & Services,Individual,565, 01-Oct-2014
1506,Revenue,CCHD,Social Lettings Agency,Fees - General,Individual,10, 31-Oct-2014
1507,Revenue,CCHD,Social Lettings Agency,Other Supplies & Services,Individual,565, 31-Oct-2014
1508,Revenue,CCHD,Home Care - Elderly - North,Day Care / Social Activities,Lower Kilcott,1466, 28-Oct-2014
1509,Revenue,CCHD,Home Care - Elderly - North,Day Care / Social Activities,Lower Kilcott,560.64, 28-Oct-2014
1510,Revenue,CCHD,TSG Practice Placements,Training Expenses,M Harris,527.65, 16-Oct-2014
1511,Revenue,CCHD,Bed Purchasing - Southmead Hospital,Permanent Nursing,Majestic 3 Limited,1000.2, 28-Oct-2014
1512,Revenue,CCHD,Purchase of Non-Res Care - North,Day Care / Social Activities,Make It Mentoring (MiM),2209.34, 03-Oct-2014
1513,Revenue,CCHD,Bed Purchasing - Southmead Hospital,Permanent Nursing,Mandeville Grange Nursing Home,1047.52, 28-Oct-2014
1514,Revenue,CCHD,Bed Purchasing - Southmead Hospital,Permanent Residential,Manor Cottage,12885.52, 28-Oct-2014
1515,Revenue,CCHD,Bed Purchasing - South,Permanent Residential,Manor Cottage,1456.6, 28-Oct-2014
1516,Revenue,CCHD,Bed Purchasing - Southmead Hospital,Permanent Residential,Manor Cottage,1260.2, 28-Oct-2014
1517,Revenue,CCHD,Bed Purchasing - North,Permanent Residential,Manton Hall Residential Home,1521.6, 28-Oct-2014
1518,Revenue,CCHD,Supported Living - South,Private & Voluntary Home Care,Maples Community Care Limited,2889.6, 24-Oct-2014
1519,Revenue,CCHD,Sexual Health,Other Supplies & Services,Margaret Nowicki,670.2, 27-Oct-2014
1520,Revenue,CCHD,Social Lettings Agency,Fees - General,Individual,11.6, 20-Oct-2014
1521,Revenue,CCHD,Social Lettings Agency,Other Supplies & Services,Individual,655.41, 20-Oct-2014
1522,Revenue,CCHD,Swift Dump Code,Permanent Residential,Marsden Healthcare Limited,2324.92, 24-Oct-2014
1523,Revenue,CCHD,Bed Purchasing - South,Permanent Residential,Marsden Healthcare Limited,12038.9, 24-Oct-2014
1524,Revenue,CCHD,Bed purchasing - Elderly PWLD - South,Permanent Residential,Marsden Healthcare Limited,3247.8, 24-Oct-2014
1525,Revenue,CCHD,Bed Purchasing - South,Permanent Residential,Marsden Healthcare Limited,1525.64, 24-Oct-2014
1526,Revenue,CCHD,Bed Purchasing - South,Permanent Residential,Marsden Healthcare Limited,13644.72, 24-Oct-2014
1527,Revenue,CCHD,Bed Purchasing - South,Permanent Nursing,Meadow Care Home,1541, 28-Oct-2014
1528,Revenue,CCHD,Home Care - Elderly - South,Day Care / Social Activities,Mears Care,88.55, 22-Oct-2014
1529,Revenue,CCHD,Home Care - Elderly - South,Other Small Contracts,Mears Care,843.15, 22-Oct-2014
1530,Revenue,CCHD,Home Care - Elderly - North,Other Small Contracts,Mears Care,3969.35, 22-Oct-2014
1531,Revenue,CCHD,Day Care - North,Day Care / Social Activities,Mears Care,77, 22-Oct-2014
1532,Revenue,CCHD,Under 65s -MH  Home Care Purch,Other Small Contracts,Mears Care,115.5, 22-Oct-2014
1533,Revenue,CCHD,Home Care - Elderly LD - KH,Private & Voluntary Home Care,Mears Care,57.75, 22-Oct-2014
1534,Revenue,CCHD,Home Care - Elderly - South,Day Care / Social Activities,Mears Care,88.55, 22-Oct-2014
1535,Revenue,CCHD,Home Care - Elderly - South,Other Small Contracts,Mears Care,866.25, 22-Oct-2014
1536,Revenue,CCHD,Home Care - Elderly - North,Other Small Contracts,Mears Care,3780.7, 22-Oct-2014
1537,Revenue,CCHD,Day Care - North,Day Care / Social Activities,Mears Care,77, 22-Oct-2014
1538,Revenue,CCHD,Under 65s -MH  Home Care Purch,Other Small Contracts,Mears Care,115.5, 22-Oct-2014
1539,Revenue,CCHD,Home Care - Elderly - South,Day Care / Social Activities,Mears Care,42.35, 24-Oct-2014
1540,Revenue,CCHD,Home Care - Elderly - South,Other Small Contracts,Mears Care,785.4, 24-Oct-2014
1541,Revenue,CCHD,Home Care - Elderly - North,Other Small Contracts,Mears Care,3711.4, 24-Oct-2014
1542,Revenue,CCHD,Day Care - North,Day Care / Social Activities,Mears Care,100.1, 24-Oct-2014
1543,Revenue,CCHD,Under 65s -MH  Home Care Purch,Other Small Contracts,Mears Care,115.5, 24-Oct-2014
1544,Revenue,CCHD,Home Care - Elderly - South,Day Care / Social Activities,Mears Care,96.25, 24-Oct-2014
1545,Revenue,CCHD,Home Care - Elderly - South,Other Small Contracts,Mears Care,719.95, 24-Oct-2014
1546,Revenue,CCHD,Home Care - Elderly - North,Other Small Contracts,Mears Care,3780.7, 24-Oct-2014
1547,Revenue,CCHD,Day Care - North,Day Care / Social Activities,Mears Care,100.1, 24-Oct-2014
1548,Revenue,CCHD,Under 65s -MH  Home Care Purch,Other Small Contracts,Mears Care,115.5, 24-Oct-2014
1549,Revenue,CCHD,Home Care - Elderly - South,Day Care / Social Activities,Mears Care,88.55, 29-Oct-2014
1550,Revenue,CCHD,Home Care - Elderly - South,Other Small Contracts,Mears Care,619.85, 29-Oct-2014
1551,Revenue,CCHD,Home Care - Elderly - North,Other Small Contracts,Mears Care,3734.5, 29-Oct-2014
1552,Revenue,CCHD,Day Care - North,Day Care / Social Activities,Mears Care,107.8, 29-Oct-2014
1553,Revenue,CCHD,Under 65s -MH  Home Care Purch,Other Small Contracts,Mears Care,115.5, 29-Oct-2014
1554,Revenue,CCHD,Home Care - Elderly - South,Private & Voluntary Home Care,Mears Care,48544, 28-Oct-2014
1555,Revenue,CCHD,Kingswood Centre - Maple Suite,Equipment Maintenance,Medaco,573, 24-Oct-2014
1556,Revenue,CCHD,Home Care - Elderly - South,Other Small Contracts,Medacs Home Care,136.5, 24-Oct-2014
1557,Revenue,CCHD,Home Care - Elderly - North,Other Small Contracts,Medacs Home Care,433.7, 24-Oct-2014
1558,Revenue,CCHD,Home care - Elderly MH - North,Other Small Contracts,Medacs Home Care,84, 24-Oct-2014
1559,Revenue,CCHD,Home Care - Elderly - South,Other Small Contracts,Medacs Home Care,122.5, 24-Oct-2014
1560,Revenue,CCHD,Home Care - Elderly - North,Other Small Contracts,Medacs Home Care,430.2, 24-Oct-2014
1561,Revenue,CCHD,Home care - Elderly MH - North,Other Small Contracts,Medacs Home Care,91, 24-Oct-2014
1562,Revenue,CCHD,NRS Contract,Daily Living Equipment,Medequip Assistive Technology Ltd,25241.91, 10-Oct-2014
1563,Revenue,CCHD,NRS Contract,Daily Living Equipment,Medequip Assistive Technology Ltd,76431.31, 10-Oct-2014
1564,Revenue,CCHD,NRS Contract,Daily Living Equipment,Medequip Assistive Technology Ltd,1687.5, 10-Oct-2014
1565,Revenue,CCHD,NRS Contract,Daily Living Equipment,Medequip Assistive Technology Ltd,2062.5, 10-Oct-2014
1566,Revenue,CCHD,NRS Contract,Daily Living Equipment,Medequip Assistive Technology Ltd,34050.96, 30-Oct-2014
1567,Revenue,CCHD,NRS Contract,Daily Living Equipment,Medequip Assistive Technology Ltd,75900.91, 30-Oct-2014
1568,Revenue,CCHD,Bed Purchasing - Under 65s PWLD - South,Permanent Residential,Mencap,2252.48, 28-Oct-2014
1569,Revenue,CCHD,Supported Living (S28a) South,Private & Voluntary Home Care,Mencap - PS Central & Cymru,3841.88, 16-Oct-2014
1570,Revenue,CCHD,Supported Living (S28a) South,Private & Voluntary Home Care,Mencap - PS Central & Cymru,3841.88, 16-Oct-2014
1571,Revenue,CCHD,Supported Living (S28a) South,Private & Voluntary Home Care,Mencap - PS Central & Cymru,3841.88, 16-Oct-2014
1572,Revenue,CCHD,Supported Living (S28a) South,Private & Voluntary Home Care,Mencap - PS Central & Cymru,3841.88, 28-Oct-2014
1573,Revenue,CCHD,Bed Purchasing - South,Permanent Nursing,Mendip Court,3169.04, 28-Oct-2014
1574,Revenue,CCHD,Supporting People Programme,Grants to Voluntary Bodies,Merlin Housing Society,14628.5, 01-Oct-2014
1575,Revenue,CCHD,Supporting People Programme,Grants to Voluntary Bodies,Merlin Housing Society,2458.92, 01-Oct-2014
1576,Revenue,CCHD,Supporting People Programme,Grants to Voluntary Bodies,Merlin Housing Society,47076.5, 01-Oct-2014
1577,Revenue,CCHD,Supporting People Programme,Grants to Voluntary Bodies,Merlin Housing Society,1041.83, 01-Oct-2014
1578,Revenue,CCHD,Supporting People Programme,Grants to Voluntary Bodies,Merlin Housing Society,14628.5, 31-Oct-2014
1579,Revenue,CCHD,Supporting People Programme,Grants to Voluntary Bodies,Merlin Housing Society,2458.92, 31-Oct-2014
1580,Revenue,CCHD,Supporting People Programme,Grants to Voluntary Bodies,Merlin Housing Society,47076.5, 31-Oct-2014
1581,Revenue,CCHD,Supporting People Programme,Grants to Voluntary Bodies,Merlin Housing Society,1041.83, 31-Oct-2014
1582,Revenue,CCHD,Intermediate Care Accommodation,Other Supplies & Services,Merlin Housing Society,491.12, 24-Oct-2014
1583,Revenue,CCHD,Home Care - Elderly - South,Other Small Contracts,MiHomecare,279.45, 23-Oct-2014
1584,Revenue,CCHD,Home Care - Elderly - North,Other Small Contracts,MiHomecare,591.3, 23-Oct-2014
1585,Revenue,CCHD,Home Care - Elderly - South,Other Small Contracts,MiHomecare,348.3, 09-Oct-2014
1586,Revenue,CCHD,Home Care - Elderly - North,Other Small Contracts,MiHomecare,672.3, 09-Oct-2014
1587,Revenue,CCHD,Home Care - Elderly - South,Other Small Contracts,MiHomecare,396.9, 09-Oct-2014
1588,Revenue,CCHD,Home Care - Elderly - North,Other Small Contracts,MiHomecare,639.9, 09-Oct-2014
1589,Revenue,CCHD,Home Care - Elderly - South,Other Small Contracts,MiHomecare,380.7, 24-Oct-2014
1590,Revenue,CCHD,Home Care - Elderly - North,Other Small Contracts,MiHomecare,494.1, 24-Oct-2014
1591,Revenue,CCHD,Home Care - Elderly - South,Other Small Contracts,MiHomecare,425.25, 24-Oct-2014
1592,Revenue,CCHD,Home Care - Elderly - North,Other Small Contracts,MiHomecare,445.5, 24-Oct-2014
1593,Revenue,CCHD,Home Care - Elderly - South,Other Small Contracts,MiHomecare,392.85, 24-Oct-2014
1594,Revenue,CCHD,Home Care - Elderly - North,Other Small Contracts,MiHomecare,348.3, 24-Oct-2014
1595,Revenue,CCHD,Home Care - Elderly - South,Other Small Contracts,MiHomecare,392.85, 24-Oct-2014
1596,Revenue,CCHD,Home Care - Elderly - North,Other Small Contracts,MiHomecare,400.95, 24-Oct-2014
1597,Revenue,CCHD,Home Care - Elderly - South,Other Small Contracts,MiHomecare,364.5, 24-Oct-2014
1598,Revenue,CCHD,Home Care - Elderly - North,Other Small Contracts,MiHomecare,332.1, 24-Oct-2014
1599,Revenue,CCHD,Home Care - Elderly - South,Other Small Contracts,MiHomecare,396.9, 31-Oct-2014
1600,Revenue,CCHD,Home Care - Elderly - North,Other Small Contracts,MiHomecare,376.65, 31-Oct-2014
1601,Revenue,CCHD,Bed Purchasing - Southmead Hospital,Permanent Residential,Milburn Finance,12364.12, 28-Oct-2014
1602,Revenue,CCHD,Home Care - Elderly - South,Day Care / Social Activities,Milestones Homecare & Dementia Service,34.92, 08-Oct-2014
1603,Revenue,CCHD,Home Care - Elderly - South,Other Small Contracts,Milestones Homecare & Dementia Service,1610.2, 08-Oct-2014
1604,Revenue,CCHD,Home Care - Elderly - North,Other Small Contracts,Milestones Homecare & Dementia Service,1769.28, 08-Oct-2014
1605,Revenue,CCHD,Home care - Elderly MH - North,Other Small Contracts,Milestones Homecare & Dementia Service,54.32, 08-Oct-2014
1606,Revenue,CCHD,Home Care - Elderly - South,Day Care / Social Activities,Milestones Homecare & Dementia Service,31.04, 08-Oct-2014
1607,Revenue,CCHD,Home Care - Elderly - South,Other Small Contracts,Milestones Homecare & Dementia Service,1637.36, 08-Oct-2014
1608,Revenue,CCHD,Home Care - Elderly - North,Other Small Contracts,Milestones Homecare & Dementia Service,1660.64, 08-Oct-2014
1609,Revenue,CCHD,Home care - Elderly MH - North,Other Small Contracts,Milestones Homecare & Dementia Service,54.32, 08-Oct-2014
1610,Revenue,CCHD,Home Care - Elderly - South,Day Care / Social Activities,Milestones Homecare & Dementia Service,31.04, 08-Oct-2014
1611,Revenue,CCHD,Home Care - Elderly - South,Other Small Contracts,Milestones Homecare & Dementia Service,1726.6, 08-Oct-2014
1612,Revenue,CCHD,Home Care - Elderly - North,Other Small Contracts,Milestones Homecare & Dementia Service,1652.88, 08-Oct-2014
1613,Revenue,CCHD,Home care - Elderly MH - North,Other Small Contracts,Milestones Homecare & Dementia Service,42.68, 08-Oct-2014
1614,Revenue,CCHD,Home Care - Elderly - South,Day Care / Social Activities,Milestones Homecare & Dementia Service,31.04, 24-Oct-2014
1615,Revenue,CCHD,Home Care - Elderly - South,Other Small Contracts,Milestones Homecare & Dementia Service,1695.56, 24-Oct-2014
1616,Revenue,CCHD,Home Care - Elderly - North,Other Small Contracts,Milestones Homecare & Dementia Service,1513.2, 24-Oct-2014
1617,Revenue,CCHD,Home care - Elderly MH - North,Other Small Contracts,Milestones Homecare & Dementia Service,42.68, 24-Oct-2014
1618,Revenue,CCHD,Home Care - Elderly - South,Day Care / Social Activities,Milestones Homecare & Dementia Service,31.04, 24-Oct-2014
1619,Revenue,CCHD,Home Care - Elderly - South,Other Small Contracts,Milestones Homecare & Dementia Service,1672.28, 24-Oct-2014
1620,Revenue,CCHD,Home Care - Elderly - North,Other Small Contracts,Milestones Homecare & Dementia Service,1586.92, 24-Oct-2014
1621,Revenue,CCHD,Home care - Elderly MH - North,Other Small Contracts,Milestones Homecare & Dementia Service,46.56, 24-Oct-2014
1622,Revenue,CCHD,Home Care - Elderly - South,Day Care / Social Activities,Milestones Homecare & Dementia Service,31.04, 24-Oct-2014
1623,Revenue,CCHD,Home Care - Elderly - South,Other Small Contracts,Milestones Homecare & Dementia Service,1823.6, 24-Oct-2014
1624,Revenue,CCHD,Home Care - Elderly - North,Other Small Contracts,Milestones Homecare & Dementia Service,1590.8, 24-Oct-2014
1625,Revenue,CCHD,Home care - Elderly MH - North,Other Small Contracts,Milestones Homecare & Dementia Service,54.32, 24-Oct-2014
1626,Revenue,CCHD,Home Care - Elderly - South,Day Care / Social Activities,Milestones Homecare & Dementia Service,31.04, 24-Oct-2014
1627,Revenue,CCHD,Home Care - Elderly - South,Other Small Contracts,Milestones Homecare & Dementia Service,1994.32, 24-Oct-2014
1628,Revenue,CCHD,Home Care - Elderly - North,Other Small Contracts,Milestones Homecare & Dementia Service,1571.4, 24-Oct-2014
1629,Revenue,CCHD,Home care - Elderly MH - North,Other Small Contracts,Milestones Homecare & Dementia Service,54.32, 24-Oct-2014
1630,Revenue,CCHD,Home Care - Elderly - South,Day Care / Social Activities,Milestones Homecare & Dementia Service,31.04, 24-Oct-2014
1631,Revenue,CCHD,Home Care - Elderly - South,Other Small Contracts,Milestones Homecare & Dementia Service,2060.28, 24-Oct-2014
1632,Revenue,CCHD,Home Care - Elderly - North,Other Small Contracts,Milestones Homecare & Dementia Service,1753.76, 24-Oct-2014
1633,Revenue,CCHD,Home care - Elderly MH - North,Other Small Contracts,Milestones Homecare & Dementia Service,54.32, 24-Oct-2014
1634,Revenue,CCHD,Home Care - Elderly - South,Day Care / Social Activities,Milestones Homecare & Dementia Service,31.04, 24-Oct-2014
1635,Revenue,CCHD,Home Care - Elderly - South,Other Small Contracts,Milestones Homecare & Dementia Service,1982.68, 24-Oct-2014
1636,Revenue,CCHD,Home Care - Elderly - North,Other Small Contracts,Milestones Homecare & Dementia Service,1854.64, 24-Oct-2014
1637,Revenue,CCHD,Home care - Elderly MH - North,Other Small Contracts,Milestones Homecare & Dementia Service,54.32, 24-Oct-2014
1638,Revenue,CCHD,Home Care - Elderly - South,Day Care / Social Activities,Milestones Homecare & Dementia Service,31.04, 24-Oct-2014
1639,Revenue,CCHD,Home Care - Elderly - South,Other Small Contracts,Milestones Homecare & Dementia Service,2013.72, 24-Oct-2014
1640,Revenue,CCHD,Home Care - Elderly - North,Other Small Contracts,Milestones Homecare & Dementia Service,1548.12, 24-Oct-2014
1641,Revenue,CCHD,Home care - Elderly MH - North,Other Small Contracts,Milestones Homecare & Dementia Service,54.32, 24-Oct-2014
1642,Revenue,CCHD,Home Care - Elderly - South,Day Care / Social Activities,Milestones Homecare & Dementia Service,31.04, 31-Oct-2014
1643,Revenue,CCHD,Home Care - Elderly - South,Other Small Contracts,Milestones Homecare & Dementia Service,1951.64, 31-Oct-2014
1644,Revenue,CCHD,Home Care - Elderly - North,Other Small Contracts,Milestones Homecare & Dementia Service,1617.96, 31-Oct-2014
1645,Revenue,CCHD,Home care - Elderly MH - North,Other Small Contracts,Milestones Homecare & Dementia Service,50.44, 31-Oct-2014
1646,Revenue,CCHD,Home Care - Elderly - South,Day Care / Social Activities,Milestones Supported Living Services,2702.74, 24-Oct-2014
1647,Revenue,CCHD,Home Care - Elderly - South,Other Small Contracts,Milestones Supported Living Services,3821.53, 24-Oct-2014
1648,Revenue,CCHD,Home Care - Elderly - North,Day Care / Social Activities,Milestones Supported Living Services,866.16, 24-Oct-2014
1649,Revenue,CCHD,Home Care - Elderly - North,Other Small Contracts,Milestones Supported Living Services,48.12, 24-Oct-2014
1650,Revenue,CCHD,Day Care - South,Day Care / Social Activities,Milestones Supported Living Services,127.61, 24-Oct-2014
1651,Revenue,CCHD,Day Care - North,Day Care / Social Activities,Milestones Supported Living Services,197.27, 24-Oct-2014
1652,Revenue,CCHD,Younger MH non-res purchasing,Day Care / Social Activities,Milestones Supported Living Services,20.05, 24-Oct-2014
1653,Revenue,CCHD,Home care - Elderly MH - North,Other Small Contracts,Milestones Supported Living Services,60.15, 24-Oct-2014
1654,Revenue,CCHD,Home Care - Elderly - South,Day Care / Social Activities,Milestones Supported Living Services,2558.38, 24-Oct-2014
1655,Revenue,CCHD,Home Care - Elderly - South,Other Small Contracts,Milestones Supported Living Services,4314.76, 24-Oct-2014
1656,Revenue,CCHD,Home Care - Elderly - North,Day Care / Social Activities,Milestones Supported Living Services,850.12, 24-Oct-2014
1657,Revenue,CCHD,Home Care - Elderly - North,Other Small Contracts,Milestones Supported Living Services,320.8, 24-Oct-2014
1658,Revenue,CCHD,Day Care - South,Day Care / Social Activities,Milestones Supported Living Services,100.25, 24-Oct-2014
1659,Revenue,CCHD,Day Care - North,Day Care / Social Activities,Milestones Supported Living Services,184.69, 24-Oct-2014
1660,Revenue,CCHD,Younger MH non-res purchasing,Day Care / Social Activities,Milestones Supported Living Services,32.08, 24-Oct-2014
1661,Revenue,CCHD,Home care - Elderly MH - North,Other Small Contracts,Milestones Supported Living Services,60.15, 24-Oct-2014
1662,Revenue,CCHD,Home Care - Elderly - South,Day Care / Social Activities,Milestones Supported Living Services,2706.75, 24-Oct-2014
1663,Revenue,CCHD,Home Care - Elderly - South,Other Small Contracts,Milestones Supported Living Services,2770.91, 24-Oct-2014
1664,Revenue,CCHD,Home Care - Elderly - South,Supported Living,Milestones Supported Living Services,673.68, 24-Oct-2014
1665,Revenue,CCHD,Home Care - Elderly - North,Day Care / Social Activities,Milestones Supported Living Services,962.4, 24-Oct-2014
1666,Revenue,CCHD,Home Care - Elderly - North,Other Small Contracts,Milestones Supported Living Services,48.12, 24-Oct-2014
1667,Revenue,CCHD,Day Care - North,Day Care / Social Activities,Milestones Supported Living Services,201.28, 24-Oct-2014
1668,Revenue,CCHD,Younger MH non-res purchasing,Day Care / Social Activities,Milestones Supported Living Services,21.7, 24-Oct-2014
1669,Revenue,CCHD,Home care - Elderly MH - North,Other Small Contracts,Milestones Supported Living Services,64.16, 24-Oct-2014
1670,Revenue,CCHD,Home Care - Elderly - South,Day Care / Social Activities,Milestones Supported Living Services,2165.4, 24-Oct-2014
1671,Revenue,CCHD,Home Care - Elderly - South,Other Small Contracts,Milestones Supported Living Services,2823.04, 24-Oct-2014
1672,Revenue,CCHD,Home Care - Elderly - North,Day Care / Social Activities,Milestones Supported Living Services,954.38, 24-Oct-2014
1673,Revenue,CCHD,Day Care - South,Day Care / Social Activities,Milestones Supported Living Services,64.16, 24-Oct-2014
1674,Revenue,CCHD,Day Care - North,Day Care / Social Activities,Milestones Supported Living Services,197.27, 24-Oct-2014
1675,Revenue,CCHD,Home care - Elderly MH - North,Other Small Contracts,Milestones Supported Living Services,64.16, 24-Oct-2014
1676,Revenue,CCHD,Home Care - Elderly - South,Day Care / Social Activities,Milestones Supported Living Services,2658.63, 24-Oct-2014
1677,Revenue,CCHD,Home Care - Elderly - South,Other Small Contracts,Milestones Supported Living Services,3328.3, 24-Oct-2014
1678,Revenue,CCHD,Home Care - Elderly - North,Day Care / Social Activities,Milestones Supported Living Services,1110.77, 24-Oct-2014
1679,Revenue,CCHD,Day Care - South,Day Care / Social Activities,Milestones Supported Living Services,96.24, 24-Oct-2014
1680,Revenue,CCHD,Day Care - North,Day Care / Social Activities,Milestones Supported Living Services,177.22, 24-Oct-2014
1681,Revenue,CCHD,Younger MH non-res purchasing,Day Care / Social Activities,Milestones Supported Living Services,24.06, 24-Oct-2014
1682,Revenue,CCHD,Home care - Elderly MH - North,Other Small Contracts,Milestones Supported Living Services,64.16, 24-Oct-2014
1683,Revenue,CCHD,Home Care - Elderly - South,Day Care / Social Activities,Milestones Supported Living Services,2109.26, 24-Oct-2014
1684,Revenue,CCHD,Home Care - Elderly - South,Other Small Contracts,Milestones Supported Living Services,2349.86, 24-Oct-2014
1685,Revenue,CCHD,Home Care - Elderly - South,Supported Living,Milestones Supported Living Services,449.12, 24-Oct-2014
1686,Revenue,CCHD,Home Care - Elderly - North,Day Care / Social Activities,Milestones Supported Living Services,1122.8, 24-Oct-2014
1687,Revenue,CCHD,Home Care - Elderly - North,Other Small Contracts,Milestones Supported Living Services,52.13, 24-Oct-2014
1688,Revenue,CCHD,Day Care - South,Day Care / Social Activities,Milestones Supported Living Services,32.08, 24-Oct-2014
1689,Revenue,CCHD,Day Care - North,Day Care / Social Activities,Milestones Supported Living Services,233.75, 24-Oct-2014
1690,Revenue,CCHD,Younger MH non-res purchasing,Day Care / Social Activities,Milestones Supported Living Services,32.08, 24-Oct-2014
1691,Revenue,CCHD,Home care - Elderly MH - North,Other Small Contracts,Milestones Supported Living Services,64.16, 24-Oct-2014
1692,Revenue,CCHD,Home Care - Elderly - South,Day Care / Social Activities,Milestones Supported Living Services,3183.94, 24-Oct-2014
1693,Revenue,CCHD,Home Care - Elderly - South,Other Small Contracts,Milestones Supported Living Services,3139.83, 24-Oct-2014
1694,Revenue,CCHD,Home Care - Elderly - South,Supported Living,Milestones Supported Living Services,673.68, 24-Oct-2014
1695,Revenue,CCHD,Home Care - Elderly - North,Day Care / Social Activities,Milestones Supported Living Services,1479.69, 24-Oct-2014
1696,Revenue,CCHD,Day Care - South,Day Care / Social Activities,Milestones Supported Living Services,64.16, 24-Oct-2014
1697,Revenue,CCHD,Day Care - North,Day Care / Social Activities,Milestones Supported Living Services,164.8, 24-Oct-2014
1698,Revenue,CCHD,Younger MH non-res purchasing,Day Care / Social Activities,Milestones Supported Living Services,24.06, 24-Oct-2014
1699,Revenue,CCHD,Home care - Elderly MH - North,Other Small Contracts,Milestones Supported Living Services,64.16, 24-Oct-2014
1700,Revenue,CCHD,Purchase of Non-Res Care - North,Day Care / Social Activities,Milestones Trust,1692.9, 02-Oct-2014
1701,Revenue,CCHD,Supported Living - North,Private & Voluntary Home Care,Milestones Trust,1182.78, 02-Oct-2014
1702,Revenue,CCHD,Supported Living (S28a) South,Private & Voluntary Home Care,Milestones Trust,828.42, 28-Oct-2014
1703,Revenue,CCHD,Supported Living (S28a) North,Private & Voluntary Home Care,Milestones Trust,4302.42, 28-Oct-2014
1704,Revenue,CCHD,Supported Living (S28a) North,Private & Voluntary Home Care,Milestones Trust,5041, 03-Oct-2014
1705,Revenue,CCHD,Supported Living (S28a) North,Private & Voluntary Home Care,Milestones Trust,4302.42, 28-Oct-2014
1706,Revenue,CCHD,Supported Living (S28a) South,Private & Voluntary Home Care,Milestones Trust,1824.1, 28-Oct-2014
1707,Revenue,CCHD,Supported Living (S28a) North,Private & Voluntary Home Care,Milestones Trust,9126.38, 28-Oct-2014
1708,Revenue,CCHD,Supported Living (S28a) North,Private & Voluntary Home Care,Milestones Trust,11387.85, 28-Oct-2014
1709,Revenue,CCHD,Supported Living (S28a) South,Private & Voluntary Home Care,Milestones Trust,581.62, 28-Oct-2014
1710,Revenue,CCHD,Supported Living (S28a) South,Private & Voluntary Home Care,Milestones Trust,676.35, 28-Oct-2014
1711,Revenue,CCHD,Supported Living (S28a) South,Private & Voluntary Home Care,Milestones Trust,1448.12, 28-Oct-2014
1712,Revenue,CCHD,Supported Living - North,Private & Voluntary Home Care,Milestones Trust,1387.7, 07-Oct-2014
1713,Revenue,CCHD,Supported Living - North,Private & Voluntary Home Care,Milestones Trust,4861.69, 07-Oct-2014
1714,Revenue,CCHD,Purchase of Non-Res Care - South,Day Care / Social Activities,Milestones Trust,626.8, 03-Oct-2014
1715,Revenue,CCHD,Supported Living - South,Private & Voluntary Home Care,Milestones Trust,1492.57, 02-Oct-2014
1716,Revenue,CCHD,Supported Living - North,Private & Voluntary Home Care,Milestones Trust,626.8, 31-Oct-2014
1717,Revenue,CCHD,Supported Living (S28a) South,Private & Voluntary Home Care,Milestones Trust,715.77, 03-Oct-2014
1718,Revenue,CCHD,Supported Living - South,Private & Voluntary Home Care,Milestones Trust,656.64, 03-Oct-2014
1719,Revenue,CCHD,Supported Living - South,Private & Voluntary Home Care,Milestones Trust,1052.41, 03-Oct-2014
1720,Revenue,CCHD,Supported Living (S28a) South,Private & Voluntary Home Care,Milestones Trust,1827.94, 03-Oct-2014
1721,Revenue,CCHD,Supported Living (S28a) North,Private & Voluntary Home Care,Milestones Trust,4455.75, 03-Oct-2014
1722,Revenue,CCHD,Supported Living (S28a) North,Private & Voluntary Home Care,Milestones Trust,4455.75, 03-Oct-2014
1723,Revenue,CCHD,Supported Living (S28a) North,Private & Voluntary Home Care,Milestones Trust,4455.75, 03-Oct-2014
1724,Revenue,CCHD,Supported Living (S28a) North,Private & Voluntary Home Care,Milestones Trust,5041, 03-Oct-2014
1725,Revenue,CCHD,Supported Living (S28a) North,Private & Voluntary Home Care,Milestones Trust,5041, 03-Oct-2014
1726,Revenue,CCHD,Supported Living (S28a) North,Private & Voluntary Home Care,Milestones Trust,4445.83, 03-Oct-2014
1727,Revenue,CCHD,Supported Living (S28a) North,Private & Voluntary Home Care,Milestones Trust,4445.83, 03-Oct-2014
1728,Revenue,CCHD,Supported Living (S28a) North,Private & Voluntary Home Care,Milestones Trust,9430.59, 03-Oct-2014
1729,Revenue,CCHD,Supported Living (S28a) North,Private & Voluntary Home Care,Milestones Trust,11418.25, 03-Oct-2014
1730,Revenue,CCHD,Supported Living - South,Private & Voluntary Home Care,Milestones Trust,2170.3, 02-Oct-2014
1731,Revenue,CCHD,Supported Living - South,Private & Voluntary Home Care,Milestones Trust,1592.41, 02-Oct-2014
1732,Revenue,CCHD,Supported Living - South,Private & Voluntary Home Care,Milestones Trust,814.48, 03-Oct-2014
1733,Revenue,CCHD,Supported Living - South,Private & Voluntary Home Care,Milestones Trust,779.58, 03-Oct-2014
1734,Revenue,CCHD,Supported Living (S28a) South,Private & Voluntary Home Care,Milestones Trust,790.41, 03-Oct-2014
1735,Revenue,CCHD,Supported Living (S28a) North,Private & Voluntary Home Care,Milestones Trust,4903.52, 03-Oct-2014
1736,Revenue,CCHD,Supported Living (S28a) South,Private & Voluntary Home Care,Milestones Trust,2737.3, 03-Oct-2014
1737,Revenue,CCHD,Supported Living (S28a) South,Private & Voluntary Home Care,Milestones Trust,2725.28, 03-Oct-2014
1738,Revenue,CCHD,Supported Living - South,Private & Voluntary Home Care,Milestones Trust,2734.39, 03-Oct-2014
1739,Revenue,CCHD,Supported Living (S28a) South,Private & Voluntary Home Care,Milestones Trust,2790.18, 03-Oct-2014
1740,Revenue,CCHD,Elderly MH Day Care North,Day Care / Social Activities,Milestones Trust,708.39, 10-Oct-2014
1741,Revenue,CCHD,Stibbs and Fairburn,Respite Planned - Residential,Milestones Trust,127861, 16-Oct-2014
1742,Revenue,CCHD,Supported Living - South,Private & Voluntary Home Care,Milestones Trust,3314.16, 21-Oct-2014
1743,Revenue,CCHD,Supported Living - South,Private & Voluntary Home Care,Milestones Trust,2071.59, 21-Oct-2014
1744,Revenue,CCHD,Supported Living - South,Private & Voluntary Home Care,Milestones Trust,3452.25, 21-Oct-2014
1745,Revenue,CCHD,Supported Living - South,Private & Voluntary Home Care,Milestones Trust,4971.24, 21-Oct-2014
1746,Revenue,CCHD,Supported Living (S28a) North,Private & Voluntary Home Care,Milestones Trust,4032.8, 28-Oct-2014
1747,Revenue,CCHD,Supported Living (S28a) North,Private & Voluntary Home Care,Milestones Trust,4302.42, 28-Oct-2014
1748,Revenue,CCHD,Supported Living - South,Private & Voluntary Home Care,Milestones Trust,4032.8, 23-Oct-2014
1749,Revenue,CCHD,Supported Living (S28a) North,Day Care / Social Activities,Milestones Trust,4302.42, 28-Oct-2014
1750,Revenue,CCHD,Supported Living (S28a) North,Private & Voluntary Home Care,Milestones Trust,2149.57, 29-Oct-2014
1751,Revenue,CCHD,Supported Living (S28a) South,Private & Voluntary Home Care,Milestones Trust,1091.32, 29-Oct-2014
1752,Revenue,CCHD,Supported Living (S28a) South,Private & Voluntary Home Care,Milestones Trust,1085.08, 28-Oct-2014
1753,Revenue,CCHD,Supported Living - South,Private & Voluntary Home Care,Milestones Trust,1085.28, 28-Oct-2014
1754,Revenue,CCHD,Supported Living (S28a) South,Private & Voluntary Home Care,Milestones Trust,1106.12, 29-Oct-2014
1755,Revenue,CCHD,Supported Living - South,Private & Voluntary Home Care,Milestones Trust,1990.68, 28-Oct-2014
1756,Revenue,CCHD,Supported Living - South,Private & Voluntary Home Care,Milestones Trust,1351.22, 28-Oct-2014
1757,Revenue,CCHD,Supported Living - South,Private & Voluntary Home Care,Milestones Trust,661.83, 28-Oct-2014
1758,Revenue,CCHD,Purchase of Non-Res Care - South,Day Care / Social Activities,Milestones Trust,501.44, 28-Oct-2014
1759,Revenue,CCHD,Supported Living - South,Private & Voluntary Home Care,Milestones Trust,1135.97, 28-Oct-2014
1760,Revenue,CCHD,Supported Living (S28a) South,Private & Voluntary Home Care,Milestones Trust,615.84, 29-Oct-2014
1761,Revenue,CCHD,Supported Living (S28a) South,Private & Voluntary Home Care,Milestones Trust,991.13, 29-Oct-2014
1762,Revenue,CCHD,Supported Living (S28a) North,Private & Voluntary Home Care,Milestones Trust,8517.96, 28-Oct-2014
1763,Revenue,CCHD,Supported Living (S28a) North,Private & Voluntary Home Care,Milestones Trust,9127.92, 28-Oct-2014
1764,Revenue,CCHD,Supported Living (S28a) North,Private & Voluntary Home Care,Milestones Trust,4032.8, 03-Oct-2014
1765,Revenue,CCHD,SLA Grants - Support Serv,Grants to Voluntary Bodies,Mo Dymond Support Groups,500, 08-Oct-2014
1766,Revenue,CCHD,SLA Grants - Support Serv,Grants to Voluntary Bodies,Mo Dymond Support Groups,500, 08-Oct-2014
1767,Revenue,CCHD,SLA Grants - Support Serv,Grants to Voluntary Bodies,Mo Dymond Support Groups,500, 08-Oct-2014
1768,Revenue,CCHD,Bed Purchasing - Southmead Hospital,Permanent Residential,Mostyn Lodge Residential Home,13052.36, 28-Oct-2014
1769,Revenue,CCHD,Bed Purchasing - North,Permanent Residential,Mostyn Lodge Residential Home,1234.64, 28-Oct-2014
1770,Revenue,CCHD,Older People's Commissioned Se,Grants to Voluntary Bodies,Mothers for Mothers,2155.25, 01-Oct-2014
1771,Revenue,CCHD,Social Lettings Agency,Fees - General,Individual,10, 07-Oct-2014
1772,Revenue,CCHD,Social Lettings Agency,Other Supplies & Services,Individual,565, 07-Oct-2014
1773,Revenue,CCHD,Social Lettings Agency,Fees - General,Individual,10, 17-Oct-2014
1774,Revenue,CCHD,Social Lettings Agency,Other Supplies & Services,Individual,565, 17-Oct-2014
1775,Revenue,CCHD,Social Lettings Agency,Fees - General,Individual,10.09, 06-Oct-2014
1776,Revenue,CCHD,Social Lettings Agency,Other Supplies & Services,Individual,570.66, 06-Oct-2014
1777,Revenue,CCHD,Social Lettings Agency,Fees - General,Individual,10, 22-Oct-2014
1778,Revenue,CCHD,Social Lettings Agency,Other Supplies & Services,Individual,565, 22-Oct-2014
1779,Revenue,CCHD,Social Lettings Agency,Fees - General,Individual,8.6, 22-Oct-2014
1780,Revenue,CCHD,Social Lettings Agency,Other Supplies & Services,Individual,582, 22-Oct-2014
1781,Revenue,CCHD,Social Lettings Agency,Fees - General,Individual,11.6, 01-Oct-2014
1782,Revenue,CCHD,Social Lettings Agency,Other Supplies & Services,Individual,655.41, 01-Oct-2014
1783,Revenue,CCHD,Social Lettings Agency,Fees - General,Individual,11.6, 31-Oct-2014
1784,Revenue,CCHD,Social Lettings Agency,Other Supplies & Services,Individual,655.41, 31-Oct-2014
1785,Revenue,CCHD,Homeless - Private Sector Leasing,Other Supplies & Services,Mr D G & Mrs L K Jenkins,565, 23-Oct-2014
1786,Revenue,CCHD,Social Lettings Agency,Fees - General,Individual,11.71, 02-Oct-2014
1787,Revenue,CCHD,Social Lettings Agency,Other Supplies & Services,Individual,661.96, 02-Oct-2014
1788,Revenue,CCHD,Social Lettings Agency,Fees - General,Individual,11.71, 31-Oct-2014
1789,Revenue,CCHD,Social Lettings Agency,Other Supplies & Services,Individual,661.96, 31-Oct-2014
1790,Revenue,CCHD,Social Lettings Agency,Fees - General,Individual,10, 08-Oct-2014
1791,Revenue,CCHD,Social Lettings Agency,Other Supplies & Services,Individual,565, 08-Oct-2014
1792,Revenue,CCHD,Social Lettings Agency,Fees - General,Individual,11.2, 20-Oct-2014
1793,Revenue,CCHD,Social Lettings Agency,Other Supplies & Services,Individual,632.81, 20-Oct-2014
1794,Revenue,CCHD,Social Lettings Agency,Fees - General,Individual,10, 08-Oct-2014
1795,Revenue,CCHD,Social Lettings Agency,Other Supplies & Services,Individual,565, 08-Oct-2014
1796,Revenue,CCHD,Social Lettings Agency,Fees - General,Individual,10, 01-Oct-2014
1797,Revenue,CCHD,Social Lettings Agency,Other Supplies & Services,Individual,565, 01-Oct-2014
1798,Revenue,CCHD,Social Lettings Agency,Fees - General,Individual,10, 31-Oct-2014
1799,Revenue,CCHD,Social Lettings Agency,Other Supplies & Services,Individual,565, 31-Oct-2014
1800,Revenue,CCHD,Social Lettings Agency,Fees - General,Individual,16.16, 21-Oct-2014
1801,Revenue,CCHD,Social Lettings Agency,Other Supplies & Services,Individual,533.46, 21-Oct-2014
1802,Revenue,CCHD,Social Lettings Agency,Fees - General,Individual,10, 30-Oct-2014
1803,Revenue,CCHD,Social Lettings Agency,Other Supplies & Services,Individual,565, 30-Oct-2014
1804,Revenue,CCHD,Social Lettings Agency,Fees - General,Individual,7.5, 03-Oct-2014
1805,Revenue,CCHD,Social Lettings Agency,Other Supplies & Services,Individual,587.25, 03-Oct-2014
1806,Revenue,CCHD,Home Care - Elderly - South,Other Small Contracts,Mrs B Kimber -  CM2000,11125.17, 02-Oct-2014
1807,Revenue,CCHD,Home Care - Elderly - North,Other Small Contracts,Mrs B Kimber -  CM2000,4270.29, 02-Oct-2014
1808,Revenue,CCHD,Day Care - South,Day Care / Social Activities,Mrs B Kimber -  CM2000,221.94, 02-Oct-2014
1809,Revenue,CCHD,Under 65s -MH  Home Care Purch,Other Small Contracts,Mrs B Kimber -  CM2000,65.76, 02-Oct-2014
1810,Revenue,CCHD,Elderly MH Day Care North,Day Care / Social Activities,Mrs B Kimber -  CM2000,98.64, 02-Oct-2014
1811,Revenue,CCHD,Home Care - Elderly - South,Day Care / Social Activities,Mrs B Kimber -  CM2000,439.77, 09-Oct-2014
1812,Revenue,CCHD,Home Care - Elderly - South,Other Small Contracts,Mrs B Kimber -  CM2000,10555.44, 09-Oct-2014
1813,Revenue,CCHD,Home Care - Elderly - North,Other Small Contracts,Mrs B Kimber -  CM2000,4529.22, 09-Oct-2014
1814,Revenue,CCHD,Day Care - South,Day Care / Social Activities,Mrs B Kimber -  CM2000,164.4, 09-Oct-2014
1815,Revenue,CCHD,Under 65s -MH  Home Care Purch,Other Small Contracts,Mrs B Kimber -  CM2000,65.76, 09-Oct-2014
1816,Revenue,CCHD,Elderly MH Day Care North,Day Care / Social Activities,Mrs B Kimber -  CM2000,98.64, 09-Oct-2014
1817,Revenue,CCHD,Home Care - Elderly - South,Other Small Contracts,Mrs B Kimber -  CM2000,10668.96, 09-Oct-2014
1818,Revenue,CCHD,Home Care - Elderly - North,Other Small Contracts,Mrs B Kimber -  CM2000,4784.04, 09-Oct-2014
1819,Revenue,CCHD,Day Care - South,Day Care / Social Activities,Mrs B Kimber -  CM2000,82.2, 09-Oct-2014
1820,Revenue,CCHD,Under 65s -MH  Home Care Purch,Other Small Contracts,Mrs B Kimber -  CM2000,65.76, 09-Oct-2014
